{"text_format":"1","workbook":"xlsx","n_sheets":27,"sheets":["Demande","Extraction","Allergenes","Menu Hebdo","InfosSemaines","Menu Hebdo Douceurs","Menu Jour","Menu Mensuel Elior","Menu Mensuel Elior NB","Menu Mensuel Elior s_goûter","Menu TauxPrise","Menu Liste Mixé","Menu Mensuel Dej-Diner","Menu Hebdo Dej-Gouter","Menu RPA Dej","Menu RPA Hebdo","Menu Etiquettes","Menu SCV","Menu Mensuel","Menu Mensuel Multi convives","Menu ScolaireA","Menu CrecheA","Menu CollegeA","DATA","MaquetteAllergenes","Paramètres","InfosBulles"],"not_rendered":{"charts":0,"images":50,"macros":1,"external_links":0,"defined_names":267,"comments":1,"pivot_tables":0},"unopened":[],"bounds":{"document_bytes":16777216,"sheet_cells":100000,"rows_first":2000,"rows_last":500,"rows_between":2000,"halvings":0,"cell_chars":16384,"cell_head_chars":4096},"cells_cut":0,"cells_raw":0,"read":"whole","date_system":"1900"}

{"sheet":"Demande","index":0,"n_rows":34,"n_cols":5,"rows_kept":34,"cut":false,"hidden":true,"merged":[]}
[]
[]
[null,null,"Style de période :"]
[null,null,"La semaine prochaine"]
[null,"De quelle date :","2015-06-22",null,{"$f":"Z_DATDEB","v":"2015-06-22"}]
[null,"A quelle date :","2015-06-26",null,{"$f":"Z_DATFIN","v":"2015-06-26"}]
[]
[null,"Trame de menus :","Menu Mensuel Dej-Diner"]
[]
[null,"Prestation principale :","DEJEUNER",null,"42"]
[null,"Prestation 2 (facultatif) :","DINER",null,"43"]
[null,"Prestation 3 (facultatif) :",null,null,0]
[null,"Goûter 6/12 mois :"]
[null,"Goûter 12/18 mois :"]
[null,"Goûter+18 mois :"]
[]
[null,"Contrat :","COLLEGE JEAN-PHILIPPE RAMEAU",null,0]
[]
[null,"Restaurant :","BL DEMANDE DE TESTS LABO",null,"77"]
[]
[null,"Convive :","Portage haché",null,"147"]
[]
[null,"Utiliser les Pictos :","Non"]
[]
[null,"Masquer les lignes inutiles  :","Oui"]
[]
[null,"Masquer les colonnes inutiles :","Oui"]
[]
[null,"Exemplaire(s) des étiquettes Entrée/Fromage/dessert :",1]
[]
[null,"Un classeur par menu :","Oui"]
[null,null,"Cliquer ici pour saisir les infos de la semaine"]
[null,"Indiquer les allergènes sur l'étiquette :","Non"]
[null,"Inclure la famille \"Divers\" dans les menus :","Non"]

{"sheet":"Extraction","index":1,"n_rows":33,"n_cols":6,"rows_kept":33,"cut":false,"hidden":false,"merged":[]}
[]
[null,null,"Style de période :",null,"CDPF 047668"]
[null,null,"Dans 15 jours"]
[null,"De quelle date :","2017-01-30",null,{"$f":"Z_DATDEB_EX","v":"2017-01-30"}]
[null,"A quelle date :","2017-02-03",null,{"$f":"Z_DATFIN_EX","v":"2017-02-03"}]
[]
[null,"Trame de menus :","Menu Jour"]
[]
[null,"Prestation principale (MET_PRESTATION_MNU) :","Déjeuner",null,"3"]
[null,"Prestation secondaire (facultatif) :",null,null,0]
[]
[null,"Contrat Prestation (MET_RESTAU) :","Déjeuner adulte",null,"2828","Ne sert à rien pour l'instant. Dans ELIXIR il ne sert qu'à choisir un restaurant mais n'est pas utilisé dans l'extraction ensuite"]
[]
[null,"Forfait ou Repas Livrés :","REPAS LIVRÉS"]
[]
[null,"Restaurant (point de livraison RPL_SITE) :","ELRES CASSENEUIL",null,4542]
[]
[null,"Type de menu :","MENUS ST PIERRE J F",null,36478]
[]
[null,"Convive (calibrage) :","Collège",null,5]
[]
[null,"Un classeur par menu :","Non"]
[null,null,"Cliquer ici pour saisir les infos de la semaine"]
[]
[null,"Utiliser les PICTOS :","Oui"]
[]
[null,"Masquer les lignes inutiles  :","Oui"]
[]
[null,"Masquer les colonnes inutiles :","Oui"]
[]
[null,"Exemplaire(s) des étiquettes Entrée/Fromage/dessert :",1]
[]
[null,"Indiquer les allergènes sur l'étiquette :","Oui"]

{"sheet":"Allergenes","index":2,"n_rows":49,"n_cols":16,"rows_kept":49,"cut":false,"hidden":false,"merged":[]}
["Date","Plat","Lait","Blé / Gluten","Oeuf","Poisson","Sulfites","Fruits à coques","Crustacés","Mollusques","Soja","Céleri","Arachides","Moutarde","Sésame","Lupin"]
["Période du 30 janvier au 5 février",null,"Collège",null,null,null,"Déjeuner adulte - MENUS ST PIERRE J F"]
["2017-01-30","Duo de betteraves et tomates"]
[null,"Salade chef","X"]
[null,"Trio de saucissons","X","X",null,null,"X"]
[null,"Rôti de dinde au jus","X"]
[null,"Petits pois à la française","X"]
[null,"Edam","X"]
[null,"Fraidou","X"]
[null,"Yaourt nature","X"]
[null,"Tartare ail et fines herbes","X"]
[null,"Fruit de saison"]
[null,"Tartelette au chocolat","X","X","X",null,null,null,null,null,"X"]
[null,"flan nappé caramel","X"]
[]
["2017-01-31","Tomate au surimi",null,"X","X","X","X",null,"X",null,"X"]
[null,"salade thaî croquante",null,"X","X","X","X",null,"X",null,"X"]
[null,"Salade chinoise"]
[null,"Nems au poulet",null,"X",null,"X",null,null,null,null,"X"]
[null,"Riz cantonnais","X",null,"X"]
[null,"Edam","X"]
[null,"Fondu Président","X",null,"X"]
[null,"Cotentin","X"]
[null,"Cocktail de fruits"]
[null,"Ananas au sirop"]
[null,"Fruit de saison"]
[]
["2017-02-02","Concombre Local vinaigrette"]
[null,"Salade club","X"]
[null,"Assiette de crudités",null,null,null,null,null,null,null,null,null,"X"]
[null,"Brochette de dinde"]
[null,"Potatoes spicy",null,"X"]
[null,"Brie","X"]
[null,"Mimolette","X"]
[null,"Fruit de saison"]
[null,"Yaourt aromatisé","X"]
[null,"Fromage Blanc Sucré","X"]
[]
["2017-02-03","Pamplemousse"]
[null,"Galantine de volaille",null,null,null,null,"X"]
[null,"Salade de pâtes au surimi",null,"X","X","X","X",null,"X",null,"X",null,null,"X"]
[null,"Calamars à la romaine",null,"X",null,null,null,null,null,"X"]
[null,"Poêlée de légumes","X"]
[null,"Gouda","X"]
[null,"Yaourt nature","X"]
[null,"Tartare ail et fines herbes","X"]
[null,"Flan à la vanille","X"]
[null,"Fruit de saison"]
[null,"flan chocolat","X"]

{"sheet":"Menu Hebdo","index":3,"n_rows":19,"n_cols":19,"rows_kept":19,"cut":false,"hidden":false,"merged":[[4,0,12,0],[0,2,0,14],[14,2,14,14],[18,0,26,0]]}
[null,null,"Période du 22 juin au 28 juin",null,null,null,null,null,null,null,null,null,null,null,null,null,"Presta1","Presta2","Presta3"]
[]
[null,null,"Lundi",null,"Mardi",null,"Mercredi",null,"Jeudi",null,"Vendredi",null,"Samedi",null,"Dimanche"]
[null,null,null,null,null,null,null,null,null,null,"",null,"",null,""]
["DEJEUNER",null,"Potage aux poireaux et aux pommes de terre\nCéleri fromage blc/citron.",null,"Potage ferval\nBoulghour à l'orientale",null,"Potage jardinier\nCarottes du vigneron",null,"Potage Longchamps\nConcombre à la crème ciboulette",null,"Potage à la tomate\nPâté de campagne et cornichons"]
[]
[null,null,"Bolognaise au Boeuf",null,"Sauté de porc au jus",null,"Rôti de veau au jus",null,"Oeufs durs à la tomate",null,"Filet de hoki au soja"]
[]
[null,null,"Spaghetti",null,"Navets nature",null,"Emincé de poireau béchamel",null,"Fenouil",null,"Semoule"]
[]
[null,null,"Yaourt nature et sucre",null,"Tomme noire",null,"Saint Paulin",null,"Coulommiers",null,"Bleu"]
[]
[null,null,"Compote pomme-ananas",null,"Abricots locaux",null,"Semoule au lait",null,"Financier maison",null,"Fraises et sucre"]
[]
[null,null,"Période du 22 juin au 28 juin"]
[]
[null,null,"Lundi",null,"Mardi",null,"Mercredi",null,"Jeudi",null,"Vendredi",null,"Samedi",null,"Dimanche"]
[null,null,null,null,null,null,null,null,null,null,"",null,"",null,""]
["DEJEUNER"]

{"sheet":"InfosSemaines","index":4,"n_rows":32,"n_cols":6,"rows_kept":32,"cut":false,"hidden":true,"merged":[[1,2,1,3],[7,5,11,5],[3,1,3,3],[4,1,4,3]]}
[]
[null,null,"- - INFOS DE LA SEMAINE - -"]
[]
[null,"Utilisation : indiquez un n° de semaine en colonne 1, le logiciel affiche son libellé en colonne 2, renseignez en colonne 3 le message à afficher."]
[null,"PENSEZ A RESSAISIR LES NUMEROS DE SEMAINE EN DEBUT D'ANNEE - LES PERIODES NE SONT PAS LES MÊMES !"]
[]
[null,"N° semaine","Période (calculée par EditMenu)","Message à afficher"]
[null,"6","Semaine n°6 - du 2 février au 8 février","Youpi c'est les vacances bientôt",null,"Pour chaque infobulle vous pouvez définir une couleur du fonds et une couleur de texte. Elles seront reprises à l'édition (sauf menu Crèche). Il en est de même pour la taille de la police, le gras et l'italique."]
[null,"36","Semaine n°36 - du 1 septembre au 7 septembre","Bouh, c'est la rentrée !"]
[null,"1","Semaine n°1 - du 30 décembre au 5 janvier","Bonne année  !"]
[null,"11","Semaine n°11 - du 9 mars au 15 mars","Miam miam, des bonnes frites à l'ancienne !"]
[null,"12","Semaine n°12 - du 16 mars au 22 mars","Vive la galette des rois !"]
[null,"15","Semaine n°15 - du 6 avril au 12 avril","Carnaval,…"]
[null,"",""]
[null,""]
[null,""]
[null,""]
[null,""]
[null,""]
[null,"",""]
[null,"",""]
[null,"",""]
[null,"",""]
[null,"",""]
[null,"",""]
[null,"",""]
[null,"",""]
[null,"",""]
[null,"",""]
[]
[null,null,null,"Retour au formulaire de saisie"]
[null,null,null,"Retour au formulaire de saisie"]

{"sheet":"Menu Hebdo Douceurs","index":5,"n_rows":42,"n_cols":15,"rows_kept":42,"cut":false,"hidden":false,"merged":[[30,4,30,12],[1,4,1,12],[0,4,0,12],[14,4,14,12],[15,4,15,12],[29,4,29,12]]}
["Déjeuner",null,null,null,"Période du 21 septembre au 27 septembre"]
[]
[null,null,"Lundi",null,"Mardi",null,"Mercredi",null,"Jeudi",null,"Vendredi",null,"Samedi",null,"Dimanche"]
[null,null,null,null,null,null,null,null,null,null,"",null,"",null,""]
["Entrée"]
[]
["Plat"]
[]
["Accompa-gnement"]
[]
["Fromage "]
[]
["Dessert"]
[]
["Déjeuner",null,null,null,"Période du 31 août au 6 septembre"]
[]
[null,null,"Lundi",null,"Mardi",null,"Mercredi",null,"Jeudi",null,"Vendredi",null,"Samedi",null,"Dimanche"]
[null,null,null,null,null,null,null,null,null,null,"",null,"",null,""]
["Entrée",null,null,null,"Courgettes râpées à la vinaigrette",null,"Pâté de campagne et son condiment",null,"Macédoine de légumes mayonnaise",null,"Champignons frais en rémoulade",null,"Salade verte au surimi",null,"Salade de soja à l'ananas et crevettes"]
[]
["Plat",null,null,null,"Petit salé",null,"Cuisse de poulet rôtie au jus",null,"Sauté de porc aux olives vertes",null,"Filet de colin à loseille",null,"Epaule d'agneau rôtie au jus",null,"Rôti de veau à la sauce poivrade"]
[]
["Accompa-gnement",null,null,null,"Lentilles à la paysanne",null,"Fondue de poireaux",null,"Macaronis",null,"Pommes de terre cuites à l'anglaise",null,"Courgettes persillées",null,"Pommes paillasson"]
[]
["Fromage ",null,null,null,"Saint Paulin",null,"Gouda",null,"Camembert",null,"Yaourt nature",null,"Fraidou",null,"Munster"]
[]
["Dessert",null,null,null,"Flan nappé au caramel",null,"Variation de fruits frais",null,"Variation de fruits frais",null,"Poires au sirop vanillé",null,"Variation de fruits frais",null,"Chou à la crème"]
[]
[]
["Déjeuner",null,null,null,"Période du 7 septembre au 13 septembre"]
[]
[null,null,"Lundi",null,"Mardi",null,"Mercredi",null,"Jeudi",null,"Vendredi",null,"Samedi",null,"Dimanche"]
[null,null,null,null,null,null,null,null,null,null,"",null,"",null,""]
["Entrée",null,"Salade d'endive à la vinaigrette",null,"Radis à la croque au sel",null,"Salade de riz",null,"Emincé de tomate à la mozzarella",null,"Champignon à la grecque",null,"Salade coleslaw",null,"Salade exotique à la mangue"]
[]
["Plat",null,"Sauté de boeuf mironton",null,"Cordon bleu",null,"Filet de hoki à l'indienne",null,"Grillardin de boeuf au jus",null,"Filet de colin aux aromates",null,"Lasagnes",null,"Rôti de porc au jus"]
[]
["Accompa-gnement",null,"Pâtes escargots",null,"Semoule",null,"Haricots verts poêlés",null,"Bouquet de chou fleur",null,"Riz pilaf",null,"Batavia",null,"Jardinière de légumes"]
[]
["Fromage ",null,"Cantal",null,"Saint bricet",null,"Buchette mi-chèvre",null,"Yaourt nature",null,"Brie",null,"Fromage frais nature",null,"Emmental"]
[]
["Dessert",null,"Mousse au chocolat traditionnelle",null,"Cocktail de fruits au sirop",null,"Soupe d'orange & Grenadine",null,"Pomme au four à la cannelle",null,"Salade de fruits frais",null,"Compote pommes cassis",null,"Tarte au chocolat"]

{"sheet":"Menu Jour","index":6,"n_rows":28,"n_cols":4,"rows_kept":28,"cut":false,"hidden":false,"merged":[[9,1,9,5],[11,1,11,5],[0,1,0,5],[12,1,12,5],[3,1,3,5],[5,1,5,5],[7,1,7,5],[1,1,1,5],[27,0,27,7],[26,1,26,5],[13,0,13,7],[14,1,14,5],[15,1,15,5],[23,1,23,5],[25,1,25,5],[17,1,17,5],[19,1,19,5],[21,1,21,5]]}
[null,"2017-01-30"]
[null,"DÉJEUNER"]
[]
[null,"DUO DE BETTERAVES ET TOMATES\nSALADE CHEF\nTRIO DE SAUCISSONS"]
[]
[null,"RÔTI DE DINDE AU JUS"]
[null,null,null,"&"]
[null,"PETITS POIS À LA FRANÇAISE"]
[]
[null,"EDAM\nFRAIDOU\nYAOURT NATURE\nTARTARE AIL ET FINES HERBES"]
[]
[null,"FRUIT DE SAISON\nTARTELETTE AU CHOCOLAT\nFLAN NAPPÉ CARAMEL"]
[]
["BON APPETIT !"]
[null,{"$f":"Z_Dates_1_Jour","v":"2017-01-30"}]
[null,"DINER"]
[]
[null,"VELOUTÉ DE POIREAU POMME DE TERRE"]
[]
[null,"AIGUILLETTES DE POULET FAÇON TAJINE"]
[null,null,null,"&"]
[null,"CONFIT D'AUBERGINES\nGRATIN DE PANAIS"]
[]
[null,"DANONE NATURE"]
[]
[null,"CARPACCIO D'ANANAS"]
[]
["BON APPETIT !"]

{"sheet":"Menu Mensuel Elior","index":7,"n_rows":59,"n_cols":20,"rows_kept":59,"cut":false,"hidden":false,"merged":[[5,1,5,9],[5,11,5,19],[27,1,27,9],[27,11,27,19],[15,1,16,9],[15,11,16,19],[37,1,38,9],[37,11,38,19],[58,1,59,9],[58,11,59,19],[48,1,48,9],[48,11,48,19]]}
[]
[]
[null,null,null,"Période du 31 août au 4 septembre",null,null,null,{"$f":"IF(Paramètres!H6=\"NON\",Z_CONT_LIB,Z_CONT_LIB_EX)","v":"Déjeuner adulte"},null,null,null,null,null,null,null,null,null,{"$f":"H3","v":"Déjeuner adulte"}]
[null,"LUNDI",null,"MARDI",null,"MERCREDI",null,"JEUDI",null,"VENDREDI",null,"LUNDI",null,"MARDI",null,"MERCREDI",null,"JEUDI",null,"VENDREDI"]
[]
[]
[null,null,null,"Pâté de campagne et son condiment\nJambon de Paris\nMuseau vinaigrette",null,"Pastèque",null,"Concombre à la menthe\nBavarois de concombre",null,"Salade de pâtes et sa sauce Andalouse"]
[]
[null,null,null,"Paêlla garnie\nEscalope de dinde au basilic\nFam\\Ballotine",null,"Cocotte de boeuf en daube provençal",null,"Tête de veau sauce Gribiche",null,"Fam / mousseline\nFilet de merlu sauce crevette"]
[]
[null,null,null,null,null,"Tortis tricolores\nPurée de haricots  verts\nTortils et chou fleur diabetiq",null,"Purée de pommes de terre\nPommes de terre cuites à l'anglaise\nPdt et macédoine diabetiq",null,"Flan de courgettes\nCourgettes au thym\nTortils et courgettes diabetiq"]
[]
[null,null,null,"Camembert\nLa ronde du fromager\nSt Moret",null,"Camembert\nLa ronde du fromager\nSt Moret",null,"Camembert\nLa ronde du fromager\nSt Moret",null,"Camembert\nLa ronde du fromager\nSt Moret"]
[]
[null,null,null,"Compote tous fruits\nSalade de fruits\nSalade de fruits frais",null,"Entremets sans sucre\nIle flottante au caramel",null,"Variation de fruits frais\nCompote tous fruits",null,"Sorbet citron mandarine"]
[null,"GOÛTER",null,null,null,null,null,null,null,null,null,"GOÛTER"]
[]
[]
[]
[]
[]
[]
[]
[]
[null,null,null,"Période du 7 septembre au 11 septembre",null,null,null,{"$f":"H3","v":"Déjeuner adulte"},null,null,null,null,null,null,null,null,null,{"$f":"H3","v":"Déjeuner adulte"}]
[null,"LUNDI",null,"MARDI",null,"MERCREDI",null,"JEUDI",null,"VENDREDI",null,"LUNDI",null,"MARDI",null,"MERCREDI",null,"JEUDI",null,"VENDREDI"]
[]
[]
[null,"Carottes râpées en vinaigrette\nCarotte rapee aux agrumes\nBavarois de concombre",null,"Betteraves à la vinaigrette\nFondant de betteraves",null,"Melon charentais\nBavarois de melon",null,"Salade de tomate en vinaigrette\ntomate en vinaigrette mixee",null,"Salade verte&tomates\nSalade de pommes de terre au cervelas\nBavarois de tomate au basilic"]
[]
[null,"Langue de boeuf sauce tomate provençale",null,"Fam / mousseline\nSardines à l'escabèche",null,"Escalope de dinde à la crème de persil\nFam ballotine de volaille",null,"Fam / mousseline\nGigot d'agneau à la crème d'ail\nGigot d'agneau au jus",null,"Filet de colin"]
[]
[null,"Penne\nPurée de céleri\nTortils et haricots verts diabetiq",null,"Purée de pommes de terre\nPommes de terre vapeur\nPdt et macédoine diabetiq",null,"Poêlée méridionale\nFlan de légumes\nPdt et courgettes diabetiq",null,"Semoule aux raisins secs\nPurée de carottes\nSemoule et ratatouille diabetiq",null,"Haricots beurre persillées\nPurée de haricots  verts\nTortils et haricots beurre diabetiq"]
[]
[null,"Camembert\nLa ronde du fromager\nSt Moret",null,"Camembert\nLa ronde du fromager\nSt Moret",null,"Camembert\nLa ronde du fromager\nSt Moret",null,"Camembert\nLa ronde du fromager\nSt Moret",null,"Camembert\nLa ronde du fromager\nSt Moret"]
[]
[null,"Entremets sans sucre\nEntremets pistache",null,"Compote tous fruits\nSalade de fruits\nSalade de fruits frais",null,"Entremets sans sucre\nChou à la crème\nCreme au speculoos",null,"Creme chocolat sans sucre\nLiégeois au chocolat",null,"Variation de fruits frais\nCompote tous fruits"]
[null,"GOÛTER",null,null,null,null,null,null,null,null,null,"GOÛTER"]
[]
[]
[]
[]
[]
[]
[]
[null,null,null,"Période du 14 septembre au 18 septembre",null,null,null,{"$f":"H3","v":"Déjeuner adulte"},null,null,null,null,null,null,null,null,null,{"$f":"H3","v":"Déjeuner adulte"}]
[null,"LUNDI",null,"MARDI",null,"MERCREDI",null,"JEUDI",null,"VENDREDI",null,"LUNDI",null,"MARDI",null,"MERCREDI",null,"JEUDI",null,"VENDREDI"]
[]
[]
[null,"Panaché de crudités\nBavarois de tomate au basilic\nSalade de riz fraicheur",null,"Radis rose émincé"]
[]
[null,"Saute de dinde sce normande",null,"Fam hachis parmentier\nPaleron de boeuf braisé au romarin"]
[]
[null,"Purée de céleri\nCroquettes de céléri\nTortils et carottes diabetiq",null,"Lingots à la tomate\nPurée de haricots  verts\nRiz et haricots verts diabetiq"]
[]
[null,"Camembert\nLa ronde du fromager\nSt Moret",null,"Camembert\nLa ronde du fromager\nSt Moret"]
[]
[null,"Variation de fruits frais\nCompote tous fruits",null,"Poire cuite au four sans sucre\nMarmelade de poire\nPoires pochée au caramel"]
[null,"GOÛTER",null,null,null,null,null,null,null,null,null,"GOÛTER"]

{"sheet":"Menu Mensuel Elior NB","index":8,"n_rows":57,"n_cols":20,"rows_kept":57,"cut":false,"hidden":false,"merged":[[4,1,4,9],[4,11,4,19],[25,1,25,9],[25,11,25,19],[14,1,15,9],[14,11,15,19],[35,1,36,9],[35,11,36,19],[56,1,57,9],[56,11,57,19],[46,1,46,9],[46,11,46,19]]}
[]
[]
[null,null,null,"Période du 31 août au 4 septembre",null,null,null,{"$f":"IF(Paramètres!H6=\"NON\",Z_CONT_LIB,Z_CONT_LIB_EX)","v":"Déjeuner adulte"},null,null,null,null,null,"Période du 21 septembre au 25 septembre",null,null,null,{"$f":"H3","v":"Déjeuner adulte"}]
[null,"LUNDI",null,"MARDI",null,"MERCREDI",null,"JEUDI",null,"VENDREDI",null,"LUNDI",null,"MARDI",null,"MERCREDI",null,"JEUDI",null,"VENDREDI"]
[]
[null,null,null,"Tatin de Tomates confites",null,"Tartare De noix de Saint Jacques",null,"Crumble Chèvre Tomates",null,"Salade de concombres sauce soja"]
[]
[null,null,null,"Flétan roti",null,"Veau a la provencale",null,"Fondant de boeuf",null,"Aiguillettes de poulet façon tajine"]
[]
[null,null,null,"Duo de carottes\nEcrase de pomme de terre",null,"Duo de riz sauvage",null,"Quinoa aux petits legumes",null,"Duo de carottes\nPolenta Crémeuse"]
[]
[null,null,null,"Mini Roitelet",null,"Calin nature",null,"Rondelé ail et fines herbes",null,"Camembert"]
[]
[null,null,null,"Croquant poire caramel",null,"Salade de fruits frais",null,"Crème chocolat",null,"Succès Pistache Framboise"]
[null,"GOÜTER",null,null,null,null,null,null,null,null,null,"GOÜTER"]
[]
[]
[]
[]
[]
[]
[]
[]
[null,null,null,"Période du 7 septembre au 11 septembre",null,null,null,{"$f":"H3","v":"Déjeuner adulte"},null,null,null,null,null,"Période du 28 septembre au 2 octobre",null,null,null,{"$f":"H3","v":"Déjeuner adulte"}]
[null,"LUNDI",null,"MARDI",null,"MERCREDI",null,"JEUDI",null,"VENDREDI",null,"LUNDI",null,"MARDI",null,"MERCREDI",null,"JEUDI",null,"VENDREDI"]
[]
[]
[]
[]
[]
[]
[]
[]
[]
[]
[null,"GOÛTER",null,null,null,null,null,null,null,null,null,"GOÛTER"]
[]
[]
[]
[]
[]
[]
[]
[]
[null,null,null,"Période du 14 septembre au 18 septembre",null,null,null,{"$f":"H3","v":"Déjeuner adulte"},null,null,null,null,null,null,null,null,null,{"$f":"H3","v":"Déjeuner adulte"}]
[null,"LUNDI",null,"MARDI",null,"MERCREDI",null,"JEUDI",null,"VENDREDI",null,"LUNDI",null,"MARDI",null,"MERCREDI",null,"JEUDI",null,"VENDREDI"]
[]
[]
[]
[]
[]
[]
[]
[]
[]
[]
[null,"GOÛTER"]

{"sheet":"Menu Mensuel Elior s_goûter","index":9,"n_rows":43,"n_cols":20,"rows_kept":43,"cut":false,"hidden":false,"merged":[[4,1,4,9],[4,11,4,19],[23,1,23,9],[23,11,23,19],[14,1,14,9],[14,11,14,19],[34,1,34,9],[34,11,34,19],[54,1,54,9],[54,11,54,19],[43,1,43,9],[43,11,43,19]]}
[]
[]
[null,null,null,"Période du 1 décembre au 5 décembre",null,null,null,{"$f":"IF(Paramètres!H6=\"NON\",Z_CONT_LIB,Z_CONT_LIB_EX)","v":"Déjeuner adulte"},null,null,null,null,null,null,null,null,null,{"$f":"H3","v":"Déjeuner adulte"}]
[null,"LUNDI",null,"MARDI",null,"MERCREDI",null,"JEUDI",null,"VENDREDI",null,"LUNDI",null,"MARDI",null,"MERCREDI",null,"JEUDI",null,"VENDREDI"]
[]
[]
[]
[]
[]
[]
[]
[]
[]
[]
[]
[]
[]
[]
[]
[]
[]
[null,null,null,"Période du 8 décembre au 12 décembre",null,null,null,{"$f":"H3","v":"Déjeuner adulte"},null,null,null,null,null,null,null,null,null,{"$f":"H3","v":"Déjeuner adulte"}]
[null,"LUNDI",null,"MARDI",null,"MERCREDI",null,"JEUDI",null,"VENDREDI",null,"LUNDI",null,"MARDI",null,"MERCREDI",null,"JEUDI",null,"VENDREDI"]
[]
[]
[]
[]
[]
[]
[]
[]
[]
[]
[]
[]
[]
[]
[]
[]
[]
[]
[null,null,null,"Période du 15 décembre au 19 décembre",null,null,null,{"$f":"H3","v":"Déjeuner adulte"},null,null,null,null,null,null,null,null,null,{"$f":"H3","v":"Déjeuner adulte"}]
[null,"LUNDI",null,"MARDI",null,"MERCREDI",null,"JEUDI",null,"VENDREDI",null,"LUNDI",null,"MARDI",null,"MERCREDI",null,"JEUDI",null,"VENDREDI"]

{"sheet":"Menu TauxPrise","index":10,"n_rows":59,"n_cols":15,"rows_kept":59,"cut":false,"hidden":false,"merged":[[0,2,0,8],[1,0,1,2],[25,0,28,0],[5,0,8,0],[20,0,23,0],[15,0,18,0],[10,0,13,0],[30,2,30,8],[31,0,31,2],[55,0,58,0],[35,0,38,0],[40,0,43,0],[45,0,48,0],[50,0,53,0]]}
[null,null,"Période du 22 juin au 28 juin"]
["DEJEUNER"]
[null,null,"Lundi",null,"Mardi",null,"Mercredi",null,"Jeudi",null,"Vendredi",null,"Samedi",null,"Dimanche"]
[null,"%",null,"%",null,"%",null,"%",null,"%",null,"%",null,"%"]
["EFFECTIFS"]
["Entrées au choix",null,"Potage aux poireaux et aux pommes de terre",null,"Potage ferval",null,"Potage jardinier",null,"Potage Longchamps",null,"Potage à la tomate"]
[null,null,"Potage aux poireaux et aux pommes de terre",null,"Potage ferval",null,"Potage jardinier",null,"Potage Longchamps",null,"Potage à la tomate"]
[null,null,"Potage aux poireaux et aux pommes de terre",null,"Potage ferval",null,"Potage jardinier",null,"Potage Longchamps",null,"Potage à la tomate"]
[null,null,"Potage aux poireaux et aux pommes de terre",null,"Potage ferval",null,"Potage jardinier",null,"Potage Longchamps",null,"Potage à la tomate"]
[]
["Plats au choix",null,"Boeuf bourguignon MIXE.",null,"Porc à la diable HACHE",null,"Blanquette de veau MIXE",null,"Oeufs durs",null,"Filet de hoki au soja"]
[null,null,"Bolognaise au Boeuf",null,"Porc à la diable mixé",null,"Blanquette de veau MIXE",null,"Oeufs durs à la tomate",null,"Filet de hoki au soja"]
[null,null,"Bolognaise au Boeuf",null,"Sauté de porc au jus",null,"Rôti de veau au jus",null,"Oeufs durs à la tomate",null,"Filet de hoki au soja"]
[null,null,"Bolognaise au Boeuf",null,"Sauté de porc au jus",null,"Rôti de veau au jus",null,"Oeufs durs à la tomate",null,"Filet de hoki et citron sans sel ajouté"]
[]
["Garnitures au choix",null,"Purée de patate douce\r",null,"Navets à la ciboulette sans sel ajouté",null,"Emincé de poireau",null,"Fenouil",null,"Purée pommes de terre et légumes couscous"]
[null,null,null,null,"Navets nature",null,"Emincé de poireau béchamel",null,"Fenouil",null,"Semoule"]
[null,null,"Spaghetti",null,"Navets nature",null,"Emincé de poireau béchamel",null,"Fenouil",null,"Semoule"]
[null,null,"Spaghetti",null,"Navets nature",null,"Emincé de poireau béchamel",null,"Fenouil",null,"Semoule"]
[]
["Fromages/laitages  au choix ",null,"Yaourt nature",null,"Tomme noire",null,"Fromage blanc et sucre",null,"Coulommiers",null,"Bleu"]
[null,null,"Yaourt nature et sucre",null,"Tomme noire",null,"Fromage blanc et sucre",null,"Coulommiers",null,"Bleu"]
[null,null,"Yaourt nature et sucre",null,"Tomme noire",null,"Saint Paulin",null,"Coulommiers",null,"Bleu"]
[null,null,"Yaourt nature et sucre",null,"Tomme noire",null,"Saint Paulin",null,"Coulommiers",null,"Bleu"]
[]
["Desserts  au choix",null,"Compote de poires sans sucre",null,"Abricots locaux",null,"Abricots au naturel sans sucre",null,"Financier maison",null,"Compote de pêches"]
[null,null,"Compote pomme-ananas",null,"Abricots locaux",null,"Semoule au lait",null,"Financier maison",null,"Fraises"]
[null,null,"Compote pomme-ananas",null,"Abricots locaux",null,"Semoule au lait",null,"Financier maison",null,"Fraises et sucre"]
[null,null,"Compote pomme-ananas",null,"Abricots locaux",null,"Semoule au lait",null,"Financier maison",null,"Fraises et sucre"]
[null,null,"Compote pomme-ananas",null,"Abricots locaux",null,"Semoule au lait",null,"Liégeois au chocolat",null,"Fraises et sucre"]
[null,null,"Période du 22 juin au 28 juin"]
["DEJEUNER"]
[null,null,"Lundi",null,"Mardi",null,"Mercredi",null,"Jeudi",null,"Vendredi",null,"Samedi",null,"Dimanche"]
[null,"%",null,"%",null,"%",null,"%",null,"%",null,"%",null,"%"]
["EFFECTIFS"]
["Entrées au choix",null,"Potage aux poireaux et aux pommes de terre",null,"Potage ferval",null,"Potage jardinier",null,"Potage Longchamps",null,"Potage à la tomate"]
[null,null,"Potage aux poireaux et aux pommes de terre",null,"Potage ferval",null,"Potage jardinier",null,"Potage Longchamps",null,"Potage à la tomate"]
[null,null,"Potage aux poireaux et aux pommes de terre",null,"Potage ferval",null,"Potage jardinier",null,"Potage Longchamps",null,"Potage à la tomate"]
[null,null,"Potage aux poireaux et aux pommes de terre",null,"Potage ferval",null,"Potage jardinier",null,"Potage Longchamps",null,"Potage à la tomate"]
[]
["Plats au choix",null,"Boeuf bourguignon MIXE.",null,"Porc à la diable HACHE",null,"Blanquette de veau MIXE",null,"Oeufs durs",null,"Filet de hoki au soja"]
[null,null,"Bolognaise au Boeuf",null,"Porc à la diable mixé",null,"Blanquette de veau MIXE",null,"Oeufs durs à la tomate",null,"Filet de hoki au soja"]
[null,null,"Bolognaise au Boeuf",null,"Sauté de porc au jus",null,"Rôti de veau au jus",null,"Oeufs durs à la tomate",null,"Filet de hoki au soja"]
[null,null,"Bolognaise au Boeuf",null,"Sauté de porc au jus",null,"Rôti de veau au jus",null,"Oeufs durs à la tomate",null,"Filet de hoki et citron sans sel ajouté"]
[]
["Garnitures au choix",null,"Purée de patate douce\r",null,"Navets à la ciboulette sans sel ajouté",null,"Emincé de poireau",null,"Fenouil",null,"Purée pommes de terre et légumes couscous"]
[null,null,null,null,"Navets nature",null,"Emincé de poireau béchamel",null,"Fenouil",null,"Semoule"]
[null,null,"Spaghetti",null,"Navets nature",null,"Emincé de poireau béchamel",null,"Fenouil",null,"Semoule"]
[null,null,"Spaghetti",null,"Navets nature",null,"Emincé de poireau béchamel",null,"Fenouil",null,"Semoule"]
[]
["Fromages/laitages  au choix ",null,"Yaourt nature",null,"Tomme noire",null,"Fromage blanc et sucre",null,"Coulommiers",null,"Bleu"]
[null,null,"Yaourt nature et sucre",null,"Tomme noire",null,"Fromage blanc et sucre",null,"Coulommiers",null,"Bleu"]
[null,null,"Yaourt nature et sucre",null,"Tomme noire",null,"Saint Paulin",null,"Coulommiers",null,"Bleu"]
[null,null,"Yaourt nature et sucre",null,"Tomme noire",null,"Saint Paulin",null,"Coulommiers",null,"Bleu"]
[]
["Desserts  au choix",null,"Compote de poires sans sucre",null,"Abricots locaux",null,"Abricots au naturel sans sucre",null,"Financier maison",null,"Compote de pêches"]
[null,null,"Compote pomme-ananas",null,"Abricots locaux",null,"Semoule au lait",null,"Financier maison",null,"Fraises"]
[null,null,"Compote pomme-ananas",null,"Abricots locaux",null,"Semoule au lait",null,"Financier maison",null,"Fraises et sucre"]
[null,null,"Compote pomme-ananas",null,"Abricots locaux",null,"Semoule au lait",null,"Financier maison",null,"Fraises et sucre"]

{"sheet":"Menu Liste Mixé","index":11,"n_rows":91,"n_cols":5,"rows_kept":91,"cut":false,"hidden":false,"merged":[]}
[]
["2015-06-22","2015-06-23","2015-06-24","2015-06-25","2015-06-26"]
["Entrées","Entrées","Entrées","Entrées","Entrées"]
["Salade pommes de terre au thon et à la mayonnaise (CDIM)","Melon charentais",". (CIM)","Andouille et ses cornichons croquants (IM)","Champignon à la grecque"]
["Taboulé (F)","Salade de mâche","Carottes râpées","Pastèque","Salade de riz à la catalane (IM)"]
["Salade verte","Salade de mâche (IM)","Carottes râpées (IM)","Pastèque bio","Salade de tortis (AFCDEM)"]
["Salade verte (IM)","Salade de tomates","Carottes râpées (IM)","Salade de pennes au pesto (F)","Salade de tortis (AFCDEM)"]
["Taboulé (F)","Salade de tomates (IM)","Carottes râpées","Pastèque bio","Feuilles de vignes"]
["Salade verte","Salade de tomates bio","Carottes râpées bio (M)","Andouille et ses cornichons croquants","Champignon à la grecque"]
["PIQUE NIQUE 01 (A)","Salade verte bio","Carottes râpées","Andouille et ses cornichons croquants (IM)","Salade de riz à la catalane (IM)"]
["Osso bucco de veau (AFCIL)","Melon charentais","Carottes râpées (IM)","Salade de pennes au pesto (F)","Melon jaune"]
["Côte porc grillée","Salade de tomates","Salade de tomates","Salade de pennes au pesto (F)","Champignon à la grecque"]
["Menu abracadabra (Plateaux Natama)","Salade de tomates (IM)","Museau et cornichons (IM)","Laitue Iceberg","PIQUE NIQUE 01 (A)"]
["Menu malin (Plateaux Natama)","Jambon cru",". (CIM)","PIQUE NIQUE 01 (A)","Lasagnes aux courgettes (AF)"]
["Menu espagnol (Plateaux Natama)","Salade de mâche","Pomelos bio et sucre","Steak haché grillé","Faux filet"]
["Menu place aux herbes (Plateaux Natama)","Salade de mâche (IM)","Pomelos et sucre","Rôti de dinde","Briquette de lait chocolaté (A)"]
["Menu saveur d'antan (Plateaux Natama)","Salade de tomates (IM)","Carottes râpées","Feuilles de batavia","Lait demi-écrémé (A)"]
["Fenouil à la milanaise (A)","Salade verte bio","Museau et cornichons (IM)","Frites","Lait demi-écrémé (A)"]
["Lait demi-écrémé","Melon charentais","Carottes râpées bio (M)","Courgettes saveur du jardin","Chocolat noir (B)"]
["Lait demi-écrémé (A)","Melon charentais et jambon cru","Carottes râpées (IM)","Lait demi-écrémé","Madeleine (FC)"]
["PLATEAU FROMAGE 03 (A)","PIQUE NIQUE 01 (A)","Sandw bag. thon crudités","Lait demi-écrémé (A)","Rice Krispies (F)"]
["Compote de pommes","Filet de perche NATURE (D)","Escalope de dinde grillée","Edam (A)","Gaufre Fantasia (FCB)"]
["Gaufre Fantasia (FCB)","Poulet émincé au curry (AF)","Chips","Barre de chocolat noir (B)","Fraises"]
["Pain au lait (AFC)","Chipolatas","Tomates à la provençale (FB)","Briquette de jus de pommes","Banane"]
["ASSORTIMENT DE FRUITS 02","Pommes de terre au gratin (AF)","Emmental (A)","Chocolat noir (B)","Nectarine jaune"]
["Tarte amandine aux abricots (FCG)","Haricots beurres persillés","Petit Louis (A)","Fourrandise au chocolat (FC)","Tarte aux myrtilles maison (AFC)"]
["Compote pomme-banane","Briquette de lait demi écrémé (A)","Cakelet (FCI)","Nectarine jaune"]
["Prune jaune","Lait demi-écrémé","Jus de raisin","Rice Krispies","Plats"]
["Pruneaux","Lait demi-écrémé (A)","Petit suisse sucré (A)","Rice Krispies (F)","Colin poëlé (AFD)"]
[null,"Abricots","Compote de pommes","Gaufre Fantasia (FCB)","Colin poëlé (AFD)"]
["Plats","Bongateau à la fraise (AFCB)","Nectarine jaune","Barre de chocolat noir (B)","Filet de saumon à l'oseille (AFCDI)"]
["Filet de Cabillaud au beurre blanc","Brioche aux pépites de chocolat (FCB)","Jus de raisin","Nectarine jaune","Repas sans sel ajouté Dammarie"]
["Filet de Cabillaud au beurre blanc (AFCDI)","Gaufre Fantasia (FCB)","Petit suisse sucré (A)",null,"Repas sans sucre Dammarie"]
["Nuggets de volaille (AFI)","Cerises","Tarte noix de coco MAISON (AFC)","Plats","Filet de saumon à l'oseille (AFCDI)"]
["Nuggets de volaille (AFI)","Abricots",null,"Cheese burger (AFCBMH)","Colin poëlé (AFD)"]
["Osso bucco de veau (AFCIL)",null,"Plats","Fish burger (AFDIMH)","Filet de saumon à l'oseille (AFCDI)"]
["Repas sans sel ajouté Dammarie","Plats","Carré de porc fumé froid","Jambon de Paris","Tripes à la mode de Caen"]
["Repas sans sucre Dammarie","Chili con carne","Repas sans sel ajouté Dammarie","Paupiette de veau au poivre (AFCIB)","Faux filet"]
["Tarte au fromage (AFC)","Omelette aux fines herbes (AC)","Repas sans sucre Dammarie","Repas sans sel ajouté Dammarie","Tripes à la mode de Caen"]
["Tarte au fromage (AFC)","Poulet émincé au curry (AF)","Rôti de boeuf froid","Repas sans sucre Dammarie"]
["Osso bucco de veau (AFCIL)","Repas sans sel ajouté Dammarie","Thon relevé de mayonnaise (CDIM)","Rôti de dinde","Garnitures"]
["Côte porc grillée","Repas sans sucre Dammarie","Carré de porc fumé froid","Rôti de dinde froid","Blé (F)"]
["Tarte au fromage (AFC)","Sauté de veau sauce napolitaine (AFCI)","Carré de porc fumé froid","Jambon de Paris","Piperade"]
["Nuggets de volaille (AFI)","Sauté de veau sauce napolitaine (AFCI)","Rôti de boeuf froid","Cheese burger (AFCBMH)","Ratatouille bio"]
[null,"Omelette aux fines herbes (AC)","Thon relevé de mayonnaise (CDIM)","Paupiette de veau au poivre (AFCIB)","Chou-fleur saveur du jardin"]
["Garnitures","Poulet émincé au curry (AF)","Viennoise de dinde (AFCLBM)","Poulet grillé","Blé (F)"]
["Brocolis aux saveurs du midi","Sauté de veau sauce napolitaine (AFCI)","Escalope de dinde grillée","Rôti de dinde froid","Blé bio (F)"]
["Brocolis bio aux saveurs du midi","Chipolatas","Viennoise de dinde (AFCLBM)","Paupiette de veau au poivre (AFCIB)","Piperade"]
["Fenouil à la milanaise","Poulet émincé au curry (AF)","Carré de porc fumé froid","Steak haché grillé","Chou-fleur saveur du jardin"]
["Pommes boulangère (AFL)","Filet de perche NATURE (D)","Filet de julienne NATURE (D)","Rôti de dinde froid","Piperade"]
["Fenouil à la milanaise (A)",null,null,"Fish burger (AFDIMH)","Chou-fleur saveur du jardin"]
["Brocolis aux saveurs du midi","Garnitures","Garnitures",null,"Ratatouille bio"]
["Pommes bio boulangère (AFL)","Petits pois au jus (A)","Farfalles (F)","Garnitures"]
["Pommes boulangère (AFL)","Petits pois très fins bio (F)","Gnocchi et sauce tomate (AFCI)","Pommes rissolées bio","Fromages"]
["Fenouil à la milanaise (A)","Pommes de terre au gratin (AF)","Haricots verts à la ciboulette","Pommes smiles","Emmental (A)"]
["Pommes bio boulangère (AFL)","Riz bio créole","Salade de Haricots verts bio (IM)","Purée de pommes de terre (AB)","Fromage blanc aux fruits (A)"]
["Brocolis bio aux saveurs du midi","Riz créole","Salade piémontaise Sans jambon (CIM)","Röstis de légumes (AF)","Fromage blanc bio nature (A)"]
["Brocolis aux saveurs du midi","Riz créole","Taboulé (F)","Pommes smiles","Fromage blanc et sucre (A)"]
[null,"Petits pois au jus (A)","Gnocchi et sauce tomate (AFCI)","Pommes rissolées bio","Fromage blanc et sucre (A)"]
["Fromages","Petits pois très fins bio (F)","Gnocchi et sauce tomate (F)","Pommes smiles","Fromage blanc nature (A)"]
["Bleu (A)","Riz bio créole","Farfalles (F)","Purée de pommes de terre (AB)","Saint Paulin (A)"]
["Fromage et laitage manquant","Riz créole","Haricots verts à la ciboulette","Röstis de légumes (AF)","Emmental (A)"]
["Mimolette (A)","Haricots beurres persillés","Salade de Haricots verts bio (IM)","Salade verte","Fromage blanc et sucre (A)"]
["Yaourt aromatisé (A)","Petits pois très fins bio (F)","Salade piémontaise Sans jambon (CIM)","Salade verte (IM)","Saint Paulin (A)"]
["Yaourt nature et sucre (A)","Riz bio créole","Taboulé (F)","Courgettes saveur du jardin","Saint Paulin (A)"]
["Yaourt nature et sucre (A)","Pommes de terre au gratin (AF)","Tomates à la provençale (FB)","Röstis de légumes (AF)","Fromage blanc bio nature (A)"]
["Bleu (A)",null,"Salade piémontaise Sans jambon (CIM)","Pommes smiles"]
["Fromage et laitage manquant","Fromages","Salade de Haricots verts bio (IM)",null,"Dessert"]
["Mimolette (A)","Gouda (A)","Farfalles (F)","Fromages","Banane"]
[null,"Mimolette (A)",null,"Camembert bio (A)","Banane bio"]
["Dessert","Mimolette (A)","Fromages","Edam (A)","Carpaccio d'ananas au sirop"]
["Paris Brest (AFCG)","Mozzarella (A)","Camembert (A)","Petit Louis (A)","Far breton (AFC)"]
["Pommes Golden bio","Tomme grise (A)","Carré de l'est (A)","Tartare ail et fines herbes 16g (A)","Fromage blanc aux fruits (A)"]
["Prune jaune","Mimolette (A)","Coulommiers (A)","Yaourt Velouté fruix (A)","Orange"]
["Prune rouge bio","Cheddar (A)","Fromage blanc nature (A)","Yaourt Velouté fruix (A)","Banane"]
["Gaufre Fantasia (FCB)","Mimolette (A)","Petit suisse nature et sucre (A)","Pointe de Brie bio (A)","Abricots"]
["Charlotte au fruits rouge (AFCB)","Gouda (A)","Carré de l'est (A)",null,"Abricots bio"]
["Kiwi","Tomme grise (A)","Petit suisse aux fruits (A)","Dessert","Far breton (AFC)"]
["Kiwi bio","Mozzarella (A)","Coulommiers (A)","Gâteau au chocolat maison (AFCB)","Orange"]
[null,null,"Fromage blanc nature (A)","Moelleux au chocolat frais (AFCB)","Abricots"]
[null,"Dessert","Petit suisse aux fruits (A)","Tarte au citron meringuée (AFC)","Tarte aux myrtilles (AFC)"]
[null,"Crème dessert au chocolat (A)","Coulommiers (A)","Compote de pommes"]
[null,"Crème glacée aux fraises (A)",null,"Bavarois au chocolat (AFCB)"]
[null,"Flan à la vanille (A)","Dessert","Moelleux au chocolat frais (AFCB)"]
[null,"Fraises","Abricots"]
[null,"Petit pot vanille-fraise","Compote de pommes"]
[null,"Petit pot vanille-fraise (A)","Compote de pommes"]
[null,"Crème dessert au chocolat (A)","Faisselle (A)"]
[null,"Chou frais au café (ACB)","Compote de pommes"]
[null,"Crème dessert au chocolat (A)","Coupelle compote pomme pêche"]
[null,null,"Tarte à la noix de coco (AFC)"]

{"sheet":"Menu Mensuel Dej-Diner","index":12,"n_rows":6,"n_cols":4,"rows_kept":6,"cut":false,"hidden":false,"merged":[]}
[null,null,"Déjeuner","Dîner"]
[null,"2015-06-22","Salade pommes de terre au thon et à la mayonnaise\nSalade verte\nTaboulé\nSalade verte\nFilet de Cabillaud au beurre blanc\nFilet de Cabillaud au beurre blanc\nNuggets de volaille\nNuggets de volaille\nOsso bucco de veau\nRepas sans sel ajouté Dammarie\nRepas sans sucre Dammarie\nTarte au fromage\nOsso bucco de veau\nCôte porc grillée\nTarte au fromage\nNuggets de volaille\nBrocolis aux saveurs du midi\nBrocolis bio aux saveurs du midi\nFenouil à la milanaise\nPommes boulangère\nBrocolis aux saveurs du midi\nPommes bio boulangère\nPommes boulangère\nFenouil à la milanaise\nPommes bio boulangère\nBrocolis bio aux saveurs du midi\nBrocolis aux saveurs du midi\nBleu\nFromage et laitage manquant\nMimolette\nYaourt aromatisé\nYaourt nature et sucre\nBleu\nFromage et laitage manquant\nMimolette\nParis Brest\nPommes Golden bio\nPrune jaune\nPrune rouge bio\nCharlotte au fruits rouge\nKiwi\nKiwi bio","Taboulé\nTarte au fromage\nFenouil à la milanaise\nYaourt nature et sucre\nGaufre Fantasia"]
[null,"2015-06-23","Melon charentais\nSalade de mâche\nSalade de mâche\nSalade de tomates\nSalade de tomates\nSalade de tomates bio\nSalade verte bio\nSalade de mâche\nSalade de mâche\nSalade de tomates\nSalade verte bio\nMelon charentais\nMelon charentais et jambon cru\nChili con carne\nOmelette aux fines herbes\nPoulet émincé au curry\nRepas sans sel ajouté Dammarie\nRepas sans sucre Dammarie\nSauté de veau sauce napolitaine\nOmelette aux fines herbes\nPoulet émincé au curry\nSauté de veau sauce napolitaine\nChipolatas\nPoulet émincé au curry\nFilet de perche NATURE\nPetits pois au jus\nPetits pois très fins bio\nPommes de terre au gratin\nRiz bio créole\nRiz créole\nPetits pois au jus\nPetits pois très fins bio\nRiz bio créole\nRiz créole\nHaricots beurres persillés\nPetits pois très fins bio\nRiz bio créole\nPommes de terre au gratin\nGouda\nMimolette\nMimolette\nMozzarella\nTomme grise\nCheddar\nMimolette\nGouda\nTomme grise\nMozzarella\nCrème dessert au chocolat\nCrème glacée aux fraises\nFlan à la vanille\nFraises\nPetit pot vanille-fraise\nPetit pot vanille-fraise\nChou frais au café\nCrème dessert au chocolat","Melon charentais\nSalade de tomates\nSalade de tomates\nSauté de veau sauce napolitaine\nRiz créole\nMimolette\nCrème dessert au chocolat"]
[null,"2015-06-24",".\nCarottes râpées\nCarottes râpées\nCarottes râpées\nCarottes râpées\nCarottes râpées bio\n.\nPomelos bio et sucre\nPomelos et sucre\nCarottes râpées\nMuseau et cornichons\nCarottes râpées bio\nCarottes râpées\nCarré de porc fumé froid\nRepas sans sel ajouté Dammarie\nRepas sans sucre Dammarie\nRôti de boeuf froid\nThon relevé de mayonnaise\nCarré de porc fumé froid\nRôti de boeuf froid\nThon relevé de mayonnaise\nViennoise de dinde\nEscalope de dinde grillée\nViennoise de dinde\nCarré de porc fumé froid\nFilet de julienne NATURE\nFarfalles\nGnocchi et sauce tomate\nHaricots verts à la ciboulette\nSalade de Haricots verts bio\nSalade piémontaise Sans jambon\nTaboulé\nFarfalles\nHaricots verts à la ciboulette\nSalade de Haricots verts bio\nSalade piémontaise Sans jambon\nTaboulé\nTomates à la provençale\nSalade piémontaise Sans jambon\nSalade de Haricots verts bio\nFarfalles\nCamembert\nCarré de l'est\nCoulommiers\nFromage blanc nature\nPetit suisse nature et sucre\nCoulommiers\nFromage blanc nature\nPetit suisse aux fruits\nCoulommiers\nAbricots\nCompote de pommes\nCompote de pommes\nFaisselle\nCoupelle compote pomme pêche\nTarte à la noix de coco","Carottes râpées\nCarottes râpées\nCarré de porc fumé froid\nGnocchi et sauce tomate\nGnocchi et sauce tomate\nCarré de l'est\nPetit suisse aux fruits\nCompote de pommes"]
[null,"2015-06-25","Andouille et ses cornichons croquants\nPastèque\nPastèque bio\nSalade de pennes au pesto\nAndouille et ses cornichons croquants\nAndouille et ses cornichons croquants\nSalade de pennes au pesto\nSalade de pennes au pesto\nLaitue Iceberg\nCheese burger\nFish burger\nJambon de Paris\nPaupiette de veau au poivre\nRepas sans sel ajouté Dammarie\nRepas sans sucre Dammarie\nRôti de dinde\nRôti de dinde froid\nCheese burger\nPaupiette de veau au poivre\nPoulet grillé\nRôti de dinde froid\nPaupiette de veau au poivre\nSteak haché grillé\nRôti de dinde froid\nFish burger\nPommes rissolées bio\nPommes smiles\nPurée de pommes de terre\nRöstis de légumes\nPommes rissolées bio\nPommes smiles\nPurée de pommes de terre\nRöstis de légumes\nSalade verte\nSalade verte\nCourgettes saveur du jardin\nRöstis de légumes\nPommes smiles\nCamembert bio\nEdam\nPetit Louis\nTartare ail et fines herbes 16g\nYaourt Velouté fruix\nPointe de Brie bio\nGâteau au chocolat maison\nMoelleux au chocolat frais\nTarte au citron meringuée\nBavarois au chocolat\nMoelleux au chocolat frais","Pastèque bio\nJambon de Paris\nPommes smiles\nYaourt Velouté fruix\nCompote de pommes"]
[null,"2015-06-26","Champignon à la grecque\nSalade de riz à la catalane\nSalade de tortis\nChampignon à la grecque\nSalade de riz à la catalane\nChampignon à la grecque\nColin poëlé\nColin poëlé\nFilet de saumon à l'oseille\nRepas sans sel ajouté Dammarie\nRepas sans sucre Dammarie\nColin poëlé\nFilet de saumon à l'oseille\nTripes à la mode de Caen\nFaux filet\nTripes à la mode de Caen\nBlé\nPiperade\nRatatouille bio\nBlé\nBlé bio\nPiperade\nChou-fleur saveur du jardin\nPiperade\nChou-fleur saveur du jardin\nRatatouille bio\nEmmental\nFromage blanc aux fruits\nFromage blanc bio nature\nFromage blanc et sucre\nFromage blanc et sucre\nFromage blanc nature\nSaint Paulin\nFromage blanc et sucre\nSaint Paulin\nSaint Paulin\nFromage blanc bio nature\nBanane\nBanane bio\nCarpaccio d'ananas au sirop\nFar breton\nFromage blanc aux fruits\nOrange\nAbricots\nAbricots bio\nFar breton\nOrange\nAbricots\nTarte aux myrtilles","Salade de tortis\nFilet de saumon à l'oseille\nChou-fleur saveur du jardin\nEmmental\nBanane"]

{"sheet":"Menu Hebdo Dej-Gouter","index":13,"n_rows":9,"n_cols":9,"rows_kept":9,"cut":false,"hidden":false,"merged":[[8,2,8,8]]}
[]
[]
[null,null,"2014-12-01","2014-12-02","2014-12-03","2014-12-04","2014-12-05","2014-12-06","2014-12-07"]
[]
[]
[]
[]
[]
[null,null,"GOUTER"]

{"sheet":"Menu RPA Dej","index":14,"n_rows":22,"n_cols":10,"rows_kept":22,"cut":false,"hidden":false,"merged":[]}
[]
[null,"X",null,"X",null,"X",null,"X",null,"X"]
[null,"X",null,"X",null,"X",null,"X",null,"X"]
[]
[]
[]
[null,"X",null,"X",null,"X",null,"X",null,"X"]
[]
[]
[]
[]
[null,"X",null,"X",null,"X",null,"X",null,"X"]
[]
[]
[]
[]
[null,"X",null,"X",null,"X",null,"X",null,"X"]
[]
[]
[]
[]
[null,"X",null,"X",null,"X",null,"X",null,"X"]

{"sheet":"Menu RPA Hebdo","index":15,"n_rows":2,"n_cols":6,"rows_kept":2,"cut":false,"hidden":false,"merged":[]}
[null,"Contrat : ",{"$f":"(Z_CONT_LIB)&(Z_CONT_LIB_EX)","v":"COLLEGE JEAN-PHILIPPE RAMEAUDéjeuner adulte"},null,"Menus du 22/06/2015 au 26/06/2015"]
[null,"Entrées","Plats du jour - Garniture","Garniture","Laitages","Desserts"]

{"sheet":"Menu Etiquettes","index":16,"n_rows":0,"n_cols":0,"rows_kept":0,"cut":false,"hidden":false,"merged":[]}

{"sheet":"Menu SCV","index":17,"n_rows":0,"n_cols":0,"rows_kept":0,"cut":false,"hidden":false,"merged":[]}

{"sheet":"Menu Mensuel","index":18,"n_rows":9,"n_cols":8,"rows_kept":9,"cut":false,"hidden":false,"merged":[]}
[]
[]
[null,"Lundi","Mardi","Mercredi","Jeudi","Vendredi","Samedi","Dimanche"]
["Période du 1 septembre au 7 septembre"]
["Période du 8 septembre au 14 septembre"]
["Période du 15 septembre au 21 septembre"]
["Période du 22 septembre au 28 septembre"]
["Période du 29 septembre au 5 octobre"]
["Période du 3 novembre au 9 novembre"]

{"sheet":"Menu Mensuel Multi convives","index":19,"n_rows":0,"n_cols":0,"rows_kept":0,"cut":false,"hidden":true,"merged":[[154,0,154,3],[0,0,0,3],[29,0,29,3],[54,0,54,3],[79,0,79,3],[104,0,104,3],[129,0,129,3]]}

{"sheet":"Menu ScolaireA","index":20,"n_rows":124,"n_cols":18,"rows_kept":124,"cut":false,"hidden":true,"merged":[[121,14,123,15],[69,14,71,15],[23,14,25,15],[27,14,29,15],[33,14,35,15],[117,14,119,15],[86,14,88,15],[90,14,92,15],[96,14,98,15],[100,14,102,15],[65,14,67,15],[37,14,39,15],[1,1,1,12],[22,1,22,12],[44,14,46,15],[48,14,50,15],[32,1,32,12],[11,1,11,12],[2,14,4,15],[6,14,8,15],[12,14,14,15],[16,14,18,15],[43,1,43,12],[64,1,64,12],[53,1,53,12],[54,14,56,15],[58,14,60,15],[74,1,74,12],[116,1,116,12],[85,0,85,12],[95,1,95,12],[75,14,77,15],[107,14,109,15],[106,1,106,12],[111,14,113,15],[79,14,81,15]]}
[]
[null,"Semaine n°10 - du 2 mars au 6 mars"]
[null,"Plan Alimentaire 2",null,"LUNDI",null,"MARDI",null,"MERCREDI",null,"JEUDI",null,"VENDREDI",null,null,null,null,null,1]
[null,"Entrée"]
[null,"Plat principal",null,"Sauté de porc sauce colombo\nEscalope de dinde au jus.",null,"Colin meunière citron",null,null,null,"Omelette",null,"Bœuf sauté aux oignons"]
[null,"Accompagnement",null,"Riz bio pilaf",null,"Ratatouille",null,null,null,"Pommes rissolées",null,"Coquillettes bio"]
[null,"Produit laitier",null,"Cantafrais",null,"Yaourt nature sucré",null,null,null,"Camembert",null,"Rondelé nature"]
[null,"Dessert",null,"Crème dessert à la vanille",null,"Pomme (bicolore) BIO",null,null,null,"Kiwi BIO",null,"Flan au chocolat"]
[]
[]
[]
[null,"Semaine n°11 - du 9 mars au 13 mars"]
[null,"Plan Alimentaire 3",null,"LUNDI",null,"MARDI",null,"MERCREDI",null,"JEUDI",null,"VENDREDI",null,null,"Miam miam, des bonnes frites à l'ancienne !",null,null,2]
[null,"Entrée"]
[null,"Plat principal",null,"Escalope de poulet à estragon",null,"Tortis BIO bolognaise",null,null,null,"Cassoulet\nOmelette aux PDT",null,"Filet colin sauce normande"]
[null,"Accompagnement",null,"Haricots verts bio",null,null,null,null,null,null,null,"Julienne de légumes"]
[null,"Produit laitier",null,"Emmental..",null,"Pavé 1/2 sel",null,null,null,"Fromage fondu Président",null,"Brie"]
[null,"Dessert",null,"Orange",null,"Liégeois à la vanille",null,null,null,"Compote de pommes",null,"Banane BIO"]
[]
[]
[]
[]
[null,"Semaine n°12 - du 16 mars au 20 mars"]
[null,"Plan Alimentaire 4",null,"LUNDI",null,"MARDI",null,"MERCREDI",null,"JEUDI",null,"VENDREDI",null,null,"Vive la galette des rois !",null,null,3]
[null,"Entrée"]
[null,"Plat principal",null,"Lasagnes à la bolognaise",null,"Escalope poulet sce tomate",null,null,null,"Sauté de porc sauce curry\nOmelette",null,"Filet colin sce citron"]
[null,"Accompagnement",null,"Salade verte.",null,"Frites au four",null,null,null,"Courgettes aux épices",null,"Pdt et haricot beurre"]
[null,"Produit laitier",null,"Yaourt aromatisé",null,"Vache qui rit",null,null,null,"Cheddar",null,"Coulommiers"]
[null,"Dessert",null,"Pomme (bicolore)",null,"Flan nappé au caramel",null,null,null,"Kiwi BIO",null,"Orange BIO"]
[]
[]
[]
[null,"Semaine n°13 - du 23 mars au 27 mars"]
[null,"Plan Alimentaire 5",null,"LUNDI",null,"MARDI",null,"MERCREDI",null,"JEUDI",null,"VENDREDI",null,null,null,null,null,4]
[null,"Entrée"]
[null,"Plat principal",null,"Sauté de boeuf sauce citron",null,"Filet colin sauce crevettes",null,null,null,"Steak haché au jus",null,"Jambon braisé sce chasseur\nEscalope de dinde au jus."]
[null,"Accompagnement",null,"Carottes bio braisées",null,"Riz bio créole",null,null,null,"Macaroni bio",null,"Haricots verts bio"]
[null,"Produit laitier",null,"Yaourt nature sucré",null,"Edam",null,null,null,"Brie",null,"Fromage blanc sucré",null,null,"Sauté de boeuf sauce citron : pomme de terre, thon, oignon, persil"]
[null,"Dessert",null,"Barre bretonne",null,"Pomme (bicolore) BIO",null,null,null,"Mousse au chocolat au lait",null,"Banane"]
[]
[]
[]
[]
[null,"Semaine n°1 - du 29 décembre au 2 janvier"]
[null,"Plan Alimentaire 1",null,"LUNDI",null,"MARDI",null,"MERCREDI",null,"JEUDI",null,"VENDREDI",null,"Coucou",null,null,null,5]
[null,"Entrée"]
[null,"Plat principal"]
[null,"Accompagnement"]
[null,"Produit laitier",null,null,null,null,null,null,null,null,null,null,null,"C'est moi"]
[null,"Dessert"]
[null,"Goûter"]
[]
[]
[null,"Semaine n°45 - du 3 novembre au 7 novembre"]
[null,"Plan Alimentaire 2",null,"LUNDI",null,"MARDI",null,"MERCREDI",null,"JEUDI",null,"VENDREDI",null,null,null,null,null,6]
[null,"Entrée"]
[null,"Plat principal"]
[null,"Accompagnement"]
[null,"Produit laitier"]
[null,"Dessert"]
[null,"Goûter"]
[]
[]
[]
[]
[null,"Plan Alimentaire 3",null,"LUNDI",null,"MARDI",null,"MERCREDI",null,"JEUDI",null,"VENDREDI",null,null,null,null,null,7]
[null,"Entrée"]
[null,"Plat principal"]
[null,"Accompagnement"]
[null,"Produit laitier"]
[null,"Dessert"]
[null,"Goûter"]
[]
[]
[]
[null,"Plan Alimentaire 4",null,"LUNDI",null,"MARDI",null,"MERCREDI",null,"JEUDI",null,"VENDREDI",null,null,null,null,null,8]
[null,"Entrée"]
[null,"Plat principal"]
[null,"Accompagnement"]
[null,"Produit laitier"]
[null,"Dessert"]
[null,"Goûter"]
[]
[]
[]
[]
[null,"Plan Alimentaire 5",null,"LUNDI",null,"MARDI",null,"MERCREDI",null,"JEUDI",null,"VENDREDI",null,null,null,null,null,9]
[null,"Entrée"]
[null,"Plat principal"]
[null,"Accompagnement"]
[null,"Produit laitier"]
[null,"Dessert"]
[null,"Goûter"]
[]
[]
[]
[null,"Plan Alimentaire 1",null,"LUNDI",null,"MARDI",null,"MERCREDI",null,"JEUDI",null,"VENDREDI",null,null,null,null,null,10]
[null,"Entrée"]
[null,"Plat principal"]
[null,"Accompagnement"]
[null,"Produit laitier"]
[null,"Dessert"]
[null,"Goûter"]
[]
[]
[]
[]
[null,"Plan Alimentaire 2",null,"LUNDI",null,"MARDI",null,"MERCREDI",null,"JEUDI",null,"VENDREDI",null,null,null,null,null,11]
[null,"Entrée"]
[null,"Plat principal"]
[null,"Accompagnement"]
[null,"Produit laitier"]
[null,"Dessert"]
[null,"Goûter"]
[]
[]
[]
[null,"Plan Alimentaire 3",null,"LUNDI",null,"MARDI",null,"MERCREDI",null,"JEUDI",null,"VENDREDI",null,null,null,null,null,12]
[null,"Entrée"]
[null,"Plat principal"]
[null,"Accompagnement"]
[null,"Produit laitier"]
[null,"Dessert"]
[null,"Goûter"]

{"sheet":"Menu CrecheA","index":21,"n_rows":450,"n_cols":15,"rows_kept":450,"cut":false,"hidden":true,"merged":[[443,0,448,0],[405,0,410,0],[449,0,453,0],[419,0,424,0],[425,0,430,0],[431,0,436,0],[437,0,442,0],[411,0,415,0],[343,0,348,0],[349,0,354,0],[355,0,360,0],[361,0,366,0],[367,0,372,0],[373,0,377,0],[381,0,386,0],[387,0,392,0],[393,0,398,0],[399,0,404,0],[329,0,334,0],[335,0,339,0],[305,0,310,0],[311,0,316,0],[317,0,322,0],[285,0,290,0],[291,0,296,0],[297,0,301,0],[323,0,328,0],[273,0,278,0],[279,0,284,0],[209,0,214,0],[215,0,220,0],[221,0,225,0],[229,0,234,0],[235,0,240,0],[241,0,246,0],[247,0,252,0],[253,0,258,0],[259,0,263,0],[267,0,272,0],[197,0,202,0],[191,0,196,0],[203,0,208,0],[133,0,138,0],[139,0,144,0],[145,0,149,0],[153,0,158,0],[159,0,164,0],[165,0,170,0],[171,0,176,0],[177,0,182,0],[183,0,187,0],[121,0,126,0],[127,0,132,0],[57,0,62,0],[63,0,68,0],[69,0,73,0],[77,0,82,0],[83,0,88,0],[89,0,94,0],[95,0,100,0],[101,0,106,0],[107,0,111,0],[115,0,120,0],[1,0,6,0],[7,0,12,0],[13,0,18,0],[19,0,24,0],[25,0,30,0],[31,0,36,0],[39,0,44,0],[45,0,50,0],[51,0,56,0],[435,11,438,12],[121,11,124,12],[425,11,428,12],[197,11,200,12],[273,11,276,12],[349,11,352,12],[131,11,134,12],[207,11,210,12],[359,11,362,12],[229,8,229,12],[153,8,153,12],[155,8,155,11],[191,8,191,12],[193,8,193,11],[159,11,162,12],[169,11,172,12],[343,8,343,12],[345,8,345,11],[421,8,421,11],[387,11,390,12],[397,11,400,12],[381,8,381,12],[383,8,383,11],[419,8,419,12],[231,8,231,11],[267,8,267,12],[269,8,269,11],[321,11,324,12],[235,11,238,12],[245,11,248,12],[305,8,305,12],[307,8,307,11],[283,11,286,12],[311,11,314,12],[115,8,115,12],[117,8,117,11],[7,11,10,12],[45,11,48,12],[83,11,86,12],[17,11,20,12],[55,11,58,12],[93,11,96,12],[1,8,1,12],[41,8,41,11],[77,8,77,12],[79,8,79,11],[3,8,3,11],[39,8,39,12]]}
[null,null,"6/12 mois","12 / 18 mois"," + 18 mois","Effectifs","Effectifs"]
["lundi",null,null,null,"Segment pamplemousse",null,null,null,"H56 CRECHE MARY POPPINS",null,null,null,null,null,1]
[null,null,"Sauté d'agneau","Sauté d'agneau","Sauté d'agneau",null,null,null,null,null,null,"Plan Alimentaire n° : ",3]
[null,null,"Purée de poireaux","Purée de poireaux/semoule","Semoule au raisin",null,null,null,"Semaine n°10 - du 2 mars au 6 mars"]
[null,null,null,"Brie","Brie"]
[null,null,"Purée de pommes vanille m","Purée de pommes vanille m","Purée de pommes vanille m"]
[null,null,"Yaourt nature\nPurée de poires","Yaourt nature\nPurée pomme poire m","Yaourt nature\nPoire"]
["mardi",null,null,null,"Salade des Incas"]
[null,null,"Filet de lieu","Filet de lieu","Filet de colin jus persillé"]
[null,null,"Purée pdt b haricot vert","ZZPurée de brunoise de légumes","Brunoise de légumes"]
[null,null,null,"Saint Paulin","Saint Paulin"]
[null,null,"Purée de pomme banane b mais","Banane b","Banane b"]
[null,null,"Fromage blanc\nPurée de pomme pruneaux","Bouillie Bretonne\nPurée pomme pruneau m","Bouillie Bretonne\nPurée pomme pruneau m"]
["mercredi",null,null,null,"Potage de légumes"]
[null,null,"Rôti de porc\nBlanc de dinde rôti","Rôti de porc\nBlanc de dinde rôti","Rôti de porc au jus\nBlanc de dinde rôti"]
[null,null,"Purée pdt b petits pois","Purée pdt b petits pois","Lentilles"]
[null,null,null,"Yaourt nature b","Yaourt nature b"]
[null,null,"Purée de pommes m","Purée de pommes m","Ananas frais"]
[null,null,"Yaourt nature b\nPurée de pêches","Rondelé nature\nPurée pomme abricot sec m","Rondelé nature\nPurée pomme abricot sec m"]
["jeudi",null,null,null,"Betterave persillée"]
[null,null,"Pavé de hoki","Pavé de hoki","Pavé de hoki sce oseille"]
[null,null,"Purée pdt b carotte","Purée pdt b carotte","Carottes au cumin."]
[]
[null,null,"Purée pomme poire m","Floraline au lait b","Floraline au lait b"]
[null,null,"Fromage frais\nPurée de pomme coing","Fromage frais\nBanane","Fromage frais\nBanane"]
["vendredi",null,null,null,"Carotte batonnet from. blanc"]
[null,null,"Egréné de boeuf au bouillon","Egréné de boeuf au bouillon","Coquillette à la bolognaise"]
[null,null,"Purée pdt b betterave","Purée pdt b betterave/pâtes"]
[null,null,null,"Emmental","Emmental"]
[null,null,"ZZPurée de pomme orange m","ZZPurée de pomme orange m","Orange"]
[null,null,"Fromage blanc\nPurée de pomme","Fromage blanc\nZZPurée de pomme m","Fromage blanc\nZZPurée de pomme m"]
["samedi",null,null,null,"Potage de légumes"]
[null,null,"Blanc de dinde rôti","Blanc de dinde rôti","Blanc de dinde à la normande"]
[null,null,"Purée pdt b potiron","Purée pdt b potiron","Pomme vapeur","Effectifs","Effectifs"]
[null,null,null,"Vache qui rit","Vache qui rit"]
[null,null,"ZZPurée de poire m","ZZPurée de poire m","Poire"]
[null,null,"Fromage frais\nPurée de poires","Mimolette\nZZPurée de pomme cannelle mais","Mimolette\nKiwi"]
[]
[]
["lundi",null,null,null,"Crème de carottes au cumin",null,null,null,{"$f":"Z_TITRE_CrecheA","v":"H56 CRECHE MARY POPPINS"},null,null,null,null,null,2]
[null,null,"Filet de colin","Filet de colin","Parmentier de poisson provençal",null,null,null,null,null,null,"Plan Alimentaire n° : ",3]
[null,null,"Purée pdt b haricot vert","Purée pdt b haricot vert",null,null,null,null,"Semaine n°11 - du 9 mars au 13 mars"]
[null,null,null,"Tomme grise","Tomme grise"]
[null,null,"ZZPurée de pomme carotte maiso","ZZPurée de pomme carotte maiso","Kiwi"]
[null,null,"Yaourt nature\nPurée de pomme coing","Yaourt nature\nPurée de pomme coing","Yaourt nature\nPurée de pomme coing"]
["mardi",null,null,null,"Salade de coquillette basilic"]
[null,null,"Veau au jus","Veau au jus","Veau sauce poivrons"]
[null,null,"Purée pdt b courgette","Purée pdt b courgette","Courgette"]
[]
[null,null,"Entremet vanille b","Entremet vanille b","Entremet vanille b"]
[null,null,"Fromage blanc\nPurée de pêches","Buchette mi-chèvre\nZZPurée de pomme orange m","Buchette mi-chèvre\nOrange"]
["mercredi",null,null,null,"Cake aux légumes"]
[null,null,"Sauté de porc\nPavé de hoki","Sauté de porc\nPavé de hoki","Sauté de porc a l'ancienne\nPavé de hoki"]
[null,null,"Purée pdt b betterave","Purée pdt b chou fleur","Chou-fleur béchamel"]
[null,null,null,null,"Emmental"]
[null,null,"Banane b","Banane b","Banane b"]
[null,null,"Fromage frais\nPurée de pomme","Fromage frais\nPurée pomme fraise m","Fromage frais\nPurée pomme fraise m"]
["jeudi",null,null,null,"Radis à la croque"]
[null,null,"Blanc de poulet rôti","Blanc de poulet rôti","Blanc de poulet rôti"]
[null,null,"Purée pdt b petits pois","Purée pdt b petits pois","Riz paëlla"]
[null,null,null,"Yaourt nature","Yaourt nature"]
[null,null,"ZZPurée de pomme rhubarbe mais","ZZPurée de pomme rhubarbe mais","ZZPurée de pomBIO rhubarb mais"]
[null,null,"Yaourt nature\nPurée de pomme pruneaux","Gouda\nPurée pomme pruneau m","Gouda\nKiwi"]
["vendredi",null,null,null,"Salade nantaise"]
[null,null,"Filet de lieu","Filet de lieu","Filet de lieu à la vanille"]
[null,null,"Purée pdt b carotte","Purée pdt b carotte","Carotte","Effectifs","Effectifs"]
[null,null,null,"Chantaillou","Cotentin nature"]
[null,null,"Purée pomme poire m","Purée pomme poire m","Poire"]
[null,null,"Fromage blanc\nPurée de pomme coing","Semoule au lait b\nPurée de pomme coing","Semoule au lait b\nPomme (bicolore)"]
["samedi",null,null,null,"Salade verte et maïs"]
[null,null,"Jambon blanc","Jambon blanc","Jambon blanc"]
[null,null,"Purée d'haricot beurre","Purée d'haricot beurre/coquillettes","Papillon"]
[null,null,null,"Coulommiers","Coulommiers"]
[null,null,"Purée de pomme","Purée de pomme","Purée de pomme"]
[null,null,"Fromage frais\nPurée de pomme banane b","Fromage frais\nBanane","Fromage frais\nBanane"]
[]
[]
["lundi",null,null,null,"Potage saint germain",null,null,null,{"$f":"Z_TITRE_CrecheA","v":"H56 CRECHE MARY POPPINS"},null,null,null,null,null,3]
[null,null,"Egréné de boeuf au bouillon","Egréné de boeuf au bouillon","Sauté de boeuf mironton",null,null,null,null,null,null,"Plan Alimentaire n° : ",3]
[null,null,"Purée pdt b carotte","Purée pdt b carotte","dès de carottes au cerfeuil",null,null,null,"Semaine n°12 - du 16 mars au 20 mars"]
[null,null,null,"Gouda","Gouda"]
[null,null,"Purée pomme pruneau m","Purée pomme pruneau m","Kiwi"]
[null,null,"Yaourt nature b\nPurée de pêches","Yaourt nature b\nZZPurée de pomme rhubarbe mais","Yaourt nature b\nZZPurée de pomme rhubarbe mais"]
["mardi",null,null,null,"Chou-fleur.",null,null,null,null,null,null,"Vive la galette des rois !"]
[null,null,"Pavé de hoki","Pavé de hoki","Pavé de hoki à la bretonne"]
[null,null,"Purée pdt b betterave","Purée pdt bbetterave/semoule","Semoule b"]
[null,null,null,"Fromage frais","Fromage frais"]
[null,null,"Purée pomme orange m","Purée pomme orange m","Smoothie carotte orange"]
[null,null,"Fromage frais\nPurée de pomme","Coulommiers\nPurée de pommes m","Coulommiers\nPomme (bicolore)"]
["mercredi",null,null,null,"Potage de parmentier"]
[null,null,"Blanc de poulet rôti","Blanc de poulet rôti","Quiche carotte oignon fromage"]
[null,null,"Purée pdt b courgette","Purée pdt b courgette","Mitonnée de légumes"]
[null,null,null,"Fondu Président"]
[null,null,"Purée de pomme banane b mais","Banane b","Banane b"]
[null,null,"Yaourt nature\nPurée de poires","Yaourt nature\nPurée pomme poire m","Yaourt nature\nPurée pomme poire m"]
["jeudi",null,null,null,"Segment pamplemousse"]
[null,null,"Rôti de porc\nFilet de colin","Rôti de porc\nFilet de colin","Rôti de porc au jus\nFilet de colin"]
[null,null,"Purée pdt b haricot beurre","Purée pdt b haricot beurre","Haricot beurre","Effectifs","Effectifs"]
[null,null,null,"Camembert","Camembert"]
[null,null,"ZZPurée de pomme carotte maiso","ZZPurée de pomme carotte maiso","Cake à la carotte"]
[null,null,"Fromage frais\nPurée de pomme pruneaux","Fromage frais\nPurée pomme pruneau m","Fromage frais\nPurée pomme pruneau m"]
["vendredi",null,null,null,"Crème de carottes au cumin"]
[null,null,"Blanc de poulet rôti","Blanc de poulet rôti","Emincé de dinde grand mère"]
[null,null,"Purée pdt b épinards","Purée pdt b épinards/riz","Riz créole b"]
[null,null,null,"Emmental","Emmental"]
[null,null,"Purée de pomme coing","Purée de pomme coing","Orange"]
[null,null,"Fromage blanc\nPurée de pomme","Fromage blanc\nZZPurée pomme raisin m","Fromage blanc\nZZPurée pomme raisin m"]
["samedi",null,null,null,"Chou chinois"]
[null,null,"Egréné de boeuf au bouillon","Egréné de boeuf au bouillon","Egréné de boeuf au bouillon"]
[null,null,"Purée de potiron","Purée de potiron","Gratin dauphinois"]
[null,null,null,"Yaourt nature","Yaourt nature"]
[null,null,"Purée pomme poire m","Purée pomme poire m","Poire"]
[null,null,"Yaourt nature\nPurée de pomme","Saint Nectaire\nPurée pomme orange m","Saint Nectaire\nPurée pomme orange m"]
[]
[]
["lundi",null,null,null,"Carotte bâtonnet",null,null,null,{"$f":"Z_TITRE_CrecheA","v":"H56 CRECHE MARY POPPINS"},null,null,null,null,null,4]
[null,null,"Sauté de porc\nEgréné de boeuf au bouillon","Sauté de porc\nEgréné de boeuf au bouillon","Sauté de porc marengo\nEgréné de boeuf au bouillon",null,null,null,null,null,null,"Plan Alimentaire n° : ",3]
[null,null,"Purée pdt b betterave","Purée pdt b betterave/riz","Riz créole b",null,null,null,"Semaine n°13 - du 23 mars au 27 mars"]
[null,null,null,"Yaourt nature","Yaourt nature"]
[null,null,"ZZPurée de pomme cannelle mais","ZZPurée de pomme cannelle mais","ZZPurée de pomme cannelle mais"]
[null,null,"Yaourt nature\nPurée de pêches","Rondelé nature\nZZPurée de pomme orange m","Rondelé nature\nOrange"]
["mardi",null,null,null,"Betterave persillée"]
[null,null,"Filet de colin","Filet de colin","Filet de colin à l'aneth"]
[null,null,"Purée pdt b épinards","Purée pdt b épinards","Pomme vapeur"]
[null,null,null,"Coulommiers","Coulommiers"]
[null,null,"Purée de pomme coing","Purée de pomme coing","Kiwi"]
[null,null,"Fromage frais\nPurée de pomme coing","Fromage frais\nBanane","Fromage frais\nBanane"]
["mercredi",null,null,null,"Salade de blé"]
[null,null,"Blanc de poulet rôti","Blanc de poulet rôti","Blanc de poulet sauce pain d'épice"]
[null,null,"Purée pdt b haricot vert","Purée pdt b haricot vert","Haricot vert","Effectifs","Effectifs"]
[null,null,null,"Fondu Président","Fondu Président"]
[null,null,"Purée pomme banane","Banane","Banane"]
[null,null,"Fromage blanc\nPurée de pomme pruneaux","Semoule au lait b.\nZZPurée de pomme pruneaux mais","Semoule au lait b.\nZZPurée de pomme pruneaux mais"]
["jeudi",null,null,null,"Potage de légumes"]
[null,null,"Egréné de boeuf au bouillon","Egréné de boeuf au bouillon","Egréné de boeuf au bouillon"]
[null,null,"Purée pdt b potiron","Purée pdt b potiron/pâtes","Coquillette b"]
[null,null,null,"Gouda","Gouda"]
[null,null,"ZZPurée de pomme rhubarbe mais","ZZPurée de pomme rhubarbe mais","Ananas frais"]
[null,null,"Yaourt nature\nPurée de poires","Yaourt nature\nPurée pomme poire m","Yaourt nature\nPurée pomme poire m"]
["vendredi",null,null,null,"Concombre ciboulette"]
[null,null,"Cube de saumon","Cube de saumon","Cube de saumon / citron"]
[null,null,"Purée de poireaux","Purée de poireaux","Poireaux béchamel"]
[]
[null,null,"ZZPurée pomme abricot sec mais","Fromage blanc\nZZPurée pomme abricot sec mais","Far nature"]
[null,null,"Fromage frais\nPurée de pomme","Saint Paulin\nZZPurée de pomme b","Saint Paulin\nPomme (bicolore) b"]
["samedi",null,null,null,"Salade nicarde."]
[null,null,"Emincé de dinde","Emincé de dinde","Emincé de dinde"]
[null,null,"Purée d'haricot vert","Purée d'haricot vert","Haricot beurre"]
[null,null,null,"Emmental","Emmental"]
[null,null,"ZZPurée de pomme m","ZZPurée de pomme m","Pomme (bicolore)"]
[null,null,"Fromage blanc\nPurée de pêches","Fromage blanc\nPurée de pêches","Fromage blanc\nPurée de pêches"]
[]
[]
["lundi",null,null,null,"Macédoine de légumes",null,null,null,{"$f":"Z_TITRE_CrecheA","v":"H56 CRECHE MARY POPPINS"},null,null,null,null,null,5]
[null,null,"Emincé de poulet","Emincé de poulet","Tajine de poulet aux raisins",null,null,null,null,null,null,"Plan Alimentaire n° : ",3]
[null,null,"Purée pdt b épinards","Purée pdt bépinards/boulgour","Semoule b",null,null,null,"Semaine n°14 - du 30 mars au 3 avril"]
[null,null,null,"Tomme blanche","Tomme blanche"]
[null,null,"Purée de pommes vanille m","Purée de pommes vanille m","Pomme (bicolore)"]
[null,null,"Fromage frais\nPurée de pomme coing","Fromage frais\nPurée de pomme coing","Fromage frais\nPurée de pomme coing"]
["mardi",null,null,null,"Salade de riz niçois"]
[null,null,"Egréné de boeuf au bouillon","Egréné de boeuf au bouillon","Boeuf aux oignons confits"]
[null,null,"Purée pdt b petits pois","Purée pdt b petits pois","Petits pois à la francaise","Effectifs","Effectifs"]
[null,null,null,"Edam","Edam"]
[null,null,"ZZPurée de pomme orange m","ZZPurée de pomme orange m","Orange b"]
[null,null,"Yaourt nature\nPurée de pomme pruneaux","Yaourt nature\nPurée pomme pruneau m","Yaourt nature\nPurée pomme pruneau m"]
["mercredi",null,null,null,"Salade de carotte et cèleri"]
[null,null,"Pavé de hoki","Pavé de hoki","Pavé de hoki / citron"]
[null,null,"Purée pdt b haricot vert","Purée pdt b haricot vert","Haricot vert"]
[]
[null,null,"Purée pomme banane","Floraline au lait b","Floraline au lait b"]
[null,null,"Fromage blanc.\nPurée de poires","Gouda\nPurée pomme poire m","Gouda\nPoire"]
["jeudi",null,null,null,"Toast à la sardine"]
[null,null,"Sauté de porc\nEgréné de boeuf au bouillon","Sauté de porc\nEgréné de boeuf au bouillon","Sauté de porc au paprika\nEgréné de boeuf au bouillon"]
[null,null,"Purée pdt b carotte","Purée pdt b carotte","Julienne de légumes"]
[]
[null,null,"Purée de pommes m","Entremet chocolat b","Entremet chocolat b"]
[null,null,"Fromage frais\nPurée de pomme coing","St Moret\nPurée de pomme coing","St Moret\nPurée de pomme coing"]
["vendredi",null,null,null,"Segment pamplemousse"]
[null,null,"Blanc de poulet rôti","Omelette m","Omelette m aux herbes"]
[null,null,"Purée pdt b betterave","Purée pdt b betterave","Pomme de terre frrestière"]
[null,null,null,"Coulommiers","Coulommiers"]
[null,null,"ZZPurée pomme abricot sec mais","ZZPurée pomme abricot sec mais","ZZPurée pomme abricot sec mais"]
[null,null,"Yaourt nature\nPurée de pomme","Yaourt nature\nPurée de pommes m","Yaourt nature\nPomme (bicolore)"]
["samedi",null,null,null,"Salade de torti basilic"]
[null,null,"Filet de colin","Filet de colin","Filet de colin concarnoise"]
[null,null,"Purée de poireaux","Purée de poireaux","Brocoli béchamel"]
[null,null,null,"Camembert","Camembert"]
[null,null,"Purée pomme banane","Banane","Banane"]
[null,null,"Fromage frais\nPurée de pomme pruneaux","Fromage frais\nPurée pomme pruneau m","Fromage frais\nPurée pomme pruneau m"]
[]
[]
["lundi",null,null,null,null,null,null,null,{"$f":"Z_TITRE_CrecheA","v":"H56 CRECHE MARY POPPINS"},null,null,null,null,null,6]
[null,null,null,null,null,null,null,null,null,null,null,"Plan Alimentaire n° : ",3]
[null,null,null,null,null,null,"Effectifs",null,"Semaine n°15 - du 6 avril au 10 avril"]
[]
[]
[]
["mardi",null,null,null,"Taboulé",null,null,null,null,null,null,"Carnaval,…"]
[null,null,"Filet de lieu","Filet de lieu","Filet de colin basquaise"]
[null,null,"Purée pdt b haricot beurre","Purée pdt b haricot beurre","Haricot beurre"]
[null,null,null,"Saint Paulin","Saint Paulin"]
[null,null,"Purée de pommes m","Purée de pommes m","Pomme (bicolore)"]
[null,null,"Fromage blanc\nPurée de pomme coing","Bouillie Bretonne b\nPurée de pomme coing","Bouillie Bretonne b\nPurée de pomme coing"]
["mercredi",null,null,null,"Betterave ciboulette"]
[null,null,"Egréné de boeuf au bouillon","Egréné de boeuf au bouillon","Chili con carne et riz"]
[null,null,"Purée de poireaux","Purée de poireaux/riz"]
[null,null,null,"Mimolette","Mimolette"]
[null,null,"Purée pomme banane","Purée pomme banane","Kiwi"]
[null,null,"Yaourt nature\nPurée de pomme","Yaourt nature\nPurée de pomme épicée m","Yaourt nature\nPurée de pomme épicée m"]
["jeudi",null,null,null,"Concombre ciboulette"]
[null,null,"Pavé de hoki","Pavé de hoki","Pavé de hoki au basilic"]
[null,null,"Purée pdt b carotte","Purée pdt b carotte","Duo de carottes"]
[]
[null,null,"Purée pomme poire m","Semoule au lait b.","Semoule au lait b."]
[null,null,"Emmental\nPurée de pêches","Emmental\nZZPurée de pomme m","Emmental\nZZPurée de pomme m"]
["vendredi",null,null,null,"Gaspacho"]
[null,null,"Jambon blanc\nEgréné de boeuf au bouillon","Jambon blanc\nEgréné de boeuf au bouillon","Jambon blanc\nEgréné de boeuf au bouillon"]
[null,null,"Purée pdt b courgette","Purée pdt b courgette/pâtes","Coquillette"]
[null,null,null,null,"Fromage frais"]
[null,null,"ZZPurée de pomme rhubarbe mais","ZZPurée de pomme rhubarbe mais","Orange b"]
[null,null,"Fromage frais\nPurée de pomme pruneaux","Rondelé nature\nPurée pomme pruneau m","Rondelé nature\nPurée pomme pruneau m"]
["samedi",null,null,null,"Macédoine de légumes"]
[null,null,"Blanc de dinde rôti","Blanc de dinde rôti","Blanc de dinde rôti"]
[null,null,"Purée de betterave","Purée de betterave","Pomme vapeur"]
[null,null,null,"Cotentin nature","Cotentin nature"]
[null,null,"Purée de poires","Purée de poires","Poire","Effectifs","Effectifs"]
[null,null,"Fromage blanc\nPurée de pomme coing","Fromage blanc\nPurée de pomme coing","Fromage blanc\nPurée de pomme coing"]
[]
[]
["lundi",null,"Salade de coquilettes BIO au surimi\nSalade de coquillettes BIO à la savoyarde",null,null,null,null,null,{"$f":"Z_TITRE_CrecheA","v":"H56 CRECHE MARY POPPINS"},null,null,null,null,null,7]
[null,null,"Oeufs durs béchamel",null,null,null,null,null,null,null,null,"Plan Alimentaire n° : ",3]
[null,null,"Epinards béchamel",null,null,null,null,null,"Semaine n°16 - du 13 avril au 17 avril"]
[null,null,"Montboissier\nFraidou"]
[]
[null,null,"Poire Willam's\nPomme Rouge  Royal Gala"]
["mardi",null,"Salade de chou fleur (à assaisonner)\nSalade de haricots verts (assaisonnée)"]
[null,null,"Cordon bleu"]
[null,null,"Flageolets à la tomate"]
[null,null,"Brie\nCantadou ail et fines herbes"]
[]
[null,null,"Pomme bicolore BIO\nBIO - Orange"]
["mercredi"]
[]
[]
[]
[]
[]
["jeudi",null,"Laitue iceberg"]
[null,null,"Gigot d'agneau sauce orientale"]
[null,null,"Semoule BIO"]
[]
[null,null,"Croc'lait"]
[null,null,"Cocktail de fruits au sirop"]
["vendredi",null,"Céleri rémoulade\nSalade verte"]
[null,null,"Poisson blanc gratiné au fromage"]
[null,null,"Brocolis aux saveurs du midi"]
[null,null,"Yaourt aromatisé\nYaourt nature sucré"]
[null,null,null,null,null,"Effectifs","Effectifs"]
[null,null,"Tarte au flan LOCAL (74)\nGâteau au chocolat"]
["samedi"]
[]
[]
[]
[]
[]
[]
[]
["lundi",null,null,null,"Salade antillaise",null,null,null,{"$f":"Z_TITRE_CrecheA","v":"H56 CRECHE MARY POPPINS"},null,null,null,null,null,8]
[null,null,"Egréné de boeuf au bouillon","Egréné de boeuf au bouillon","Courgette au boeuf",null,null,null,null,null,null,"Plan Alimentaire n° : ",3]
[null,null,"Purée pdt b courgette","Purée pdt b courgette",null,null,null,null,"Semaine n°17 - du 20 avril au 24 avril"]
[null,null,null,"Saint Paulin","Saint Paulin"]
[null,null,"Purée de pommes m","Purée de pommes m","Pomme (bicolore) b"]
[null,null,"Yaourt nature\nPurée de pêches","Yaourt nature\nPurée pomme framboise m","Yaourt nature\nPurée pomme framboise m"]
["mardi",null,"Potage de poireaux","Potage de poireaux","Concombre persillé"]
[null,null,"Cube de saumon","Cube de saumon","Cube de saumon sauce piperade"]
[null,null,null,null,"Pomme vapeur"]
[null,null,null,"Fromage frais","Fromage frais"]
[null,null,"Purée pomme abricot sec m","Smoothie carotte abricot","Smoothie carotte abricot"]
[null,null,"Fromage frais\nPurée de pomme","Rondelé nature\nPurée de pommes vanille m","Rondelé nature\nKiwi"]
["mercredi",null,null,null,"Betterave persillée\nTarte à la tomate et chèvre"]
[null,null,"Blanc de poulet rôti","Blanc de poulet rôti"]
[null,null,"Purée pdt b épinards","Purée pdt b épinards","Brunoise de légumes"]
[null,null,null,"Fromage fondu Président"]
[null,null,"Riz au lait b.","Riz au lait b.","Riz au lait b."]
[null,null,"Fromage blanc\nPurée de poires","Fromage blanc\nPurée pomme poire m","Fromage blanc\nPoire"]
["jeudi",null,null,null,"Crème de pois menthe glacé"]
[null,null,"Rôti de porc\nPavé de hoki","Rôti de porc\nPavé de hoki","Rôti de porc à l'estragon\nPavé de hoki"]
[null,null,"Purée pdt b haricot beurre","Purée pdt bharicot beur/pâte","Torti"]
[null,null,null,"Brie","Brie"]
[null,null,"Purée pomme orange m","Purée pomme orange m","Orange b","Effectifs","Effectifs"]
[null,null,"Fromage frais\nPurée de pomme coing","Fromage frais\nPurée de pomme coing","Fromage frais\nPurée de pomme coing"]
["vendredi",null,null,null,"Salade de tomate féta"]
[null,null,"Blanc de poulet rôti","Blanc de poulet rôti","Blanc de poulet sauce crème à l'origan"]
[null,null,"Purée pdt b carotte","Purée pdt b carotte","Carotte"]
[null,null,null,"Vache qui rit","Vache qui rit"]
[null,null,"Purée de pomme rhubarbe m","Purée de pomme rhubarbe m","Purée de pomme rhubarbe m"]
[null,null,"Fromage blanc\nPurée de pomme","Bouillie Bretonne b\nPurée de pommes m","Bouillie Bretonne b\nPomme (bicolore)"]
["samedi",null,null,null,"Chou-fleur."]
[null,null,"Egréné de boeuf au bouillon","Egréné de boeuf au bouillon","Boeuf à la mexicaine"]
[null,null,"Purée d'haricot vert","Purée d'haricot vert/semoule","Semoule"]
[null,null,null,"Yaourt nature","Yaourt nature"]
[null,null,"Purée pomme poire m","Purée pomme poire m","Poire"]
[null,null,"Yaourt nature\nPurée de pomme pruneaux","Emmental\nPurée de pomme pruneaux","Emmental\nPurée de pomme pruneaux"]
[]
[]
["lundi",null,null,null,null,null,null,null,{"$f":"Z_TITRE_CrecheA","v":"H56 CRECHE MARY POPPINS"},null,null,null,null,null,9]
[null,null,null,null,null,null,null,null,null,null,null,"Plan Alimentaire n° : ",3]
[null,null,null,null,null,null,null,null,"Semaine du tant au tant"]
[]
[]
[]
["mardi"]
[]
[]
[]
[]
[]
["mercredi"]
[]
[]
[]
[null,null,null,null,null,"Effectifs","Effectifs"]
[]
["jeudi"]
[]
[]
[]
[]
[]
["vendredi"]
[]
[]
[]
[]
[]
["samedi"]
[]
[]
[]
[]
[]
[]
[]
["lundi",null,null,null,null,null,null,null,{"$f":"Z_TITRE_CrecheA","v":"H56 CRECHE MARY POPPINS"},null,null,null,null,null,10]
[null,null,null,null,null,null,null,null,null,null,null,"Plan Alimentaire n° : ",3]
[null,null,null,null,null,null,null,null,"Semaine du tant au tant"]
[]
[]
[]
["mardi"]
[]
[]
[]
[]
[]
["mercredi"]
[null,null,null,null,null,"Effectifs","Effectifs"]
[]
[]
[]
[]
["jeudi"]
[]
[]
[]
[]
[]
["vendredi"]
[]
[]
[]
[]
[]
["samedi"]
[]
[]
[]
[]
[]
[]
[]
["lundi",null,null,null,null,null,null,null,{"$f":"Z_TITRE_CrecheA","v":"H56 CRECHE MARY POPPINS"},null,null,null,null,null,11]
[null,null,null,null,null,null,null,null,null,null,null,"Plan Alimentaire n° : ",3]
[null,null,null,null,null,null,null,null,"Semaine du tant au tant"]
[]
[]
[]
["mardi"]
[]
[]
[]
[]
[]
["mercredi"]
[]
[]
[]
[]
[]
["jeudi"]
[]
[]
[]
[]
[]
["vendredi"]
[]
[]
[]
[]
[]
["samedi"]
[]
[]
[]
[]
[]
[]
[]
["lundi",null,null,null,null,null,null,null,{"$f":"Z_TITRE_CrecheA","v":"H56 CRECHE MARY POPPINS"},null,null,null,null,null,12]
[null,null,null,null,null,null,null,null,null,null,null,"Plan Alimentaire n° : ",3]
[null,null,null,null,null,null,null,null,"Semaine du tant au tant"]
[]
[]
[]
["mardi"]
[]
[]
[]
[]
[]
["mercredi"]
[]
[]
[]
[]
[]
["jeudi"]
[]
[]
[]
[]
[]
["vendredi"]
[]
[]
[]
[]
[]
["samedi"]

{"sheet":"Menu CollegeA","index":22,"n_rows":214,"n_cols":12,"rows_kept":214,"cut":false,"hidden":true,"merged":[[214,8,215,10],[209,8,209,9],[210,8,210,9],[207,8,208,9],[177,1,177,6],[184,2,184,6],[195,8,195,10],[192,8,192,9],[195,1,195,6],[213,1,213,6],[213,8,213,10],[196,8,197,10],[199,2,200,6],[189,8,190,9],[181,2,182,6],[202,2,202,6],[177,8,177,10],[174,8,174,9],[191,8,191,9],[178,8,179,10],[135,8,136,9],[138,8,138,9],[173,8,173,9],[171,8,172,9],[160,8,161,10],[142,8,143,10],[156,8,156,9],[137,8,137,9],[124,8,125,10],[148,2,148,6],[145,2,146,6],[130,2,130,6],[127,2,128,6],[166,2,166,6],[159,1,159,6],[159,8,159,10],[163,2,164,6],[141,1,141,6],[141,8,141,10],[153,8,154,9],[155,8,155,9],[109,2,110,6],[123,1,123,6],[112,2,112,6],[88,8,89,10],[91,2,92,6],[105,1,105,6],[102,8,102,9],[105,8,105,10],[106,8,107,10],[120,8,120,9],[117,8,118,9],[99,8,100,9],[101,8,101,9],[119,8,119,9],[123,8,123,10],[66,8,66,9],[65,8,65,9],[63,8,64,9],[58,2,58,6],[94,2,94,6],[84,8,84,9],[87,8,87,10],[87,1,87,6],[81,8,82,9],[83,8,83,9],[73,2,74,6],[69,1,69,6],[70,8,71,10],[76,2,76,6],[69,8,69,10],[55,2,56,6],[33,1,33,6],[40,2,40,6],[52,8,53,10],[22,2,22,6],[33,8,33,10],[34,8,35,10],[51,8,51,10],[48,8,48,9],[45,8,46,9],[47,8,47,9],[51,1,51,6],[37,2,38,6],[1,2,2,6],[4,2,4,6],[15,1,15,6],[30,8,30,9],[9,8,10,9],[16,8,17,10],[11,8,11,9],[12,8,12,9],[15,8,15,10],[19,2,20,6],[29,8,29,9],[27,8,28,9]]}
[]
[null,null,"ECOLE DE BROCELIANDE"]
[]
[]
[null,null,"Semaine n°10 - du 2 mars au 6 mars"]
[]
[null,"Plan alimentaire 3"]
[]
[null,"Entrées",null,null,null,null,null,null,null,null,null,1]
[null,"Plat principal","Sauté de porc sauce colombo\nEscalope de dinde au jus.","Colin meunière citron",null,"Omelette","Bœuf sauté aux oignons"]
[null,"Accompagnement","Riz bio pilaf","Ratatouille",null,"Pommes rissolées","Coquillettes bio"]
[null,"Fromages & Produits laitiers","Cantafrais","Yaourt nature sucré",null,"Camembert","Rondelé nature"]
[null,"Desserts","Crème dessert à la vanille","Pomme (bicolore) BIO",null,"Kiwi BIO","Flan au chocolat"]
[]
[]
[null,"Toute l'équipe vous souhaite un bon appétit !"]
[]
[]
[]
[null,null,{"$f":"$C$2","v":"ECOLE DE BROCELIANDE"}]
[]
[]
[null,null,"Semaine n°11 - du 9 mars au 13 mars"]
[]
[null,"Plan alimentaire 3"]
[]
[null,"Entrées",null,null,null,null,null,null,null,null,null,2]
[null,"Plat principal","Escalope de poulet à estragon","Tortis BIO bolognaise",null,"Cassoulet\nOmelette aux PDT","Filet colin sauce normande",null,"Miam miam, des bonnes frites à l'ancienne !"]
[null,"Accompagnement","Haricots verts bio",null,null,null,"Julienne de légumes"]
[null,"Fromages & Produits laitiers","Emmental..","Pavé 1/2 sel",null,"Fromage fondu Président","Brie"]
[null,"Desserts","Orange","Liégeois à la vanille",null,"Compote de pommes","Banane BIO"]
[]
[]
[null,"Toute l'équipe vous souhaite un bon appétit !"]
[]
[]
[]
[null,null,{"$f":"$C$2","v":"ECOLE DE BROCELIANDE"}]
[]
[]
[null,null,"Semaine n°12 - du 16 mars au 20 mars"]
[]
[null,"Plan alimentaire 3"]
[]
[null,"Entrées",null,null,null,null,null,null,null,null,null,3]
[null,"Plat principal","Lasagnes à la bolognaise","Escalope poulet sce tomate",null,"Sauté de porc sauce curry\nOmelette","Filet colin sce citron",null,"Vive la galette des rois !"]
[null,"Accompagnement","Salade verte.","Frites au four",null,"Courgettes aux épices","Pdt et haricot beurre"]
[null,"Fromages & Produits laitiers","Yaourt aromatisé","Vache qui rit",null,"Cheddar","Coulommiers"]
[null,"Desserts","Pomme (bicolore)","Flan nappé au caramel",null,"Kiwi BIO","Orange BIO"]
[]
[]
[null,"Toute l'équipe vous souhaite un bon appétit !"]
[]
[]
[]
[null,null,{"$f":"$C$2","v":"ECOLE DE BROCELIANDE"}]
[]
[]
[null,null,"Semaine n°13 - du 23 mars au 27 mars"]
[]
[null,"Plan alimentaire 3"]
[]
[null,"Entrées",null,null,null,null,null,null,null,null,null,4]
[null,"Plat principal","Sauté de boeuf sauce citron","Filet colin sauce crevettes",null,"Steak haché au jus","Jambon braisé sce chasseur\nEscalope de dinde au jus."]
[null,"Accompagnement","Carottes bio braisées","Riz bio créole",null,"Macaroni bio","Haricots verts bio"]
[null,"Fromages & Produits laitiers","Yaourt nature sucré","Edam",null,"Brie","Fromage blanc sucré"]
[null,"Desserts","Barre bretonne","Pomme (bicolore) BIO",null,"Mousse au chocolat au lait","Banane",null,"Sauté de boeuf sauce citron : pomme de terre, thon, oignon, persil"]
[]
[]
[null,"Toute l'équipe vous souhaite un bon appétit !"]
[]
[]
[]
[null,null,{"$f":"$C$2","v":"ECOLE DE BROCELIANDE"}]
[]
[]
[null,null,"Semaine n°1 - du 29 décembre au 2 janvier"]
[]
[null,"Plan alimentaire 3"]
[]
[null,"Entrées",null,null,null,null,null,null,null,null,null,5]
[null,"Plat principal"]
[null,"Accompagnement"]
[null,"Fromages & Produits laitiers"]
[null,"Desserts"]
[]
[]
[null,"Toute l'équipe vous souhaite un bon appétit !"]
[]
[]
[]
[null,null,{"$f":"$C$2","v":"ECOLE DE BROCELIANDE"}]
[]
[]
[null,null,"Semaine n°45 - du 3 novembre au 7 novembre"]
[]
[null,"Plan alimentaire 3"]
[]
[null,"Entrées",null,null,null,null,null,null,null,null,null,6]
[null,"Plat principal"]
[null,"Accompagnement"]
[null,"Fromages & Produits laitiers"]
[null,"Desserts"]
[]
[]
[null,"Toute l'équipe vous souhaite un bon appétit !"]
[]
[]
[]
[null,null,{"$f":"$C$2","v":"ECOLE DE BROCELIANDE"}]
[]
[]
[]
[]
[null,"Plan alimentaire 3"]
[]
[null,"Entrées",null,null,null,null,null,null,null,null,null,7]
[null,"Plat principal"]
[null,"Accompagnement"]
[null,"Fromages & Produits laitiers"]
[null,"Desserts"]
[]
[]
[null,"Toute l'équipe vous souhaite un bon appétit !"]
[]
[]
[]
[null,null,{"$f":"$C$2","v":"ECOLE DE BROCELIANDE"}]
[]
[]
[]
[]
[null,"Plan alimentaire 3"]
[]
[null,"Entrées",null,null,null,null,null,null,null,null,null,8]
[null,"Plat principal"]
[null,"Accompagnement"]
[null,"Fromages & Produits laitiers"]
[null,"Desserts"]
[]
[]
[null,"Toute l'équipe vous souhaite un bon appétit !"]
[]
[]
[]
[null,null,{"$f":"$C$2","v":"ECOLE DE BROCELIANDE"}]
[]
[]
[]
[]
[null,"Plan alimentaire 3"]
[]
[null,"Entrées",null,null,null,null,null,null,null,null,null,9]
[null,"Plat principal"]
[null,"Accompagnement"]
[null,"Fromages & Produits laitiers"]
[null,"Desserts"]
[]
[]
[null,"Toute l'équipe vous souhaite un bon appétit !"]
[]
[]
[]
[null,null,{"$f":"$C$2","v":"ECOLE DE BROCELIANDE"}]
[]
[]
[]
[]
[null,"Plan alimentaire 3"]
[]
[null,"Entrées",null,null,null,null,null,null,null,null,null,10]
[null,"Plat principal"]
[null,"Accompagnement"]
[null,"Fromages & Produits laitiers"]
[null,"Desserts"]
[]
[]
[null,"Toute l'équipe vous souhaite un bon appétit !"]
[]
[]
[]
[null,null,{"$f":"$C$2","v":"ECOLE DE BROCELIANDE"}]
[]
[]
[]
[]
[null,"Plan alimentaire 3"]
[]
[null,"Entrées",null,null,null,null,null,null,null,null,null,11]
[null,"Plat principal"]
[null,"Accompagnement"]
[null,"Fromages & Produits laitiers"]
[null,"Desserts"]
[]
[]
[null,"Toute l'équipe vous souhaite un bon appétit !"]
[]
[]
[]
[null,null,{"$f":"$C$2","v":"ECOLE DE BROCELIANDE"}]
[]
[]
[]
[]
[null,"Plan alimentaire 3"]
[]
[null,"Entrées",null,null,null,null,null,null,null,null,null,12]
[null,"Plat principal"]
[null,"Accompagnement"]
[null,"Fromages & Produits laitiers"]
[null,"Desserts"]
[]
[]
[null,"Toute l'équipe vous souhaite un bon appétit !"]

{"sheet":"DATA","index":23,"n_rows":790,"n_cols":31,"rows_kept":790,"cut":false,"hidden":true,"merged":[[0,29,0,30],[0,19,0,20],[0,15,0,16],[0,22,0,23],[0,26,0,27]]}
["Lignes de menu",null,null,null,null,null,null,null,null,null,null,null,null,"Onglets de type Maquette de Menu (calculé automatiquement)",null,"Codes convives (données SQL)",null,"N° Convives exclus",null,"Codes prestations (données SQL)",null,null,"Restaurants (ELIXIR) - Points de vente (HELIOS)",null,null,null,"Contrat",null,null,"Menus (SQL Express seulement)"]
[null,null,null,null,null,null,null,null,null,"MFJ_PLAT_GPEMDA",null,null,null,null,null,"RAC_PERSIST_IDT","TCF_LIB",null,null,"RAC_PERSIST_IDT","PRM_LIB",null,null,null,null,null,"RAC_PERSIST_IDT","CDP_LIB",null,"RAC_PERSIST_IDT","MFO_CODE"]
["VUE_DTE","VUE_PRC (code prestation déjuener/diner)","VUE_FAP (code fam. Plat)","VUE_PCL","VUE_IDT (code unique du plat dont VUE_CPL est le libellé)","VUE_CVE (convive)","VUE_RES (code resto)","VUE_ORD (ordre du plat)","Nouveau rang (calculé)",null,"Allergène","VUE_FLG",null,null,null,"TPA_PK_IDT","TPA_LIBELLE",null,null,"TPA_PK_IDT","TPA_LIBELLE",null,"LIU_ID","LIU_DESC",null,null,"CON_ID","CON_LIB"]
[42763,3,1,"Duo de betteraves et tomates",10011990,5,0,1,0,0,null,null,{"$f":"A4+2","v":"2017-01-30"},"Menu Hebdo",null,2,"Adulte",81,null,3,"Déjeuner",null,4538,"SAINT SYLVESTRE",null,null,2828,"Déjeuner adulte",null,36478,"MENUS ST PIERRE J F"]
[42763,3,1,"Salade chef",10012408,5,0,1,0,0,"A",null,{"$f":"A5+2","v":"2017-01-30"},"Menu Hebdo Douceurs",null,8,"Bébé 6 à 12 mois",null,null,5,"Diner",null,4542,"ELRES CASSENEUIL",null,null,2829,"Déjeuner collège",null,35323,"MENUS ST PIERRE J F"]
[42763,3,1,"Trio de saucissons",10326759,5,0,1,0,0,"IFA",null,"2017-01-30","Menu Jour",null,5,"Collège",null,null,null,null,null,null,null,null,null,2830,"Déjeuner maternelle",null,40394,"MENUS ST PIERREMA"]
[42763,3,2,"Rôti de dinde au jus",10015404,5,0,2,1,0,"A",null,"2017-01-30","Menu Mensuel Elior",null,11,"Convives Vacances",null,null,null,null,null,null,null,null,null,2831,"Déjeuner primaire"]
[42763,3,3,"Petits pois à la française",10013254,5,0,3,2,0,"A",null,"2017-01-30","Menu Mensuel Elior NB",null,6,"Lycée"]
[42763,3,4,"Edam",10011446,5,0,4,3,0,"A",null,"2017-01-30","Menu Mensuel Elior s_goûter",null,3,"Maternelle"]
[42763,3,4,"Fraidou",10011491,5,0,4,3,0,"A",null,"2017-01-30","Menu TauxPrise",null,10,"Moyen  plus de 18 mois"]
[42763,3,4,"Yaourt nature",10011507,5,0,4,3,0,"A",null,"2017-01-30","Menu Liste Mixé",null,7,"Nourisson 0 à 6 mois"]
[42763,3,4,"Tartare ail et fines herbes",10011569,5,0,4,3,0,"A",null,"2017-01-30","Menu Mensuel Dej-Diner",null,12,"Personnes agées midi"]
[42763,3,5,"Fruit de saison",10010426,5,0,5,4,0,null,null,"2017-01-30","Menu Hebdo Dej-Gouter",null,20,"Personnes agées soir"]
[42763,3,5,"Tartelette au chocolat",10010490,5,0,5,4,0,"FBAC",null,"2017-01-30","Menu RPA Dej",null,9,"Petit 12 à 18 mois"]
[42763,3,5,"flan nappé caramel",10010609,5,0,5,4,0,"A",null,"2017-01-30","Menu RPA Hebdo",null,4,"Primaire"]
[42764,3,1,"Tomate au surimi",10011753,5,0,1,0,0,"DFEICB",null,"2017-01-31","Menu Etiquettes"]
[42764,3,1,"salade thaî croquante",10013134,5,0,1,0,0,"DIFBCE",null,"2017-01-31","Menu SCV"]
[42764,3,1,"Salade chinoise",10040435,5,0,1,0,0,null,null,"2017-01-31","Menu Mensuel"]
[42764,3,2,"Nems au poulet",10015638,5,0,2,1,0,"FDB",null,"2017-01-31","MaquetteAllergenes"]
[42764,3,3,"Riz cantonnais",10013313,5,0,3,2,0,"CA",null,"2017-01-31"]
[42764,3,4,"Edam",10011464,5,0,4,3,0,"A",null,"2017-01-31"]
[42764,3,4,"Fondu Président",10011495,5,0,4,3,0,"AC",null,"2017-01-31"]
[42764,3,4,"Cotentin",10011531,5,0,4,3,0,"A",null,"2017-01-31"]
[42764,3,5,"Cocktail de fruits",10010337,5,0,5,4,0,null,null,"2017-01-31"]
[42764,3,5,"Ananas au sirop",10010340,5,0,5,4,0,null,null,"2017-01-31"]
[42764,3,5,"Fruit de saison",10010426,5,0,5,4,0,null,null,"2017-01-31"]
[42766,3,1,"Concombre Local vinaigrette",10011924,5,0,1,0,0,null,null,"2017-02-02"]
[42766,3,1,"Salade club",10011940,5,0,1,0,0,"A",null,"2017-02-02"]
[42766,3,1,"Assiette de crudités",10012548,5,0,1,0,0,"L",null,"2017-02-02"]
[42766,3,2,"Brochette de dinde",10015142,5,0,2,1,0,null,null,"2017-02-02"]
[42766,3,3,"Potatoes spicy",10013720,5,0,3,2,0,"F",null,"2017-02-02"]
[42766,3,4,"Brie",10011436,5,0,4,3,0,"A",null,"2017-02-02"]
[42766,3,4,"Mimolette",10011448,5,0,4,3,0,"A",null,"2017-02-02"]
[42766,3,5,"Fruit de saison",10010426,5,0,5,4,0,null,null,"2017-02-02"]
[42766,3,5,"Yaourt aromatisé",10010617,5,0,5,4,0,"A",null,"2017-02-02"]
[42766,3,5,"Fromage Blanc Sucré",11063514,5,0,5,4,0,"A",null,"2017-02-02"]
[42767,3,1,"Pamplemousse",10011731,5,0,1,0,0,null,null,"2017-02-03"]
[42767,3,1,"Galantine de volaille",10011766,5,0,1,0,0,"I",null,"2017-02-03"]
[42767,3,1,"Salade de pâtes au surimi",10011950,5,0,1,0,0,"EBIFCMD",null,"2017-02-03"]
[42767,3,2,"Calamars à la romaine",10014952,5,0,2,1,0,"OF",null,"2017-02-03"]
[42767,3,3,"Poêlée de légumes",10013711,5,0,3,2,0,"A",null,"2017-02-03"]
[42767,3,4,"Gouda",10011447,5,0,4,3,0,"A",null,"2017-02-03"]
[42767,3,4,"Yaourt nature",10011507,5,0,4,3,0,"A",null,"2017-02-03"]
[42767,3,4,"Tartare ail et fines herbes",10011569,5,0,4,3,0,"A",null,"2017-02-03"]
[42767,3,5,"Flan à la vanille",10010267,5,0,5,4,0,"A",null,"2017-02-03"]
[42767,3,5,"Fruit de saison",10010426,5,0,5,4,0,null,null,"2017-02-03"]
[42767,3,5,"flan chocolat",10011022,5,0,5,4,0,"A",null,"2017-02-03"]
[null,null,null,null,null,null,null,null,null,null,null,null,"1900-01-02"]
[null,null,null,null,null,null,null,null,null,null,null,null,"1900-01-02"]
[null,null,null,null,null,null,null,null,null,null,null,null,"1900-01-02"]
[null,null,null,null,null,null,null,null,null,null,null,null,"1900-01-02"]
[null,null,null,null,null,null,null,null,null,null,null,null,"1900-01-02"]
[null,null,null,null,null,null,null,null,null,null,null,null,"1900-01-02"]
[null,null,null,null,null,null,null,null,null,null,null,null,"1900-01-02"]
[null,null,null,null,null,null,null,null,null,null,null,null,"1900-01-02"]
[null,null,null,null,null,null,null,null,null,null,null,null,"1900-01-02"]
[null,null,null,null,null,null,null,null,null,null,null,null,"1900-01-02"]
[null,null,null,null,null,null,null,null,null,null,null,null,"1900-01-02"]
[null,null,null,null,null,null,null,null,null,null,null,null,"1900-01-02"]
[null,null,null,null,null,null,null,null,null,null,null,null,"1900-01-02"]
[null,null,null,null,null,null,null,null,null,null,null,null,"1900-01-02"]
[null,null,null,null,null,null,null,null,null,null,null,null,"1900-01-02"]
[null,null,null,null,null,null,null,null,null,null,null,null,"1900-01-02"]
[null,null,null,null,null,null,null,null,null,null,null,null,"1900-01-02"]
[null,null,null,null,null,null,null,null,null,null,null,null,"1900-01-02"]
[null,null,null,null,null,null,null,null,null,null,null,null,"1900-01-02"]
[null,null,null,null,null,null,null,null,null,null,null,null,"1900-01-02"]
[null,null,null,null,null,null,null,null,null,null,null,null,"1900-01-02"]
[null,null,null,null,null,null,null,null,null,null,null,null,{"$f":"A69+2","v":"1900-01-02"}]
[null,null,null,null,null,null,null,null,null,null,null,null,"1900-01-02"]
[null,null,null,null,null,null,null,null,null,null,null,null,"1900-01-02"]
[null,null,null,null,null,null,null,null,null,null,null,null,"1900-01-02"]
[null,null,null,null,null,null,null,null,null,null,null,null,"1900-01-02"]
[null,null,null,null,null,null,null,null,null,null,null,null,"1900-01-02"]
[null,null,null,null,null,null,null,null,null,null,null,null,"1900-01-02"]
[null,null,null,null,null,null,null,null,null,null,null,null,"1900-01-02"]
[null,null,null,null,null,null,null,null,null,null,null,null,"1900-01-02"]
[null,null,null,null,null,null,null,null,null,null,null,null,"1900-01-02"]
[null,null,null,null,null,null,null,null,null,null,null,null,"1900-01-02"]
[null,null,null,null,null,null,null,null,null,null,null,null,"1900-01-02"]
[null,null,null,null,null,null,null,null,null,null,null,null,"1900-01-02"]
[null,null,null,null,null,null,null,null,null,null,null,null,"1900-01-02"]
[null,null,null,null,null,null,null,null,null,null,null,null,"1900-01-02"]
[null,null,null,null,null,null,null,null,null,null,null,null,"1900-01-02"]
[null,null,null,null,null,null,null,null,null,null,null,null,"1900-01-02"]
[null,null,null,null,null,null,null,null,null,null,null,null,"1900-01-02"]
[null,null,null,null,null,null,null,null,null,null,null,null,"1900-01-02"]
[null,null,null,null,null,null,null,null,null,null,null,null,"1900-01-02"]
[null,null,null,null,null,null,null,null,null,null,null,null,"1900-01-02"]
[null,null,null,null,null,null,null,null,null,null,null,null,"1900-01-02"]
[null,null,null,null,null,null,null,null,null,null,null,null,"1900-01-02"]
[null,null,null,null,null,null,null,null,null,null,null,null,"1900-01-02"]
[null,null,null,null,null,null,null,null,null,null,null,null,"1900-01-02"]
[null,null,null,null,null,null,null,null,null,null,null,null,"1900-01-02"]
[null,null,null,null,null,null,null,null,null,null,null,null,"1900-01-02"]
[null,null,null,null,null,null,null,null,null,null,null,null,"1900-01-02"]
[null,null,null,null,null,null,null,null,null,null,null,null,"1900-01-02"]
[null,null,null,null,null,null,null,null,null,null,null,null,"1900-01-02"]
[null,null,null,null,null,null,null,null,null,null,null,null,"1900-01-02"]
[null,null,null,null,null,null,null,null,null,null,null,null,"1900-01-02"]
[null,null,null,null,null,null,null,null,null,null,null,null,"1900-01-02"]
[null,null,null,null,null,null,null,null,null,null,null,null,"1900-01-02"]
[null,null,null,null,null,null,null,null,null,null,null,null,"1900-01-02"]
[null,null,null,null,null,null,null,null,null,null,null,null,"1900-01-02"]
[null,null,null,null,null,null,null,null,null,null,null,null,"1900-01-02"]
[null,null,null,null,null,null,null,null,null,null,null,null,"1900-01-02"]
[null,null,null,null,null,null,null,null,null,null,null,null,"1900-01-02"]
[null,null,null,null,null,null,null,null,null,null,null,null,"1900-01-02"]
[null,null,null,null,null,null,null,null,null,null,null,null,"1900-01-02"]
[null,null,null,null,null,null,null,null,null,null,null,null,"1900-01-02"]
[null,null,null,null,null,null,null,null,null,null,null,null,"1900-01-02"]
[null,null,null,null,null,null,null,null,null,null,null,null,"1900-01-02"]
[null,null,null,null,null,null,null,null,null,null,null,null,"1900-01-02"]
[null,null,null,null,null,null,null,null,null,null,null,null,"1900-01-02"]
[null,null,null,null,null,null,null,null,null,null,null,null,"1900-01-02"]
[null,null,null,null,null,null,null,null,null,null,null,null,"1900-01-02"]
[null,null,null,null,null,null,null,null,null,null,null,null,"1900-01-02"]
[null,null,null,null,null,null,null,null,null,null,null,null,"1900-01-02"]
[null,null,null,null,null,null,null,null,null,null,null,null,"1900-01-02"]
[null,null,null,null,null,null,null,null,null,null,null,null,"1900-01-02"]
[null,null,null,null,null,null,null,null,null,null,null,null,"1900-01-02"]
[null,null,null,null,null,null,null,null,null,null,null,null,"1900-01-02"]
[null,null,null,null,null,null,null,null,null,null,null,null,"1900-01-02"]
[null,null,null,null,null,null,null,null,null,null,null,null,"1900-01-02"]
[null,null,null,null,null,null,null,null,null,null,null,null,"1900-01-02"]
[null,null,null,null,null,null,null,null,null,null,null,null,"1900-01-02"]
[null,null,null,null,null,null,null,null,null,null,null,null,"1900-01-02"]
[null,null,null,null,null,null,null,null,null,null,null,null,"1900-01-02"]
[null,null,null,null,null,null,null,null,null,null,null,null,"1900-01-02"]
[null,null,null,null,null,null,null,null,null,null,null,null,"1900-01-02"]
[null,null,null,null,null,null,null,null,null,null,null,null,"1900-01-02"]
[null,null,null,null,null,null,null,null,null,null,null,null,"1900-01-02"]
[null,null,null,null,null,null,null,null,null,null,null,null,{"$f":"A133+2","v":"1900-01-02"}]
[null,null,null,null,null,null,null,null,null,null,null,null,"1900-01-02"]
[null,null,null,null,null,null,null,null,null,null,null,null,"1900-01-02"]
[null,null,null,null,null,null,null,null,null,null,null,null,"1900-01-02"]
[null,null,null,null,null,null,null,null,null,null,null,null,"1900-01-02"]
[null,null,null,null,null,null,null,null,null,null,null,null,"1900-01-02"]
[null,null,null,null,null,null,null,null,null,null,null,null,"1900-01-02"]
[null,null,null,null,null,null,null,null,null,null,null,null,"1900-01-02"]
[null,null,null,null,null,null,null,null,null,null,null,null,"1900-01-02"]
[null,null,null,null,null,null,null,null,null,null,null,null,"1900-01-02"]
[null,null,null,null,null,null,null,null,null,null,null,null,"1900-01-02"]
[null,null,null,null,null,null,null,null,null,null,null,null,"1900-01-02"]
[null,null,null,null,null,null,null,null,null,null,null,null,"1900-01-02"]
[null,null,null,null,null,null,null,null,null,null,null,null,"1900-01-02"]
[null,null,null,null,null,null,null,null,null,null,null,null,"1900-01-02"]
[null,null,null,null,null,null,null,null,null,null,null,null,"1900-01-02"]
[null,null,null,null,null,null,null,null,null,null,null,null,"1900-01-02"]
[null,null,null,null,null,null,null,null,null,null,null,null,"1900-01-02"]
[null,null,null,null,null,null,null,null,null,null,null,null,"1900-01-02"]
[null,null,null,null,null,null,null,null,null,null,null,null,"1900-01-02"]
[null,null,null,null,null,null,null,null,null,null,null,null,"1900-01-02"]
[null,null,null,null,null,null,null,null,null,null,null,null,"1900-01-02"]
[null,null,null,null,null,null,null,null,null,null,null,null,"1900-01-02"]
[null,null,null,null,null,null,null,null,null,null,null,null,"1900-01-02"]
[null,null,null,null,null,null,null,null,null,null,null,null,"1900-01-02"]
[null,null,null,null,null,null,null,null,null,null,null,null,"1900-01-02"]
[null,null,null,null,null,null,null,null,null,null,null,null,"1900-01-02"]
[null,null,null,null,null,null,null,null,null,null,null,null,"1900-01-02"]
[null,null,null,null,null,null,null,null,null,null,null,null,"1900-01-02"]
[null,null,null,null,null,null,null,null,null,null,null,null,"1900-01-02"]
[null,null,null,null,null,null,null,null,null,null,null,null,"1900-01-02"]
[null,null,null,null,null,null,null,null,null,null,null,null,"1900-01-02"]
[null,null,null,null,null,null,null,null,null,null,null,null,"1900-01-02"]
[null,null,null,null,null,null,null,null,null,null,null,null,"1900-01-02"]
[null,null,null,null,null,null,null,null,null,null,null,null,"1900-01-02"]
[null,null,null,null,null,null,null,null,null,null,null,null,"1900-01-02"]
[null,null,null,null,null,null,null,null,null,null,null,null,"1900-01-02"]
[null,null,null,null,null,null,null,null,null,null,null,null,"1900-01-02"]
[null,null,null,null,null,null,null,null,null,null,null,null,"1900-01-02"]
[null,null,null,null,null,null,null,null,null,null,null,null,"1900-01-02"]
[null,null,null,null,null,null,null,null,null,null,null,null,"1900-01-02"]
[null,null,null,null,null,null,null,null,null,null,null,null,"1900-01-02"]
[null,null,null,null,null,null,null,null,null,null,null,null,"1900-01-02"]
[null,null,null,null,null,null,null,null,null,null,null,null,"1900-01-02"]
[null,null,null,null,null,null,null,null,null,null,null,null,"1900-01-02"]
[null,null,null,null,null,null,null,null,null,null,null,null,"1900-01-02"]
[null,null,null,null,null,null,null,null,null,null,null,null,"1900-01-02"]
[null,null,null,null,null,null,null,null,null,null,null,null,"1900-01-02"]
[null,null,null,null,null,null,null,null,null,null,null,null,"1900-01-02"]
[null,null,null,null,null,null,null,null,null,null,null,null,"1900-01-02"]
[null,null,null,null,null,null,null,null,null,null,null,null,"1900-01-02"]
[null,null,null,null,null,null,null,null,null,null,null,null,"1900-01-02"]
[null,null,null,null,null,null,null,null,null,null,null,null,"1900-01-02"]
[null,null,null,null,null,null,null,null,null,null,null,null,"1900-01-02"]
[null,null,null,null,null,null,null,null,null,null,null,null,"1900-01-02"]
[null,null,null,null,null,null,null,null,null,null,null,null,"1900-01-02"]
[null,null,null,null,null,null,null,null,null,null,null,null,"1900-01-02"]
[null,null,null,null,null,null,null,null,null,null,null,null,"1900-01-02"]
[null,null,null,null,null,null,null,null,null,null,null,null,"1900-01-02"]
[null,null,null,null,null,null,null,null,null,null,null,null,"1900-01-02"]
[null,null,null,null,null,null,null,null,null,null,null,null,"1900-01-02"]
[null,null,null,null,null,null,null,null,null,null,null,null,"1900-01-02"]
[null,null,null,null,null,null,null,null,null,null,null,null,"1900-01-02"]
[null,null,null,null,null,null,null,null,null,null,null,null,"1900-01-02"]
[null,null,null,null,null,null,null,null,null,null,null,null,{"$f":"A197+2","v":"1900-01-02"}]
[null,null,null,null,null,null,null,null,null,null,null,null,"1900-01-02"]
[null,null,null,null,null,null,null,null,null,null,null,null,"1900-01-02"]
[null,null,null,null,null,null,null,null,null,null,null,null,"1900-01-02"]
[null,null,null,null,null,null,null,null,null,null,null,null,"1900-01-02"]
[null,null,null,null,null,null,null,null,null,null,null,null,"1900-01-02"]
[null,null,null,null,null,null,null,null,null,null,null,null,"1900-01-02"]
[null,null,null,null,null,null,null,null,null,null,null,null,"1900-01-02"]
[null,null,null,null,null,null,null,null,null,null,null,null,"1900-01-02"]
[null,null,null,null,null,null,null,null,null,null,null,null,"1900-01-02"]
[null,null,null,null,null,null,null,null,null,null,null,null,"1900-01-02"]
[null,null,null,null,null,null,null,null,null,null,null,null,"1900-01-02"]
[null,null,null,null,null,null,null,null,null,null,null,null,"1900-01-02"]
[null,null,null,null,null,null,null,null,null,null,null,null,"1900-01-02"]
[null,null,null,null,null,null,null,null,null,null,null,null,"1900-01-02"]
[null,null,null,null,null,null,null,null,null,null,null,null,"1900-01-02"]
[null,null,null,null,null,null,null,null,null,null,null,null,"1900-01-02"]
[null,null,null,null,null,null,null,null,null,null,null,null,"1900-01-02"]
[null,null,null,null,null,null,null,null,null,null,null,null,"1900-01-02"]
[null,null,null,null,null,null,null,null,null,null,null,null,"1900-01-02"]
[null,null,null,null,null,null,null,null,null,null,null,null,"1900-01-02"]
[null,null,null,null,null,null,null,null,null,null,null,null,"1900-01-02"]
[null,null,null,null,null,null,null,null,null,null,null,null,"1900-01-02"]
[null,null,null,null,null,null,null,null,null,null,null,null,"1900-01-02"]
[null,null,null,null,null,null,null,null,null,null,null,null,"1900-01-02"]
[null,null,null,null,null,null,null,null,null,null,null,null,"1900-01-02"]
[null,null,null,null,null,null,null,null,null,null,null,null,"1900-01-02"]
[null,null,null,null,null,null,null,null,null,null,null,null,"1900-01-02"]
[null,null,null,null,null,null,null,null,null,null,null,null,"1900-01-02"]
[null,null,null,null,null,null,null,null,null,null,null,null,"1900-01-02"]
[null,null,null,null,null,null,null,null,null,null,null,null,"1900-01-02"]
[null,null,null,null,null,null,null,null,null,null,null,null,"1900-01-02"]
[null,null,null,null,null,null,null,null,null,null,null,null,"1900-01-02"]
[null,null,null,null,null,null,null,null,null,null,null,null,"1900-01-02"]
[null,null,null,null,null,null,null,null,null,null,null,null,"1900-01-02"]
[null,null,null,null,null,null,null,null,null,null,null,null,"1900-01-02"]
[null,null,null,null,null,null,null,null,null,null,null,null,"1900-01-02"]
[null,null,null,null,null,null,null,null,null,null,null,null,"1900-01-02"]
[null,null,null,null,null,null,null,null,null,null,null,null,"1900-01-02"]
[null,null,null,null,null,null,null,null,null,null,null,null,"1900-01-02"]
[null,null,null,null,null,null,null,null,null,null,null,null,"1900-01-02"]
[null,null,null,null,null,null,null,null,null,null,null,null,"1900-01-02"]
[null,null,null,null,null,null,null,null,null,null,null,null,"1900-01-02"]
[null,null,null,null,null,null,null,null,null,null,null,null,"1900-01-02"]
[null,null,null,null,null,null,null,null,null,null,null,null,"1900-01-02"]
[null,null,null,null,null,null,null,null,null,null,null,null,"1900-01-02"]
[null,null,null,null,null,null,null,null,null,null,null,null,"1900-01-02"]
[null,null,null,null,null,null,null,null,null,null,null,null,"1900-01-02"]
[null,null,null,null,null,null,null,null,null,null,null,null,"1900-01-02"]
[null,null,null,null,null,null,null,null,null,null,null,null,"1900-01-02"]
[null,null,null,null,null,null,null,null,null,null,null,null,"1900-01-02"]
[null,null,null,null,null,null,null,null,null,null,null,null,"1900-01-02"]
[null,null,null,null,null,null,null,null,null,null,null,null,"1900-01-02"]
[null,null,null,null,null,null,null,null,null,null,null,null,"1900-01-02"]
[null,null,null,null,null,null,null,null,null,null,null,null,"1900-01-02"]
[null,null,null,null,null,null,null,null,null,null,null,null,"1900-01-02"]
[null,null,null,null,null,null,null,null,null,null,null,null,"1900-01-02"]
[null,null,null,null,null,null,null,null,null,null,null,null,"1900-01-02"]
[null,null,null,null,null,null,null,null,null,null,null,null,"1900-01-02"]
[null,null,null,null,null,null,null,null,null,null,null,null,"1900-01-02"]
[null,null,null,null,null,null,null,null,null,null,null,null,"1900-01-02"]
[null,null,null,null,null,null,null,null,null,null,null,null,"1900-01-02"]
[null,null,null,null,null,null,null,null,null,null,null,null,"1900-01-02"]
[null,null,null,null,null,null,null,null,null,null,null,null,"1900-01-02"]
[null,null,null,null,null,null,null,null,null,null,null,null,{"$f":"A261+2","v":"1900-01-02"}]
[null,null,null,null,null,null,null,null,null,null,null,null,"1900-01-02"]
[null,null,null,null,null,null,null,null,null,null,null,null,"1900-01-02"]
[null,null,null,null,null,null,null,null,null,null,null,null,"1900-01-02"]
[null,null,null,null,null,null,null,null,null,null,null,null,"1900-01-02"]
[null,null,null,null,null,null,null,null,null,null,null,null,"1900-01-02"]
[null,null,null,null,null,null,null,null,null,null,null,null,"1900-01-02"]
[null,null,null,null,null,null,null,null,null,null,null,null,"1900-01-02"]
[null,null,null,null,null,null,null,null,null,null,null,null,"1900-01-02"]
[null,null,null,null,null,null,null,null,null,null,null,null,"1900-01-02"]
[null,null,null,null,null,null,null,null,null,null,null,null,"1900-01-02"]
[null,null,null,null,null,null,null,null,null,null,null,null,"1900-01-02"]
[null,null,null,null,null,null,null,null,null,null,null,null,"1900-01-02"]
[null,null,null,null,null,null,null,null,null,null,null,null,"1900-01-02"]
[null,null,null,null,null,null,null,null,null,null,null,null,"1900-01-02"]
[null,null,null,null,null,null,null,null,null,null,null,null,"1900-01-02"]
[null,null,null,null,null,null,null,null,null,null,null,null,"1900-01-02"]
[null,null,null,null,null,null,null,null,null,null,null,null,"1900-01-02"]
[null,null,null,null,null,null,null,null,null,null,null,null,"1900-01-02"]
[null,null,null,null,null,null,null,null,null,null,null,null,"1900-01-02"]
[null,null,null,null,null,null,null,null,null,null,null,null,"1900-01-02"]
[null,null,null,null,null,null,null,null,null,null,null,null,"1900-01-02"]
[null,null,null,null,null,null,null,null,null,null,null,null,"1900-01-02"]
[null,null,null,null,null,null,null,null,null,null,null,null,"1900-01-02"]
[null,null,null,null,null,null,null,null,null,null,null,null,"1900-01-02"]
[null,null,null,null,null,null,null,null,null,null,null,null,"1900-01-02"]
[null,null,null,null,null,null,null,null,null,null,null,null,"1900-01-02"]
[null,null,null,null,null,null,null,null,null,null,null,null,"1900-01-02"]
[null,null,null,null,null,null,null,null,null,null,null,null,"1900-01-02"]
[null,null,null,null,null,null,null,null,null,null,null,null,"1900-01-02"]
[null,null,null,null,null,null,null,null,null,null,null,null,"1900-01-02"]
[null,null,null,null,null,null,null,null,null,null,null,null,"1900-01-02"]
[null,null,null,null,null,null,null,null,null,null,null,null,"1900-01-02"]
[null,null,null,null,null,null,null,null,null,null,null,null,"1900-01-02"]
[null,null,null,null,null,null,null,null,null,null,null,null,"1900-01-02"]
[null,null,null,null,null,null,null,null,null,null,null,null,"1900-01-02"]
[null,null,null,null,null,null,null,null,null,null,null,null,"1900-01-02"]
[null,null,null,null,null,null,null,null,null,null,null,null,"1900-01-02"]
[null,null,null,null,null,null,null,null,null,null,null,null,"1900-01-02"]
[null,null,null,null,null,null,null,null,null,null,null,null,"1900-01-02"]
[null,null,null,null,null,null,null,null,null,null,null,null,"1900-01-02"]
[null,null,null,null,null,null,null,null,null,null,null,null,"1900-01-02"]
[null,null,null,null,null,null,null,null,null,null,null,null,"1900-01-02"]
[null,null,null,null,null,null,null,null,null,null,null,null,"1900-01-02"]
[null,null,null,null,null,null,null,null,null,null,null,null,"1900-01-02"]
[null,null,null,null,null,null,null,null,null,null,null,null,"1900-01-02"]
[null,null,null,null,null,null,null,null,null,null,null,null,"1900-01-02"]
[null,null,null,null,null,null,null,null,null,null,null,null,"1900-01-02"]
[null,null,null,null,null,null,null,null,null,null,null,null,"1900-01-02"]
[null,null,null,null,null,null,null,null,null,null,null,null,"1900-01-02"]
[null,null,null,null,null,null,null,null,null,null,null,null,"1900-01-02"]
[null,null,null,null,null,null,null,null,null,null,null,null,"1900-01-02"]
[null,null,null,null,null,null,null,null,null,null,null,null,"1900-01-02"]
[null,null,null,null,null,null,null,null,null,null,null,null,"1900-01-02"]
[null,null,null,null,null,null,null,null,null,null,null,null,"1900-01-02"]
[null,null,null,null,null,null,null,null,null,null,null,null,"1900-01-02"]
[null,null,null,null,null,null,null,null,null,null,null,null,"1900-01-02"]
[null,null,null,null,null,null,null,null,null,null,null,null,"1900-01-02"]
[null,null,null,null,null,null,null,null,null,null,null,null,"1900-01-02"]
[null,null,null,null,null,null,null,null,null,null,null,null,"1900-01-02"]
[null,null,null,null,null,null,null,null,null,null,null,null,"1900-01-02"]
[null,null,null,null,null,null,null,null,null,null,null,null,"1900-01-02"]
[null,null,null,null,null,null,null,null,null,null,null,null,"1900-01-02"]
[null,null,null,null,null,null,null,null,null,null,null,null,"1900-01-02"]
[null,null,null,null,null,null,null,null,null,null,null,null,{"$f":"A325+2","v":"1900-01-02"}]
[null,null,null,null,null,null,null,null,null,null,null,null,"1900-01-02"]
[null,null,null,null,null,null,null,null,null,null,null,null,"1900-01-02"]
[null,null,null,null,null,null,null,null,null,null,null,null,"1900-01-02"]
[null,null,null,null,null,null,null,null,null,null,null,null,"1900-01-02"]
[null,null,null,null,null,null,null,null,null,null,null,null,"1900-01-02"]
[null,null,null,null,null,null,null,null,null,null,null,null,"1900-01-02"]
[null,null,null,null,null,null,null,null,null,null,null,null,"1900-01-02"]
[null,null,null,null,null,null,null,null,null,null,null,null,"1900-01-02"]
[null,null,null,null,null,null,null,null,null,null,null,null,"1900-01-02"]
[null,null,null,null,null,null,null,null,null,null,null,null,"1900-01-02"]
[null,null,null,null,null,null,null,null,null,null,null,null,"1900-01-02"]
[null,null,null,null,null,null,null,null,null,null,null,null,"1900-01-02"]
[null,null,null,null,null,null,null,null,null,null,null,null,"1900-01-02"]
[null,null,null,null,null,null,null,null,null,null,null,null,"1900-01-02"]
[null,null,null,null,null,null,null,null,null,null,null,null,"1900-01-02"]
[null,null,null,null,null,null,null,null,null,null,null,null,"1900-01-02"]
[null,null,null,null,null,null,null,null,null,null,null,null,"1900-01-02"]
[null,null,null,null,null,null,null,null,null,null,null,null,"1900-01-02"]
[null,null,null,null,null,null,null,null,null,null,null,null,"1900-01-02"]
[null,null,null,null,null,null,null,null,null,null,null,null,"1900-01-02"]
[null,null,null,null,null,null,null,null,null,null,null,null,"1900-01-02"]
[null,null,null,null,null,null,null,null,null,null,null,null,"1900-01-02"]
[null,null,null,null,null,null,null,null,null,null,null,null,"1900-01-02"]
[null,null,null,null,null,null,null,null,null,null,null,null,"1900-01-02"]
[null,null,null,null,null,null,null,null,null,null,null,null,"1900-01-02"]
[null,null,null,null,null,null,null,null,null,null,null,null,"1900-01-02"]
[null,null,null,null,null,null,null,null,null,null,null,null,"1900-01-02"]
[null,null,null,null,null,null,null,null,null,null,null,null,"1900-01-02"]
[null,null,null,null,null,null,null,null,null,null,null,null,"1900-01-02"]
[null,null,null,null,null,null,null,null,null,null,null,null,"1900-01-02"]
[null,null,null,null,null,null,null,null,null,null,null,null,"1900-01-02"]
[null,null,null,null,null,null,null,null,null,null,null,null,"1900-01-02"]
[null,null,null,null,null,null,null,null,null,null,null,null,"1900-01-02"]
[null,null,null,null,null,null,null,null,null,null,null,null,"1900-01-02"]
[null,null,null,null,null,null,null,null,null,null,null,null,"1900-01-02"]
[null,null,null,null,null,null,null,null,null,null,null,null,"1900-01-02"]
[null,null,null,null,null,null,null,null,null,null,null,null,"1900-01-02"]
[null,null,null,null,null,null,null,null,null,null,null,null,"1900-01-02"]
[null,null,null,null,null,null,null,null,null,null,null,null,"1900-01-02"]
[null,null,null,null,null,null,null,null,null,null,null,null,"1900-01-02"]
[null,null,null,null,null,null,null,null,null,null,null,null,"1900-01-02"]
[null,null,null,null,null,null,null,null,null,null,null,null,"1900-01-02"]
[null,null,null,null,null,null,null,null,null,null,null,null,"1900-01-02"]
[null,null,null,null,null,null,null,null,null,null,null,null,"1900-01-02"]
[null,null,null,null,null,null,null,null,null,null,null,null,"1900-01-02"]
[null,null,null,null,null,null,null,null,null,null,null,null,"1900-01-02"]
[null,null,null,null,null,null,null,null,null,null,null,null,"1900-01-02"]
[null,null,null,null,null,null,null,null,null,null,null,null,"1900-01-02"]
[null,null,null,null,null,null,null,null,null,null,null,null,"1900-01-02"]
[null,null,null,null,null,null,null,null,null,null,null,null,"1900-01-02"]
[null,null,null,null,null,null,null,null,null,null,null,null,"1900-01-02"]
[null,null,null,null,null,null,null,null,null,null,null,null,"1900-01-02"]
[null,null,null,null,null,null,null,null,null,null,null,null,"1900-01-02"]
[null,null,null,null,null,null,null,null,null,null,null,null,"1900-01-02"]
[null,null,null,null,null,null,null,null,null,null,null,null,"1900-01-02"]
[null,null,null,null,null,null,null,null,null,null,null,null,"1900-01-02"]
[null,null,null,null,null,null,null,null,null,null,null,null,"1900-01-02"]
[null,null,null,null,null,null,null,null,null,null,null,null,"1900-01-02"]
[null,null,null,null,null,null,null,null,null,null,null,null,"1900-01-02"]
[null,null,null,null,null,null,null,null,null,null,null,null,"1900-01-02"]
[null,null,null,null,null,null,null,null,null,null,null,null,"1900-01-02"]
[null,null,null,null,null,null,null,null,null,null,null,null,"1900-01-02"]
[null,null,null,null,null,null,null,null,null,null,null,null,"1900-01-02"]
[null,null,null,null,null,null,null,null,null,null,null,null,{"$f":"A389+2","v":"1900-01-02"}]
[null,null,null,null,null,null,null,null,null,null,null,null,"1900-01-02"]
[null,null,null,null,null,null,null,null,null,null,null,null,"1900-01-02"]
[null,null,null,null,null,null,null,null,null,null,null,null,"1900-01-02"]
[null,null,null,null,null,null,null,null,null,null,null,null,"1900-01-02"]
[null,null,null,null,null,null,null,null,null,null,null,null,"1900-01-02"]
[null,null,null,null,null,null,null,null,null,null,null,null,"1900-01-02"]
[null,null,null,null,null,null,null,null,null,null,null,null,"1900-01-02"]
[null,null,null,null,null,null,null,null,null,null,null,null,"1900-01-02"]
[null,null,null,null,null,null,null,null,null,null,null,null,"1900-01-02"]
[null,null,null,null,null,null,null,null,null,null,null,null,"1900-01-02"]
[null,null,null,null,null,null,null,null,null,null,null,null,"1900-01-02"]
[null,null,null,null,null,null,null,null,null,null,null,null,"1900-01-02"]
[null,null,null,null,null,null,null,null,null,null,null,null,"1900-01-02"]
[null,null,null,null,null,null,null,null,null,null,null,null,"1900-01-02"]
[null,null,null,null,null,null,null,null,null,null,null,null,"1900-01-02"]
[null,null,null,null,null,null,null,null,null,null,null,null,"1900-01-02"]
[null,null,null,null,null,null,null,null,null,null,null,null,"1900-01-02"]
[null,null,null,null,null,null,null,null,null,null,null,null,"1900-01-02"]
[null,null,null,null,null,null,null,null,null,null,null,null,"1900-01-02"]
[null,null,null,null,null,null,null,null,null,null,null,null,"1900-01-02"]
[null,null,null,null,null,null,null,null,null,null,null,null,"1900-01-02"]
[null,null,null,null,null,null,null,null,null,null,null,null,"1900-01-02"]
[null,null,null,null,null,null,null,null,null,null,null,null,"1900-01-02"]
[null,null,null,null,null,null,null,null,null,null,null,null,"1900-01-02"]
[null,null,null,null,null,null,null,null,null,null,null,null,"1900-01-02"]
[null,null,null,null,null,null,null,null,null,null,null,null,"1900-01-02"]
[null,null,null,null,null,null,null,null,null,null,null,null,"1900-01-02"]
[null,null,null,null,null,null,null,null,null,null,null,null,"1900-01-02"]
[null,null,null,null,null,null,null,null,null,null,null,null,"1900-01-02"]
[null,null,null,null,null,null,null,null,null,null,null,null,"1900-01-02"]
[null,null,null,null,null,null,null,null,null,null,null,null,"1900-01-02"]
[null,null,null,null,null,null,null,null,null,null,null,null,"1900-01-02"]
[null,null,null,null,null,null,null,null,null,null,null,null,"1900-01-02"]
[null,null,null,null,null,null,null,null,null,null,null,null,"1900-01-02"]
[null,null,null,null,null,null,null,null,null,null,null,null,"1900-01-02"]
[null,null,null,null,null,null,null,null,null,null,null,null,"1900-01-02"]
[null,null,null,null,null,null,null,null,null,null,null,null,"1900-01-02"]
[null,null,null,null,null,null,null,null,null,null,null,null,"1900-01-02"]
[null,null,null,null,null,null,null,null,null,null,null,null,"1900-01-02"]
[null,null,null,null,null,null,null,null,null,null,null,null,"1900-01-02"]
[null,null,null,null,null,null,null,null,null,null,null,null,"1900-01-02"]
[null,null,null,null,null,null,null,null,null,null,null,null,"1900-01-02"]
[null,null,null,null,null,null,null,null,null,null,null,null,"1900-01-02"]
[null,null,null,null,null,null,null,null,null,null,null,null,"1900-01-02"]
[null,null,null,null,null,null,null,null,null,null,null,null,"1900-01-02"]
[null,null,null,null,null,null,null,null,null,null,null,null,"1900-01-02"]
[null,null,null,null,null,null,null,null,null,null,null,null,"1900-01-02"]
[null,null,null,null,null,null,null,null,null,null,null,null,"1900-01-02"]
[null,null,null,null,null,null,null,null,null,null,null,null,"1900-01-02"]
[null,null,null,null,null,null,null,null,null,null,null,null,"1900-01-02"]
[null,null,null,null,null,null,null,null,null,null,null,null,"1900-01-02"]
[null,null,null,null,null,null,null,null,null,null,null,null,"1900-01-02"]
[null,null,null,null,null,null,null,null,null,null,null,null,"1900-01-02"]
[null,null,null,null,null,null,null,null,null,null,null,null,"1900-01-02"]
[null,null,null,null,null,null,null,null,null,null,null,null,"1900-01-02"]
[null,null,null,null,null,null,null,null,null,null,null,null,"1900-01-02"]
[null,null,null,null,null,null,null,null,null,null,null,null,"1900-01-02"]
[null,null,null,null,null,null,null,null,null,null,null,null,"1900-01-02"]
[null,null,null,null,null,null,null,null,null,null,null,null,"1900-01-02"]
[null,null,null,null,null,null,null,null,null,null,null,null,"1900-01-02"]
[null,null,null,null,null,null,null,null,null,null,null,null,"1900-01-02"]
[null,null,null,null,null,null,null,null,null,null,null,null,"1900-01-02"]
[null,null,null,null,null,null,null,null,null,null,null,null,"1900-01-02"]
[null,null,null,null,null,null,null,null,null,null,null,null,{"$f":"A453+2","v":"1900-01-02"}]
[null,null,null,null,null,null,null,null,null,null,null,null,"1900-01-02"]
[null,null,null,null,null,null,null,null,null,null,null,null,"1900-01-02"]
[null,null,null,null,null,null,null,null,null,null,null,null,"1900-01-02"]
[null,null,null,null,null,null,null,null,null,null,null,null,"1900-01-02"]
[null,null,null,null,null,null,null,null,null,null,null,null,"1900-01-02"]
[null,null,null,null,null,null,null,null,null,null,null,null,"1900-01-02"]
[null,null,null,null,null,null,null,null,null,null,null,null,"1900-01-02"]
[null,null,null,null,null,null,null,null,null,null,null,null,"1900-01-02"]
[null,null,null,null,null,null,null,null,null,null,null,null,"1900-01-02"]
[null,null,null,null,null,null,null,null,null,null,null,null,"1900-01-02"]
[null,null,null,null,null,null,null,null,null,null,null,null,"1900-01-02"]
[null,null,null,null,null,null,null,null,null,null,null,null,"1900-01-02"]
[null,null,null,null,null,null,null,null,null,null,null,null,"1900-01-02"]
[null,null,null,null,null,null,null,null,null,null,null,null,"1900-01-02"]
[null,null,null,null,null,null,null,null,null,null,null,null,"1900-01-02"]
[null,null,null,null,null,null,null,null,null,null,null,null,"1900-01-02"]
[null,null,null,null,null,null,null,null,null,null,null,null,"1900-01-02"]
[null,null,null,null,null,null,null,null,null,null,null,null,"1900-01-02"]
[null,null,null,null,null,null,null,null,null,null,null,null,"1900-01-02"]
[null,null,null,null,null,null,null,null,null,null,null,null,"1900-01-02"]
[null,null,null,null,null,null,null,null,null,null,null,null,"1900-01-02"]
[null,null,null,null,null,null,null,null,null,null,null,null,"1900-01-02"]
[null,null,null,null,null,null,null,null,null,null,null,null,"1900-01-02"]
[null,null,null,null,null,null,null,null,null,null,null,null,"1900-01-02"]
[null,null,null,null,null,null,null,null,null,null,null,null,"1900-01-02"]
[null,null,null,null,null,null,null,null,null,null,null,null,"1900-01-02"]
[null,null,null,null,null,null,null,null,null,null,null,null,"1900-01-02"]
[null,null,null,null,null,null,null,null,null,null,null,null,"1900-01-02"]
[null,null,null,null,null,null,null,null,null,null,null,null,"1900-01-02"]
[null,null,null,null,null,null,null,null,null,null,null,null,"1900-01-02"]
[null,null,null,null,null,null,null,null,null,null,null,null,"1900-01-02"]
[null,null,null,null,null,null,null,null,null,null,null,null,"1900-01-02"]
[null,null,null,null,null,null,null,null,null,null,null,null,"1900-01-02"]
[null,null,null,null,null,null,null,null,null,null,null,null,"1900-01-02"]
[null,null,null,null,null,null,null,null,null,null,null,null,"1900-01-02"]
[null,null,null,null,null,null,null,null,null,null,null,null,"1900-01-02"]
[null,null,null,null,null,null,null,null,null,null,null,null,"1900-01-02"]
[null,null,null,null,null,null,null,null,null,null,null,null,"1900-01-02"]
[null,null,null,null,null,null,null,null,null,null,null,null,"1900-01-02"]
[null,null,null,null,null,null,null,null,null,null,null,null,"1900-01-02"]
[null,null,null,null,null,null,null,null,null,null,null,null,"1900-01-02"]
[null,null,null,null,null,null,null,null,null,null,null,null,"1900-01-02"]
[null,null,null,null,null,null,null,null,null,null,null,null,"1900-01-02"]
[null,null,null,null,null,null,null,null,null,null,null,null,"1900-01-02"]
[null,null,null,null,null,null,null,null,null,null,null,null,"1900-01-02"]
[null,null,null,null,null,null,null,null,null,null,null,null,"1900-01-02"]
[null,null,null,null,null,null,null,null,null,null,null,null,"1900-01-02"]
[null,null,null,null,null,null,null,null,null,null,null,null,"1900-01-02"]
[null,null,null,null,null,null,null,null,null,null,null,null,"1900-01-02"]
[null,null,null,null,null,null,null,null,null,null,null,null,"1900-01-02"]
[null,null,null,null,null,null,null,null,null,null,null,null,"1900-01-02"]
[null,null,null,null,null,null,null,null,null,null,null,null,"1900-01-02"]
[null,null,null,null,null,null,null,null,null,null,null,null,"1900-01-02"]
[null,null,null,null,null,null,null,null,null,null,null,null,"1900-01-02"]
[null,null,null,null,null,null,null,null,null,null,null,null,"1900-01-02"]
[null,null,null,null,null,null,null,null,null,null,null,null,"1900-01-02"]
[null,null,null,null,null,null,null,null,null,null,null,null,"1900-01-02"]
[null,null,null,null,null,null,null,null,null,null,null,null,"1900-01-02"]
[null,null,null,null,null,null,null,null,null,null,null,null,"1900-01-02"]
[null,null,null,null,null,null,null,null,null,null,null,null,"1900-01-02"]
[null,null,null,null,null,null,null,null,null,null,null,null,"1900-01-02"]
[null,null,null,null,null,null,null,null,null,null,null,null,"1900-01-02"]
[null,null,null,null,null,null,null,null,null,null,null,null,"1900-01-02"]
[null,null,null,null,null,null,null,null,null,null,null,null,{"$f":"A517+2","v":"1900-01-02"}]
[null,null,null,null,null,null,null,null,null,null,null,null,"1900-01-02"]
[null,null,null,null,null,null,null,null,null,null,null,null,"1900-01-02"]
[null,null,null,null,null,null,null,null,null,null,null,null,"1900-01-02"]
[null,null,null,null,null,null,null,null,null,null,null,null,"1900-01-02"]
[null,null,null,null,null,null,null,null,null,null,null,null,"1900-01-02"]
[null,null,null,null,null,null,null,null,null,null,null,null,"1900-01-02"]
[null,null,null,null,null,null,null,null,null,null,null,null,"1900-01-02"]
[null,null,null,null,null,null,null,null,null,null,null,null,"1900-01-02"]
[null,null,null,null,null,null,null,null,null,null,null,null,"1900-01-02"]
[null,null,null,null,null,null,null,null,null,null,null,null,"1900-01-02"]
[null,null,null,null,null,null,null,null,null,null,null,null,"1900-01-02"]
[null,null,null,null,null,null,null,null,null,null,null,null,"1900-01-02"]
[null,null,null,null,null,null,null,null,null,null,null,null,"1900-01-02"]
[null,null,null,null,null,null,null,null,null,null,null,null,"1900-01-02"]
[null,null,null,null,null,null,null,null,null,null,null,null,"1900-01-02"]
[null,null,null,null,null,null,null,null,null,null,null,null,"1900-01-02"]
[null,null,null,null,null,null,null,null,null,null,null,null,"1900-01-02"]
[null,null,null,null,null,null,null,null,null,null,null,null,"1900-01-02"]
[null,null,null,null,null,null,null,null,null,null,null,null,"1900-01-02"]
[null,null,null,null,null,null,null,null,null,null,null,null,"1900-01-02"]
[null,null,null,null,null,null,null,null,null,null,null,null,"1900-01-02"]
[null,null,null,null,null,null,null,null,null,null,null,null,"1900-01-02"]
[null,null,null,null,null,null,null,null,null,null,null,null,"1900-01-02"]
[null,null,null,null,null,null,null,null,null,null,null,null,"1900-01-02"]
[null,null,null,null,null,null,null,null,null,null,null,null,"1900-01-02"]
[null,null,null,null,null,null,null,null,null,null,null,null,"1900-01-02"]
[null,null,null,null,null,null,null,null,null,null,null,null,"1900-01-02"]
[null,null,null,null,null,null,null,null,null,null,null,null,"1900-01-02"]
[null,null,null,null,null,null,null,null,null,null,null,null,"1900-01-02"]
[null,null,null,null,null,null,null,null,null,null,null,null,"1900-01-02"]
[null,null,null,null,null,null,null,null,null,null,null,null,"1900-01-02"]
[null,null,null,null,null,null,null,null,null,null,null,null,"1900-01-02"]
[null,null,null,null,null,null,null,null,null,null,null,null,"1900-01-02"]
[null,null,null,null,null,null,null,null,null,null,null,null,"1900-01-02"]
[null,null,null,null,null,null,null,null,null,null,null,null,"1900-01-02"]
[null,null,null,null,null,null,null,null,null,null,null,null,"1900-01-02"]
[null,null,null,null,null,null,null,null,null,null,null,null,"1900-01-02"]
[null,null,null,null,null,null,null,null,null,null,null,null,"1900-01-02"]
[null,null,null,null,null,null,null,null,null,null,null,null,"1900-01-02"]
[null,null,null,null,null,null,null,null,null,null,null,null,"1900-01-02"]
[null,null,null,null,null,null,null,null,null,null,null,null,"1900-01-02"]
[null,null,null,null,null,null,null,null,null,null,null,null,"1900-01-02"]
[null,null,null,null,null,null,null,null,null,null,null,null,"1900-01-02"]
[null,null,null,null,null,null,null,null,null,null,null,null,"1900-01-02"]
[null,null,null,null,null,null,null,null,null,null,null,null,"1900-01-02"]
[null,null,null,null,null,null,null,null,null,null,null,null,"1900-01-02"]
[null,null,null,null,null,null,null,null,null,null,null,null,"1900-01-02"]
[null,null,null,null,null,null,null,null,null,null,null,null,"1900-01-02"]
[null,null,null,null,null,null,null,null,null,null,null,null,"1900-01-02"]
[null,null,null,null,null,null,null,null,null,null,null,null,"1900-01-02"]
[null,null,null,null,null,null,null,null,null,null,null,null,"1900-01-02"]
[null,null,null,null,null,null,null,null,null,null,null,null,"1900-01-02"]
[null,null,null,null,null,null,null,null,null,null,null,null,"1900-01-02"]
[null,null,null,null,null,null,null,null,null,null,null,null,"1900-01-02"]
[null,null,null,null,null,null,null,null,null,null,null,null,"1900-01-02"]
[null,null,null,null,null,null,null,null,null,null,null,null,"1900-01-02"]
[null,null,null,null,null,null,null,null,null,null,null,null,"1900-01-02"]
[null,null,null,null,null,null,null,null,null,null,null,null,"1900-01-02"]
[null,null,null,null,null,null,null,null,null,null,null,null,"1900-01-02"]
[null,null,null,null,null,null,null,null,null,null,null,null,"1900-01-02"]
[null,null,null,null,null,null,null,null,null,null,null,null,"1900-01-02"]
[null,null,null,null,null,null,null,null,null,null,null,null,"1900-01-02"]
[null,null,null,null,null,null,null,null,null,null,null,null,"1900-01-02"]
[null,null,null,null,null,null,null,null,null,null,null,null,{"$f":"A581+2","v":"1900-01-02"}]
[null,null,null,null,null,null,null,null,null,null,null,null,"1900-01-02"]
[null,null,null,null,null,null,null,null,null,null,null,null,"1900-01-02"]
[null,null,null,null,null,null,null,null,null,null,null,null,"1900-01-02"]
[null,null,null,null,null,null,null,null,null,null,null,null,"1900-01-02"]
[null,null,null,null,null,null,null,null,null,null,null,null,"1900-01-02"]
[null,null,null,null,null,null,null,null,null,null,null,null,"1900-01-02"]
[null,null,null,null,null,null,null,null,null,null,null,null,"1900-01-02"]
[null,null,null,null,null,null,null,null,null,null,null,null,"1900-01-02"]
[null,null,null,null,null,null,null,null,null,null,null,null,"1900-01-02"]
[null,null,null,null,null,null,null,null,null,null,null,null,"1900-01-02"]
[null,null,null,null,null,null,null,null,null,null,null,null,"1900-01-02"]
[null,null,null,null,null,null,null,null,null,null,null,null,"1900-01-02"]
[null,null,null,null,null,null,null,null,null,null,null,null,"1900-01-02"]
[null,null,null,null,null,null,null,null,null,null,null,null,"1900-01-02"]
[null,null,null,null,null,null,null,null,null,null,null,null,"1900-01-02"]
[null,null,null,null,null,null,null,null,null,null,null,null,"1900-01-02"]
[null,null,null,null,null,null,null,null,null,null,null,null,"1900-01-02"]
[null,null,null,null,null,null,null,null,null,null,null,null,"1900-01-02"]
[null,null,null,null,null,null,null,null,null,null,null,null,"1900-01-02"]
[null,null,null,null,null,null,null,null,null,null,null,null,"1900-01-02"]
[null,null,null,null,null,null,null,null,null,null,null,null,"1900-01-02"]
[null,null,null,null,null,null,null,null,null,null,null,null,"1900-01-02"]
[null,null,null,null,null,null,null,null,null,null,null,null,"1900-01-02"]
[null,null,null,null,null,null,null,null,null,null,null,null,"1900-01-02"]
[null,null,null,null,null,null,null,null,null,null,null,null,"1900-01-02"]
[null,null,null,null,null,null,null,null,null,null,null,null,"1900-01-02"]
[null,null,null,null,null,null,null,null,null,null,null,null,"1900-01-02"]
[null,null,null,null,null,null,null,null,null,null,null,null,"1900-01-02"]
[null,null,null,null,null,null,null,null,null,null,null,null,"1900-01-02"]
[null,null,null,null,null,null,null,null,null,null,null,null,"1900-01-02"]
[null,null,null,null,null,null,null,null,null,null,null,null,"1900-01-02"]
[null,null,null,null,null,null,null,null,null,null,null,null,"1900-01-02"]
[null,null,null,null,null,null,null,null,null,null,null,null,"1900-01-02"]
[null,null,null,null,null,null,null,null,null,null,null,null,"1900-01-02"]
[null,null,null,null,null,null,null,null,null,null,null,null,"1900-01-02"]
[null,null,null,null,null,null,null,null,null,null,null,null,"1900-01-02"]
[null,null,null,null,null,null,null,null,null,null,null,null,"1900-01-02"]
[null,null,null,null,null,null,null,null,null,null,null,null,"1900-01-02"]
[null,null,null,null,null,null,null,null,null,null,null,null,"1900-01-02"]
[null,null,null,null,null,null,null,null,null,null,null,null,"1900-01-02"]
[null,null,null,null,null,null,null,null,null,null,null,null,"1900-01-02"]
[null,null,null,null,null,null,null,null,null,null,null,null,"1900-01-02"]
[null,null,null,null,null,null,null,null,null,null,null,null,"1900-01-02"]
[null,null,null,null,null,null,null,null,null,null,null,null,"1900-01-02"]
[null,null,null,null,null,null,null,null,null,null,null,null,"1900-01-02"]
[null,null,null,null,null,null,null,null,null,null,null,null,"1900-01-02"]
[null,null,null,null,null,null,null,null,null,null,null,null,"1900-01-02"]
[null,null,null,null,null,null,null,null,null,null,null,null,"1900-01-02"]
[null,null,null,null,null,null,null,null,null,null,null,null,"1900-01-02"]
[null,null,null,null,null,null,null,null,null,null,null,null,"1900-01-02"]
[null,null,null,null,null,null,null,null,null,null,null,null,"1900-01-02"]
[null,null,null,null,null,null,null,null,null,null,null,null,"1900-01-02"]
[null,null,null,null,null,null,null,null,null,null,null,null,"1900-01-02"]
[null,null,null,null,null,null,null,null,null,null,null,null,"1900-01-02"]
[null,null,null,null,null,null,null,null,null,null,null,null,"1900-01-02"]
[null,null,null,null,null,null,null,null,null,null,null,null,"1900-01-02"]
[null,null,null,null,null,null,null,null,null,null,null,null,"1900-01-02"]
[null,null,null,null,null,null,null,null,null,null,null,null,"1900-01-02"]
[null,null,null,null,null,null,null,null,null,null,null,null,"1900-01-02"]
[null,null,null,null,null,null,null,null,null,null,null,null,"1900-01-02"]
[null,null,null,null,null,null,null,null,null,null,null,null,"1900-01-02"]
[null,null,null,null,null,null,null,null,null,null,null,null,"1900-01-02"]
[null,null,null,null,null,null,null,null,null,null,null,null,"1900-01-02"]
[null,null,null,null,null,null,null,null,null,null,null,null,{"$f":"A645+2","v":"1900-01-02"}]
[null,null,null,null,null,null,null,null,null,null,null,null,"1900-01-02"]
[null,null,null,null,null,null,null,null,null,null,null,null,"1900-01-02"]
[null,null,null,null,null,null,null,null,null,null,null,null,"1900-01-02"]
[null,null,null,null,null,null,null,null,null,null,null,null,"1900-01-02"]
[null,null,null,null,null,null,null,null,null,null,null,null,"1900-01-02"]
[null,null,null,null,null,null,null,null,null,null,null,null,"1900-01-02"]
[null,null,null,null,null,null,null,null,null,null,null,null,"1900-01-02"]
[null,null,null,null,null,null,null,null,null,null,null,null,"1900-01-02"]
[null,null,null,null,null,null,null,null,null,null,null,null,"1900-01-02"]
[null,null,null,null,null,null,null,null,null,null,null,null,"1900-01-02"]
[null,null,null,null,null,null,null,null,null,null,null,null,"1900-01-02"]
[null,null,null,null,null,null,null,null,null,null,null,null,"1900-01-02"]
[null,null,null,null,null,null,null,null,null,null,null,null,"1900-01-02"]
[null,null,null,null,null,null,null,null,null,null,null,null,"1900-01-02"]
[null,null,null,null,null,null,null,null,null,null,null,null,"1900-01-02"]
[null,null,null,null,null,null,null,null,null,null,null,null,"1900-01-02"]
[null,null,null,null,null,null,null,null,null,null,null,null,"1900-01-02"]
[null,null,null,null,null,null,null,null,null,null,null,null,"1900-01-02"]
[null,null,null,null,null,null,null,null,null,null,null,null,"1900-01-02"]
[null,null,null,null,null,null,null,null,null,null,null,null,"1900-01-02"]
[null,null,null,null,null,null,null,null,null,null,null,null,"1900-01-02"]
[null,null,null,null,null,null,null,null,null,null,null,null,"1900-01-02"]
[null,null,null,null,null,null,null,null,null,null,null,null,"1900-01-02"]
[null,null,null,null,null,null,null,null,null,null,null,null,"1900-01-02"]
[null,null,null,null,null,null,null,null,null,null,null,null,"1900-01-02"]
[null,null,null,null,null,null,null,null,null,null,null,null,"1900-01-02"]
[null,null,null,null,null,null,null,null,null,null,null,null,"1900-01-02"]
[null,null,null,null,null,null,null,null,null,null,null,null,"1900-01-02"]
[null,null,null,null,null,null,null,null,null,null,null,null,"1900-01-02"]
[null,null,null,null,null,null,null,null,null,null,null,null,"1900-01-02"]
[null,null,null,null,null,null,null,null,null,null,null,null,"1900-01-02"]
[null,null,null,null,null,null,null,null,null,null,null,null,"1900-01-02"]
[null,null,null,null,null,null,null,null,null,null,null,null,"1900-01-02"]
[null,null,null,null,null,null,null,null,null,null,null,null,"1900-01-02"]
[null,null,null,null,null,null,null,null,null,null,null,null,"1900-01-02"]
[null,null,null,null,null,null,null,null,null,null,null,null,"1900-01-02"]
[null,null,null,null,null,null,null,null,null,null,null,null,"1900-01-02"]
[null,null,null,null,null,null,null,null,null,null,null,null,"1900-01-02"]
[null,null,null,null,null,null,null,null,null,null,null,null,"1900-01-02"]
[null,null,null,null,null,null,null,null,null,null,null,null,"1900-01-02"]
[null,null,null,null,null,null,null,null,null,null,null,null,"1900-01-02"]
[null,null,null,null,null,null,null,null,null,null,null,null,"1900-01-02"]
[null,null,null,null,null,null,null,null,null,null,null,null,"1900-01-02"]
[null,null,null,null,null,null,null,null,null,null,null,null,"1900-01-02"]
[null,null,null,null,null,null,null,null,null,null,null,null,"1900-01-02"]
[null,null,null,null,null,null,null,null,null,null,null,null,"1900-01-02"]
[null,null,null,null,null,null,null,null,null,null,null,null,"1900-01-02"]
[null,null,null,null,null,null,null,null,null,null,null,null,"1900-01-02"]
[null,null,null,null,null,null,null,null,null,null,null,null,"1900-01-02"]
[null,null,null,null,null,null,null,null,null,null,null,null,"1900-01-02"]
[null,null,null,null,null,null,null,null,null,null,null,null,"1900-01-02"]
[null,null,null,null,null,null,null,null,null,null,null,null,"1900-01-02"]
[null,null,null,null,null,null,null,null,null,null,null,null,"1900-01-02"]
[null,null,null,null,null,null,null,null,null,null,null,null,"1900-01-02"]
[null,null,null,null,null,null,null,null,null,null,null,null,"1900-01-02"]
[null,null,null,null,null,null,null,null,null,null,null,null,"1900-01-02"]
[null,null,null,null,null,null,null,null,null,null,null,null,"1900-01-02"]
[null,null,null,null,null,null,null,null,null,null,null,null,"1900-01-02"]
[null,null,null,null,null,null,null,null,null,null,null,null,"1900-01-02"]
[null,null,null,null,null,null,null,null,null,null,null,null,"1900-01-02"]
[null,null,null,null,null,null,null,null,null,null,null,null,"1900-01-02"]
[null,null,null,null,null,null,null,null,null,null,null,null,"1900-01-02"]
[null,null,null,null,null,null,null,null,null,null,null,null,"1900-01-02"]
[null,null,null,null,null,null,null,null,null,null,null,null,{"$f":"A709+2","v":"1900-01-02"}]
[null,null,null,null,null,null,null,null,null,null,null,null,"1900-01-02"]
[null,null,null,null,null,null,null,null,null,null,null,null,"1900-01-02"]
[null,null,null,null,null,null,null,null,null,null,null,null,"1900-01-02"]
[null,null,null,null,null,null,null,null,null,null,null,null,"1900-01-02"]
[null,null,null,null,null,null,null,null,null,null,null,null,"1900-01-02"]
[null,null,null,null,null,null,null,null,null,null,null,null,"1900-01-02"]
[null,null,null,null,null,null,null,null,null,null,null,null,"1900-01-02"]
[null,null,null,null,null,null,null,null,null,null,null,null,"1900-01-02"]
[null,null,null,null,null,null,null,null,null,null,null,null,"1900-01-02"]
[null,null,null,null,null,null,null,null,null,null,null,null,"1900-01-02"]
[null,null,null,null,null,null,null,null,null,null,null,null,"1900-01-02"]
[null,null,null,null,null,null,null,null,null,null,null,null,"1900-01-02"]
[null,null,null,null,null,null,null,null,null,null,null,null,"1900-01-02"]
[null,null,null,null,null,null,null,null,null,null,null,null,"1900-01-02"]
[null,null,null,null,null,null,null,null,null,null,null,null,"1900-01-02"]
[null,null,null,null,null,null,null,null,null,null,null,null,"1900-01-02"]
[null,null,null,null,null,null,null,null,null,null,null,null,"1900-01-02"]
[null,null,null,null,null,null,null,null,null,null,null,null,"1900-01-02"]
[null,null,null,null,null,null,null,null,null,null,null,null,"1900-01-02"]
[null,null,null,null,null,null,null,null,null,null,null,null,"1900-01-02"]
[null,null,null,null,null,null,null,null,null,null,null,null,"1900-01-02"]
[null,null,null,null,null,null,null,null,null,null,null,null,"1900-01-02"]
[null,null,null,null,null,null,null,null,null,null,null,null,"1900-01-02"]
[null,null,null,null,null,null,null,null,null,null,null,null,"1900-01-02"]
[null,null,null,null,null,null,null,null,null,null,null,null,"1900-01-02"]
[null,null,null,null,null,null,null,null,null,null,null,null,"1900-01-02"]
[null,null,null,null,null,null,null,null,null,null,null,null,"1900-01-02"]
[null,null,null,null,null,null,null,null,null,null,null,null,"1900-01-02"]
[null,null,null,null,null,null,null,null,null,null,null,null,"1900-01-02"]
[null,null,null,null,null,null,null,null,null,null,null,null,"1900-01-02"]
[null,null,null,null,null,null,null,null,null,null,null,null,"1900-01-02"]
[null,null,null,null,null,null,null,null,null,null,null,null,"1900-01-02"]
[null,null,null,null,null,null,null,null,null,null,null,null,"1900-01-02"]
[null,null,null,null,null,null,null,null,null,null,null,null,"1900-01-02"]
[null,null,null,null,null,null,null,null,null,null,null,null,"1900-01-02"]
[null,null,null,null,null,null,null,null,null,null,null,null,"1900-01-02"]
[null,null,null,null,null,null,null,null,null,null,null,null,"1900-01-02"]
[null,null,null,null,null,null,null,null,null,null,null,null,"1900-01-02"]
[null,null,null,null,null,null,null,null,null,null,null,null,"1900-01-02"]
[null,null,null,null,null,null,null,null,null,null,null,null,"1900-01-02"]
[null,null,null,null,null,null,null,null,null,null,null,null,"1900-01-02"]
[null,null,null,null,null,null,null,null,null,null,null,null,"1900-01-02"]
[null,null,null,null,null,null,null,null,null,null,null,null,"1900-01-02"]
[null,null,null,null,null,null,null,null,null,null,null,null,"1900-01-02"]
[null,null,null,null,null,null,null,null,null,null,null,null,"1900-01-02"]
[null,null,null,null,null,null,null,null,null,null,null,null,"1900-01-02"]
[null,null,null,null,null,null,null,null,null,null,null,null,"1900-01-02"]
[null,null,null,null,null,null,null,null,null,null,null,null,"1900-01-02"]
[null,null,null,null,null,null,null,null,null,null,null,null,"1900-01-02"]
[null,null,null,null,null,null,null,null,null,null,null,null,"1900-01-02"]
[null,null,null,null,null,null,null,null,null,null,null,null,"1900-01-02"]
[null,null,null,null,null,null,null,null,null,null,null,null,"1900-01-02"]
[null,null,null,null,null,null,null,null,null,null,null,null,"1900-01-02"]
[null,null,null,null,null,null,null,null,null,null,null,null,"1900-01-02"]
[null,null,null,null,null,null,null,null,null,null,null,null,"1900-01-02"]
[null,null,null,null,null,null,null,null,null,null,null,null,"1900-01-02"]
[null,null,null,null,null,null,null,null,null,null,null,null,"1900-01-02"]
[null,null,null,null,null,null,null,null,null,null,null,null,"1900-01-02"]
[null,null,null,null,null,null,null,null,null,null,null,null,"1900-01-02"]
[null,null,null,null,null,null,null,null,null,null,null,null,"1900-01-02"]
[null,null,null,null,null,null,null,null,null,null,null,null,"1900-01-02"]
[null,null,null,null,null,null,null,null,null,null,null,null,"1900-01-02"]
[null,null,null,null,null,null,null,null,null,null,null,null,"1900-01-02"]
[null,null,null,null,null,null,null,null,null,null,null,null,{"$f":"A773+2","v":"1900-01-02"}]
[null,null,null,null,null,null,null,null,null,null,null,null,"1900-01-02"]
[null,null,null,null,null,null,null,null,null,null,null,null,"1900-01-02"]
[null,null,null,null,null,null,null,null,null,null,null,null,"1900-01-02"]
[null,null,null,null,null,null,null,null,null,null,null,null,"1900-01-02"]
[null,null,null,null,null,null,null,null,null,null,null,null,"1900-01-02"]
[null,null,null,null,null,null,null,null,null,null,null,null,"1900-01-02"]
[null,null,null,null,null,null,null,null,null,null,null,null,"1900-01-02"]
[null,null,null,null,null,null,null,null,null,null,null,null,"1900-01-02"]
[null,null,null,null,null,null,null,null,null,null,null,null,"1900-01-02"]
[null,null,null,null,null,null,null,null,null,null,null,null,"1900-01-02"]
[null,null,null,null,null,null,null,null,null,null,null,null,"1900-01-02"]
[null,null,null,null,null,null,null,null,null,null,null,null,"1900-01-02"]
[null,null,null,null,null,null,null,null,null,null,null,null,"1900-01-02"]
[null,null,null,null,null,null,null,null,null,null,null,null,"1900-01-02"]
[null,null,null,null,null,null,null,null,null,null,null,null,"1900-01-02"]
[null,null,null,null,null,null,null,null,null,null,null,null,"1900-01-02"]
[null,null,null,null,null,null,null,null,null,null,null,null,"1900-01-02"]

{"sheet":"MaquetteAllergenes","index":24,"n_rows":108,"n_cols":16,"rows_kept":108,"cut":false,"hidden":false,"merged":[]}
[null,null,"A","F","C","D","I","G","E","O","B","L","K","M","H","N"]
["Date","Plat","Lait","Blé / Gluten","Oeuf","Poisson","Sulfites","Fruits à coques","Crustacés","Mollusques","Soja","Céleri","Arachides","Moutarde","Sésame","Lupin"]
[]
["2017-02-03","Pamplemousse"]
[null,"Galantine de volaille",null,null,null,null,"X"]
[null,"Salade de pâtes au surimi",null,"X","X","X","X",null,"X",null,"X",null,null,"X"]
[null,"Calamars à la romaine",null,"X",null,null,null,null,null,"X"]
[null,"Poêlée de légumes","X"]
[null,"Gouda","X"]
[null,"Yaourt nature","X"]
[null,"Tartare ail et fines herbes","X"]
[null,"Flan à la vanille","X"]
[null,"Fruit de saison"]
[null,"flan chocolat","X"]
[]
[]
[]
[]
[]
[]
[]
[]
[]
[]
[]
[]
[]
[]
[]
[]
[]
[]
[]
[]
[]
[]
[]
[]
[]
[]
[]
[]
[]
[]
[]
[]
[]
[]
[]
[]
[]
[]
[]
[]
[]
[]
[]
[]
[]
[]
[]
[null,"Rice Krispies","X","X","X",null,null,null,null,null,"X"]
[null,"Gaufre Fantasia","X","X","X",null,null,null,null,null,"X"]
[null,"Fraises","X"]
[null,"Abricots","X","X","X",null,null,"X",null,null,"X"]
[null,"Abricots bio","X","X","X",null,null,null,null,null,"X"]
[null,"Far breton","X","X","X",null,null,null,null,null,"X"]
[null,"Orange","X","X","X"]
[null,"Banane","X"]
[null,"Nectarine jaune","X"]
[null,"Tarte aux myrtilles maison","X","X","X"]
[null,"Abricots","X","X","X",null,null,null,null,null,"X"]
[null,"Tarte aux myrtilles","X","X","X",null,null,null,null,null,"X"]
[null,"Barquette plastique","X","X","X",null,"X",null,null,null,"X"]
[null,"Cubes d'emmental","X",null,null,null,null,null,null,null,"X"]
[null,"Topping chocolat","X","X","X",null,null,null,null,null,"X"]
[null,"Noix de coco râpée",null,"X","X",null,null,null,null,null,"X"]
[null,"Baguette 250 g",null,"X","X",null,"X",null,null,null,"X",null,null,"X"]
[null,"Pain 400 g Farine 76","X","X","X",null,null,null,null,null,"X"]
[null,"Pain 400 g Farine 76","X","X","X",null,null,null,null,null,"X"]
[null,"Petit pain 50 g","X","X",null,null,"X",null,null,null,null,null,null,"X"]
[null,"Petit pain 80 g sans sel ajouté","X","X"]
[null,"Petit pain 50 g","X","X","X"]
[null,"Baguette 250 g",null,"X",null,null,"X",null,null,null,null,null,null,"X"]
[null,"Petit pain 50 g","X","X",null,null,"X",null,null,null,null,null,null,"X"]
[null,"Petit pain 80 g sans sel ajouté",null,"X"]
[null,"Petit pain 50 g","X","X"]
[null,"Baguette 250 g",null,"X",null,null,"X"]
[null,"Pain 400 g Farine 76","X","X","X",null,"X"]
[null,"Pain de mie",null,null,null,null,"X",null,null,null,null,null,null,"X"]
[null,"Pain de mie","X","X",null,null,null,"X",null,null,"X"]
[null,"Pâte à tartiner","X","X","X",null,"X","X"]
[null,"Sac bretelle",null,"X"]
[null,"LIVRAISON CADENCEE 03","X",null,"X","X",null,null,"X","X",null,null,null,"X"]
[null,"LIVRAISON CADENCEE 15","X","X","X","X","X","X","X"]
[null,"Brisures de Spéculoos",null,"X"]
[null,"Brisures de Spéculoos",null,"X"]
[null,"Eau de source 1,5 L",null,"X"]
[null,"Eau de source 50 cl",null,"X"]
[null,"LIVRAISON CADENCEE 13","X","X","X","X","X","X",null,null,"X","X",null,"X"]
[null,"Baguette 250 g",null,"X"]
[null,"Pain 400 g Farine 76"]
[null,"Pain 400 g Farine 76",null,"X"]
[null,"Petit pain 50 g",null,"X"]
[null,"Petit pain 80 g sans sel ajouté",null,"X"]
[null,"Petit pain 50 g",null,"X"]
[null,"Baguette 250 g",null,"X"]
[null,"Pain 400 g Farine 76",null,"X"]

{"sheet":"Paramètres","index":25,"n_rows":101,"n_cols":11,"rows_kept":101,"cut":false,"hidden":true,"merged":[[6,1,7,1]]}
[]
[null,null,"Version 3.01E",null,"Version de menus à afficher :",null,null,1,null,null,"1=ELIOR 2=ANSAMBLE"]
[null,"HELIOS-Serveur","REC-RST-DB.elior.net","Base HELIOS","GRPC","Helios_Read","hel_passwd","OUI","NON"]
[null,"HELIOS SQLExpress","localhost\\SQLEXPRESS","Base HELIOS","GRPC","Helios_Read","hel_passwd","OUI","OUI"]
[null,null,"Nom du serveur","Nom de la cuisine","Nom de la base","*Utilisateur","*Mot de passe","Par défaut (OUI)","Sécurité intégrée"]
[1,"Ligne 1 pour HELIOS","PRO-RST-SQL1","Base HELIOS","GRPC","Helios_Read","hel_passwd","OUI","NON"]
[2,"Lignes 2 et à suivre pour ELIXIR","SI-REC-ELX-CC2-V","Test","grgp_local","MAJ","KORRIGAN","NON","NON"]
[3,null,"CC-ANT-ELX","Antony","grgp_local","MAJ","KORRIGAN","NON","NON"]
[4,null,"CC-ASN-ELX","Asnières","grgp_local","MAJ","KORRIGAN","NON","NON"]
[5,null,"SI-PRO-ELX-DB1","Auterive","grgp_local_AUT","MAJ","KORRIGAN","NON","NON"]
[6,null,"CC-AUX-ELX","Auxerre","grgp_local","MAJ","KORRIGAN","NON","NON"]
[7,null,"SI-PRO-ELX-DB1","Blois","grgp_local_BLO","MAJ","KORRIGAN","NON","NON"]
[8,null,"CC-CHL-ELX","Chelles","grgp_local","MAJ","KORRIGAN","NON","NON"]
[9,null,"CC-CON-ELX","Conflans","grgp_local","MAJ","KORRIGAN","NON","NON"]
[10,null,"CC-COR-ELX","Corbeil","grgp_local","MAJ","KORRIGAN","NON","NON"]
[11,null,"CC-DAM-ELX","Dammarie les Lys 2010","grgp_Local","MAJ","KORRIGAN","NON","NON"]
[12,null,"CC-DRA-ELX","Draguignan","grgp_local","MAJ","KORRIGAN","NON","NON"]
[13,null,"CC-THI-ELX","Thiais","grgp_local","MAJ","KORRIGAN","NON","NON"]
[14,null,"CC-EPI-ELX","Epinal","grgp_local","MAJ","KORRIGAN","NON","NON"]
[15,null,"CC-FRE-ELX","Fréjus","grgp_local","MAJ","KORRIGAN","NON","NON"]
[16,null,"CC-FRS-ELX","Fresnes","grgp_local","MAJ","KORRIGAN","NON","NON"]
[17,null,"CC-GON-ELX","Gonesse","grgp_local","MAJ","KORRIGAN","NON","NON"]
[18,null,"CC-GOU-ELX","Goussainville","grgp_local","MAJ","KORRIGAN","NON","NON"]
[19,null,"CC-HYE-ELX","Hyères","grgp_local","MAJ","KORRIGAN","NON","NON"]
[20,null,"SI-PRO-ELX-DB1","La Teste de Buch","grgp_local_TDB","MAJ","KORRIGAN","NON","NON"]
[21,null,"SI-PRO-ELX-DB1","Le Bouscat","grgp_local_bos","MAJ","KORRIGAN","NON","NON"]
[22,null,"CC-CAN-ELX","Le Cannet","grgp_local","MAJ","KORRIGAN","NON","NON"]
[23,null,"CC-LIA-ELX","Liancourt","grgp_local","MAJ","KORRIGAN","NON","NON"]
[24,null,"CC-LUN-ELX","Lunel","grgp_local","MAJ","KORRIGAN","NON","NON"]
[25,null,"CC-LYO-ELX","Lyon","grgp_local","MAJ","KORRIGAN","NON","NON"]
[26,null,"CC-MAN-ELX","Mandelieu","grgp_local","MAJ","KORRIGAN","NON","NON"]
[27,null,"CC-MRG-ELX","Marignane","grgp_local","MAJ","KORRIGAN","NON","NON"]
[28,null,"CC-MRN-ELX","Marignier","grgp_local","MAJ","KORRIGAN","NON","NON"]
[29,null,"SI-PRO-ELX-DB1","Marly les Valenciennes","grgp_local_MRL","MAJ","KORRIGAN","NON","NON"]
[30,null,"CC-MAR-ELX","Marseille St Louis","grgp_local","MAJ","KORRIGAN","NON","NON"]
[31,null,"SI-PRO-ELX-DB1","Metz","grgp_local_MTZ","MAJ","KORRIGAN","NON","NON"]
[32,null,"CC-MON-ELX","Montereau","grgp_local","MAJ","KORRIGAN","NON","NON"]
[33,null,"CC-NOI-ELX","Noisy le Grand","grgp_local","MAJ","KORRIGAN","NON","NON"]
[34,null,"CC-PER-ELX","Perpignan 2010","grgp_local","MAJ","KORRIGAN","NON","NON"]
[35,null,"CC-PTR-ELX","Plessis Trévise","grgp_local","MAJ","KORRIGAN","NON","NON"]
[36,null,"SI-PRO-ELX-DB1","Roanne","grgp_local_ROA","MAJ","KORRIGAN","NON","NON"]
[37,null,"CC-ROS-ELX","Rosny sous Bois","grgp_local","MAJ","KORRIGAN","NON","NON"]
[38,null,"CC-SDI-ELX","Saint Dié","grgp_local","MAJ","KORRIGAN","NON","NON"]
[39,null,"CC-STE-ELX","Saint Etienne","grgp_local","MAJ","KORRIGAN","NON","NON"]
[40,null,"CC-SGL-ELX","Saint Genis Laval","grgp_local","MAJ","KORRIGAN","NON","NON"]
[41,null,"SI-PRO-ELX-DB1","Vallauris","grgp_local_val","MAJ","KORRIGAN","NON","NON"]
[42,null,"CC-VEL-ELX","Vélizy","grgp_local","MAJ","KORRIGAN","NON","NON"]
[43,null,"CC-VIL-ELX","Villemomble","grgp_local","MAJ","KORRIGAN","NON","NON"]
[44,null,"SI-PRO-ELX-DB1","Villeneuve la Garenne","grgp_local_VNE","MAJ","KORRIGAN","NON","NON"]
[45,null,"CR-VIT-PRO-FI","Approplus","grgp_local","MAJ","KORRIGAN","NON","NON"]
[46,null,"PRO-ELX-DB2","Saint-Herblain","grgp_local_STH","MAJ","KORRIGAN","NON","NON"]
[47,null,"PRO-ELX-DB2","Pontivy","grgp_local_PTV","MAJ","KORRIGAN","NON","NON"]
[48,null,"PRO-ELX-DB2","Pessac","grgp_local_PSC","MAJ","KORRIGAN","NON","NON"]
[49,null,"PRO-ELX-DB2","Portet","grgp_local_PRT","MAJ","KORRIGAN","NON","NON"]
[50,null,"PRO-ELX-DB2","Dreux","grgp_local_DRX","MAJ","KORRIGAN","NON","NON"]
[51,null,"PRO-ELX-DB2","Caudan","grgp_local_CAU","MAJ","KORRIGAN","NON","NON"]
[52,null,"PRO-ELX-DB2","Blanquefort","grgp_local_BQF","MAJ","KORRIGAN","NON","NON"]
[53,null,"PRO-ELX-DB2","Bourges","grgp_local_BOU","MAJ","KORRIGAN","NON","NON"]
[54,null,"PRO-ELX-DB2","Blagnac","grgp_local_BLC","MAJ","KORRIGAN","NON","NON"]
[55,null,"PRO-ELX-DB2","Baraqueville","grgp_local_BAR","MAJ","KORRIGAN","NON","NON"]
[56,null,"PRO-ELX-DB2","Amboise","grgp_local_AMB","MAJ","KORRIGAN","NON","NON"]
[57,null,"CC-LCH-ELX","La Chapelle","grgp_local","MAJ","KORRIGAN","NON","NON"]
[58,null,null,null,null,"MAJ","KORRIGAN",null,"NON"]
[59,null,null,null,null,"MAJ","KORRIGAN",null,"NON"]
[]
[]
[null,null,"Mot à rechercher","Lettre associée","Mise en forme",null,"Mot à rechercher","Lettre associée","Mise en forme"]
[null,null,"bio","b","b",null,"bio","b","b"]
[null,null,"VF","z","z",null,"maison","m","m"]
[null,null,"RAV","e","e"]
[]
[null,null,"INNO","a","a"]
[]
[null,null,null,"t","t"]
[null,null,null,"t","t"]
[null,null,"LR","t","t"]
[null,null,"PPE","r","r"]
[null,null,"CQC","y","y"]
[null,null,"REPAS ETOILEE","c","c"]
[null,null,"maison","m","m"]
[null,null,"Local","l","l"]
[null,null,"DD","d","d"]
[]
[]
[]
[null,null,null,"TABLEAU DES ALLERGÈNES - Afficher tous les produits :","OUI"]
[null,null,"CODE","LIBELLE","NO_ORDRE"]
[null,null,"A","Produits Laitiers",1]
[null,null,"F","Blé / Gluten",2]
[null,null,"C","Œuf",3]
[null,null,"D","Poisson",4]
[null,null,"I","Sulfites",5]
[null,null,"G","Fruits à coques",6]
[null,null,"E","Crustacés",7]
[null,null,"O","Mollusques",8]
[null,null,"L","Céleri",9]
[null,null,"B","Soja",10]
[null,null,"K","Arachides",11]
[null,null,"M","Moutarde",12]
[null,null,"H","Sésame",13]
[null,null,"N","Lupin",14]

{"sheet":"InfosBulles","index":26,"n_rows":646,"n_cols":5,"rows_kept":646,"cut":false,"hidden":true,"merged":[[2,0,6,0],[36,2,36,4],[38,0,42,0],[44,0,55,0]]}
[]
[null,null,null,"Infos de la semaine"]
["Remplissez ci-contre les légendes à faire figurer dans les infos bulles. Elles seront proposées par la suite dans le formulaire de saisie.",null,null,"C'est la rentrée !"]
[null,null,null,"Bientôt Noël !"]
[]
[null,null,null,"Miam miam des bonnes frites !"]
[]
[]
[]
[]
[]
[]
[]
[]
[]
[]
[]
[]
[]
[]
[]
[]
[]
[]
[]
[]
[]
[]
[]
[]
[]
[]
[]
[]
[]
[]
[null,null,"Références ELIXIR des plats à Composition"]
[null,null,"Reférence Elixir","Libellé du plat (pour mémoire)","Détail de la Composition"]
["Remplissez ci-contre les références de plats ELIXIR dont la composition doit figurer à lédition dans les infos bulles.",null,13220,"Céleri et mayonnaise au curry","Céléri du du jardin et mayonnaise maison."]
[null,null,9870,"Salade de pommes de terre à la catalane","Poivrons, merguez, banane, cacahuètes, sauce minestrone."]
[null,null,"2555","Salade africaineTOUS A RAPE","carotte, ananas, cœur de palmier"]
[null,null,"2556","Salade africaineTOUS RAPE","carotte, ananas, cœur de palmier"]
[null,null,"4149","Salade africaine natureTOUS NATURE RAPE","carotte, ananas, cœur de palmier"]
[null,null,"4150","Salade africaine natureTOUS NATURE A RAPE","carotte, ananas, cœur de palmier"]
["Pour chaque infobulle vous pouvez définir une couleur du fonds et une couleur de texte. Elles seront reprises à l'édition. Il en est de même pour l'alignement horizontal, le nom de la police et sa taille, le gras et l'italique. S'il y a plusieurs compositions pour une même semaine, seule la présentation de la première composition rencontrée servira de modèle.",null,"8833","Salade africaine natureTOUS NATURE A RAPE VRAC","carotte, ananas, cœur de palmier"]
[null,null,"9477","Salade américaineTOUS VRAC NATURE PESSAC","pomme de terre, tomate, céleri rave, maïs, œuf dur"]
[null,null,"6624","Salade américaineTOUS","pomme de terre, tomate, céleri rave, maïs, œuf dur"]
[null,null,"7978","Salade américaineTOUS VRAC NATURE SIVOM","pomme de terre, tomate, céleri rave, maïs, œuf dur"]
[null,null,"6625","Salade américaine natureTOUS NATURE","pomme de terre, tomate, céleri rave, maïs, œuf dur"]
[null,null,"6626","Salade américaine SSETOUS SSE","pomme de terre, tomate, céleri rave, maïs, œuf dur"]
[null,null,"8675","Salade américaineSSUSGTOUS SSU SG","pomme de terre, tomate, céleri rave, maïs, œuf dur"]
[null,null,"8676","Salade américaineSSUSGSSETOUS SSU SG SSE","pomme de terre, tomate, céleri rave, maïs, œuf dur"]
[null,null,"6733","Salade antiboiseTOUS MAYO","macédoine de légumes, thon"]
[null,null,"6736","Salade antiboise NATURETOUS NATURE","macédoine de légumes, thon"]
[null,null,"6735","Salade antiboise vgte SSETOUS VGTE SSE","macédoine de légumes, thon"]
[null,null,"6734","Salade antiboise vinaigretteTOUS VGTE","macédoine de légumes, thon"]
[null,null,"6824","Salade antillaiseTOUS","riz, tomate, ananas, poivron vert, persil"]
[null,null,"4781","Salade antillaiseQUE CRECHE","riz, tomate, ananas, poivron vert, persil"]
[null,null,"1325","Salade argoat mayonnaiseTOUS","pomme de terre, thon, oignon, persil"]
[null,null,"4174","Salade argoat natureTOUS NATURE","pomme de terre, thon, oignon, persil"]
[null,null,"9073","Salade argoat SSUSGTOUS SSU SG","pomme de terre, thon, oignon, persil"]
[null,null,"9074","Salade argoat SSUSGSSETOUS SSU SG SSE","pomme de terre, thon, oignon, persil"]
[null,null,"2510","Salade argoat vinaigretteTOUS","pomme de terre, thon, oignon, persil"]
[null,null,"2512","Salade argoat vinaigrette SSETOUS SSE","pomme de terre, thon, oignon, persil"]
[null,null,"6228","Salade argoat vinaigrette SSE.TOUS VGTE EN AG SSE","pomme de terre, thon, oignon, persil"]
[null,null,"6227","Salade argoat vinaigrette.TOUS VGTE EN AG","pomme de terre, thon, oignon, persil"]
[null,null,"6390","Salade arizonaTOUS","riz, petit-pois, tomate, maïs, emmental"]
[null,null,"6391","Salade arizona SSETOUS SSE","riz, petit-pois, tomate, maïs, emmental"]
[null,null,"2148","Salade arlequinTOUS","pomme de terre, maïs, poivron rouge, poivron vert"]
[null,null,"2158","Salade arlequin natureTOUS NATURE","pomme de terre, maïs, poivron rouge, poivron vert"]
[null,null,"7779","Salade arlequin SGTOUS SG","pomme de terre, maïs, poivron rouge, poivron vert"]
[null,null,"2149","Salade arlequin SSETOUS SSE","pomme de terre, maïs, poivron rouge, poivron vert"]
[null,null,"9146","Salade arlequin SSE.TOUS SSE","pomme de terre, maïs, poivron rouge, poivron vert"]
[null,null,"7780","Salade arlequin SSUSGTOUS SSU SG","pomme de terre, maïs, poivron rouge, poivron vert"]
[null,null,"7781","Salade arlequin SSUSGSSETOUS SSU SG SSE","pomme de terre, maïs, poivron rouge, poivron vert"]
[null,null,"9061","Salade arlequin.TOUS","pomme de terre, maïs, poivron rouge, poivron vert"]
[null,null,"5162","Salade augustinTOUS DOSE","haricot vert, petit pois, tomate, œuf dur, persil"]
[null,null,"5163","Salade augustin natureTOUS NATURE","haricot vert, petit pois, tomate, œuf dur, persil"]
[null,null,"8419","Salade augustin nature.TOUS NATURE","haricot vert, petit pois, tomate, œuf dur, persil"]
[null,null,"8937","Salade augustin SSETOUS DOSE SSE","haricot vert, petit pois, tomate, œuf dur, persil"]
[null,null,"8936","Salade augustin SSUSGTOUS NATURE","haricot vert, petit pois, tomate, œuf dur, persil"]
[null,null,"8935","Salade augustin SSUSGSSETOUS NATURE","haricot vert, petit pois, tomate, œuf dur, persil"]
[null,null,"8420","Salade augustin.TOUS DOSE","haricot vert, petit pois, tomate, œuf dur, persil"]
[null,null,"5208","Salade auvergnateTOUS EMINCE","chou blanc, emmental, oignon, persil"]
[null,null,"5212","Salade auvergnateTOUS EMINCE DOSE","chou blanc, emmental, oignon, persil"]
[null,null,"5210","Salade auvergnate natureTOUS EMINCE NATURE","chou blanc, emmental, oignon, persil"]
[null,null,"7782","Salade auvergnate SGTOUS EMINCE SG","chou blanc, emmental, oignon, persil"]
[null,null,"5211","Salade auvergnate SSETOUS EMINCE DOSE SSE","chou blanc, emmental, oignon, persil"]
[null,null,"5209","Salade auvergnate SSETOUS EMINCE SSE","chou blanc, emmental, oignon, persil"]
[null,null,"7783","Salade auvergnate SSUSGTOUS EMINCE SSU SG","chou blanc, emmental, oignon, persil"]
[null,null,"7784","Salade auvergnate SSUSGSSETOUS EMINCE SSU SG SSE","chou blanc, emmental, oignon, persil"]
[null,null,"6496","Salade bahiannaiseTOUS","riz, maïs, ananas, raisin sec, crevette, persil, curry"]
[null,null,"6497","Salade bahiannaise natureTOUS NATURE","riz, maïs, ananas, raisin sec, crevette, persil, curry"]
[null,null,"6498","Salade bahiannaise SSETOUS SSE","riz, maïs, ananas, raisin sec, crevette, persil, curry"]
[null,null,"5455","Salade baltiqueHORS SCOLAIRE","pomme de terre, hareng, oignon, persil"]
[null,null,"5165","Salade bavaroiseTOUS","pomme de terre, tomate, épaule de porc, emmental"]
[null,null,"7965","Salade bavaroiseTOUS VRAC NATURE","pomme de terre, tomate, épaule de porc, emmental"]
[null,null,"5166","Salade bavaroise natureTOUS NATURE","pomme de terre, tomate, épaule de porc, emmental"]
[null,null,"5167","Salade bavaroise SSETOUS SSE","pomme de terre, tomate, épaule de porc, emmental"]
[null,null,"6481","Salade bavaroise SSETOUS DOSETTE SSE","pomme de terre, tomate, épaule de porc, emmental"]
[null,null,"4151","Salade bicoloreTOUS A RAPE","carotte, radis"]
[null,null,"4152","Salade bicoloreTOUS DEJA RAPE","carotte, radis"]
[null,null,"8530","Salade bicolore BIOTOUS A RAPE CAROTTE TERRE BIO","carotte, radis"]
[null,null,"8531","Salade bicolore BIO SSETOUS A RAPER CAROT TERR BIOSSE","carotte, radis"]
[null,null,"3430","Salade bicolore natureTOUS NATURE DEJA RAPE","carotte, radis"]
[null,null,"3431","Salade bicolore natureTOUS NATURE A RAPE","carotte, radis"]
[null,null,"7785","Salade bicolore SGTOUS SG A RAPE","carotte, radis"]
[null,null,"3963","Salade bicolore SSETOUS DEJA RAPE SSE","carotte, radis"]
[null,null,"3964","Salade bicolore SSETOUS A RAPE SSE","carotte, radis"]
[null,null,"7786","Salade bicolore SSUSGTOUS SSU SG A RAPE","carotte, radis"]
[null,null,"7787","Salade bicolore SSUSGSSETOUS SSU SG SSE A RAPE","carotte, radis"]
[null,null,"1432","Salade blé à la catalane SSETOUS SSE"]
[null,null,"8282","Salade blé exotiqueTOUS VRAC"]
[null,null,"8584","Salade blé exotiqueTOUS VRAC SIVOM"]
[null,null,"9057","Salade blé exotiqueTOUS VRAC PESSAC"]
[null,null,"9457","Salade blé exotiqueTOUS"]
[null,null,"9458","Salade blé exotique natureTOUS NATURE"]
[null,null,"8455","Salade blé exotique natureTOUS VRAC NATURE"]
[null,null,"9326","Salade blé Fantaisie nature.TOUS NATURE.","blé, tomate, maïs"]
[null,null,"7805","Salade blé Fantaisie SSUSGSSETOUS SSU SG SSE"]
[null,null,"7808","Salade blé mimolette SSUSGSSETOUS SSU SG SSE","blé, mimolette"]
[null,null,"6482","Salade brésilienneTOUT RAPER","carotte râpée, cœur de palmier, haricot rouge"]
[null,null,"5168","Salade brésilienneTOUS A RAPER","carotte râpée, cœur de palmier, haricot rouge"]
[null,null,"5177","Salade brésilienneTOUS A RAPER DOSE","carotte râpée, cœur de palmier, haricot rouge"]
[null,null,"5176","Salade brésilienne natureTOUS A RAPER NATURE","carotte râpée, cœur de palmier, haricot rouge"]
[null,null,"7788","Salade brésilienne SGTOUS A RAPER SG","carotte râpée, cœur de palmier, haricot rouge"]
[null,null,"5178","Salade brésilienne SSETOUS A RAPER DOSE SSE","carotte râpée, cœur de palmier, haricot rouge"]
[null,null,"5172","Salade brésilienne SSETOUS A RAPER SSE","carotte râpée, cœur de palmier, haricot rouge"]
[null,null,"6483","Salade brésilienne SSETOUS RAPER SSE","carotte râpée, cœur de palmier, haricot rouge"]
[null,null,"7789","Salade brésilienne SSUSGTOUS A RAPER SSU SG","carotte râpée, cœur de palmier, haricot rouge"]
[null,null,"7790","Salade brésilienne SSUSGSSETOUS A RAPER SSU SG SSE","carotte râpée, cœur de palmier, haricot rouge"]
[null,null,"8113","Salade californienne natureTOUS VRAC/BARQUETTE","riz, maïs, épaule de porc, poivron rouge, poivron vert"]
[null,null,"9381","Salade californienne natureTOUS VRAC SIVOM","riz, maïs, épaule de porc, poivron rouge, poivron vert"]
[null,null,"2709","Salade camarguaiseTOUS","riz, tomate, poivron vert, œuf dur, olive noire, cornichon"]
[null,null,"4153","Salade camarguaise natureTOUS NATURE","riz, tomate, poivron vert, œuf dur, olive noire, cornichon"]
[null,null,"7791","Salade camarguaise SGTOUS SG","riz, tomate, poivron vert, œuf dur, olive noire, cornichon"]
[null,null,"2710","Salade camarguaise SSETOUS SSE","riz, tomate, poivron vert, œuf dur, olive noire, cornichon"]
[null,null,"7792","Salade camarguaise SSUSGTOUS SSU SG","riz, tomate, poivron vert, œuf dur, olive noire, cornichon"]
[null,null,"7793","Salade camarguaise SSUSGSSETOUS SSU SG SSE","riz, tomate, poivron vert, œuf dur, olive noire, cornichon"]
[null,null,"5867","Salade cantonnaiseTOUS A RAPE"]
[null,null,"7108","Salade cantonnaise natureTOUS A RAPE NATURE"]
[null,null,"7794","Salade cantonnaise SGTOUS A RAPE SG"]
[null,null,"8103","Salade de la merTOUS VRAC NATURE"]
[null,null,"2848","Salade de lentilleQUE CRECHE"]
[null,null,"2849","Salade de lentille BIOQUE CRECHE BIO"]
[null,null,"2240","Salade de lentillesTOUS A CUIRE"]
[null,null,"8571","Salade de lentillesTOUS VRAC SIVOM"]
[null,null,"2241","Salade de lentilles BIOTOUS A CUIRE BIO"]
[null,null,"4159","Salade de lentilles BIO natTOUS NATURE A CUIRE BIO"]
[null,null,"4161","Salade de lentilles BIO natTOUS NATURE BTE BIO"]
[null,null,"2242","Salade de lentilles BIO SSETOUS A CUIRE BIO SSE"]
[null,null,"2244","Salade de lentilles BIO SSE.TOUS BIO BTE SSE"]
[null,null,"9396","Salade de lentilles BIO vgteTOUS BTE BIO"]
[null,null,"2243","Salade de lentilles BIO.TOUS BTE BIO"]
[null,null,"4160","Salade de lentilles natureTOUS NATURE BTE"]
[null,null,"4158","Salade de lentilles natureTOUS NATURE A CUIRE"]
[null,null,"7809","Salade de lentilles SGTOUS SG BTE"]
[null,null,"2245","Salade de lentilles SSETOUS A CUIRE SSE"]
[null,null,"7810","Salade de lentilles SSUSGTOUS SSU SG BTE"]
[null,null,"7811","Salade de lentilles SSUSGSSETOUS SSU SG SSE BTE"]
[null,null,"9398","Salade de lentilles vgtTOUS BTE"]
[null,null,"2246","Salade de lentilles.TOUS BTE"]
[null,null,"9324","Salade de lentilles..TOUS BTE."]
[null,null,"9328","Salade de lentilles.SSETOUS BTE. SSE"]
[null,null,"2961","Salade de lentilles.SSETOUS BTE SSE"]
[null,null,"6566","Salade de mache aux agrumesHORS SCOLAIRE BARQUETTE"]
[null,null,"7813","Salade de mache aux agrumes SGHORS SCOLAIRE BARQUETTE SG"]
[null,null,"6630","Salade de mache aux agrumesNATHORS SCOLAIRE BARQUETTE NATURE"]
[null,null,"6631","Salade de mache aux agrumesSSEHORS SCOLAIRE BARQUETTE SSE"]
[null,null,"4435","Salade de pâtesTOUS."]
[null,null,"2107","Salade de pâtesTOUS"]
[null,null,"8837","Salade de pâtes au basilicTOUS."]
[null,null,"8838","Salade de pâtes au basilicTOUS"]
[null,null,"9474","Salade de pâtes au basilicTOUS VRAC PESSAC"]
[null,null,"9357","Salade de pâtes BIOTOUS. BIO"]
[null,null,"4436","Salade de pâtes natureTOUS NATURE"]
[null,null,"7636","Salade de pâtes SGTOUS SG"]
[null,null,"4434","Salade de pâtes SSETOUS SSE."]
[null,null,"4266","Salade de pâtes SSETOUS SSE"]
[null,null,"7637","Salade de pâtes SSUSGTOUS SSU SG"]
[null,null,"7638","Salade de pâtes SSUSGSSETOUS SSU SG SSE"]
[null,null,"9750","Salade de PdT from. blanc ciboQUE CRECHE PAST."]
[null,null,"5506","Salade de PdT mimoletteQUE CRECHE FRAIS"]
[null,null,"5507","Salade de PdT mimoletteQUE CRECHE PAST."]
[null,null,"4374","Salade de pomme de terreQUE CRECHE FRAIS"]
[null,null,"2851","Salade de pomme de terreQUE CRECHE PAST."]
[null,null,"2853","Salade de pomme de terre BIOQUE CRECHE BLANCHI BIO"]
[null,null,"4069","Salade de pomme de terre BIOQUE CRECHE FRAIS BIO"]
[null,null,"7975","Salade de printempsTOUS VRAC NATURE"]
[null,null,"2794","Salade de quinoaQUE CRECHE"]
[null,null,"2795","Salade de quinoa BIOQUE CRECHE BIO"]
[null,null,"2844","Salade de rizQUE CRECHE"]
[null,null,"5321","Salade de riz au thonTOUS"]
[null,null,"5323","Salade de riz au thonTOUS DOSE"]
[null,null,"9358","Salade de riz au thonTOUS VRAC SIVOM"]
[null,null,"8379","Salade de riz au thon mayoTOUS"]
[null,null,"5320","Salade de riz au thon natureTOUS NATURE"]
[null,null,"7819","Salade de riz au thon SGTOUS SG"]
[null,null,"5322","Salade de riz au thon SSETOUS SSE"]
[null,null,"5325","Salade de riz au thon SSETOUS DOSE SSE"]
[null,null,"7820","Salade de riz au thon SSUSGTOUS SSU SG"]
[null,null,"7821","Salade de riz au thon SSUSGSSETOUS SSU SG SSE"]
[null,null,"2845","Salade de riz BIOQUE CRECHE BIO"]
[null,null,"2350","Salade de riz BIO natureTOUS NATURE BIO"]
[null,null,"4780","Salade de riz BIO tomateQUE CRECHE BIO"]
[null,null,"2352","Salade de riz BIO vgte SSETOUS BIO SSE"]
[null,null,"2351","Salade de riz BIO vinaigretteTOUS BIO"]
[null,null,"5342","Salade de riz emmentalTOUS"]
[null,null,"5343","Salade de riz emmentalTOUS DOSE"]
[null,null,"5344","Salade de riz emmental natureTOUS NATURE"]
[null,null,"5345","Salade de riz emmental SSETOUS DOSE SSE"]
[null,null,"5346","Salade de riz emmental SSETOUS SSE"]
[null,null,"4233","Salade de riz fantaisieQUE CRECHE"]
[null,null,"4234","Salade de riz fantaisie BIOQUE CRECHE BIO"]
[null,null,"6464","Salade de riz h.vert tomateQUE CRECHE"]
[null,null,"8475","Salade de riz h.vert tomateTOUS"]
[null,null,"8527","Salade de riz haricot vertTOUS"]
[null,null,"8568","Salade de riz haricot vert.TOUS"]
[null,null,"8569","Salade de riz haricot vert.SSETOUS SSE"]
[null,null,"8258","Salade de riz mimoletteTOUS"]
[null,null,"8259","Salade de riz mimoletteTOUS DOSE"]
[null,null,"8260","Salade de riz mimolette natureTOUS NATURE"]
[null,null,"8261","Salade de riz mimolette SSETOUS DOSE SSE"]
[null,null,"8262","Salade de riz mimolette SSETOUS SSE"]
[null,null,"8843","Salade de riz mimosaTOUS."]
[null,null,"8841","Salade de riz mimosaTOUS"]
[null,null,"8842","Salade de riz mimosa SSETOUS SSE"]
[null,null,"8844","Salade de riz mimosa SSE.TOUS SSE"]
[null,null,"9108","Salade de riz mimosaNATURETOUS NATURE"]
[null,null,"9109","Salade de riz mimosaSSUSGTOUS SSU SG"]
[null,null,"9110","Salade de riz mimosaSSUSGSSETOUS SSU SG SSE"]
[null,null,"4431","Salade de riz natureTOUS NATURE."]
[null,null,"2346","Salade de riz natureTOUS NATURE"]
[null,null,"2846","Salade de riz niçoisQUE CRECHE"]
[null,null,"2847","Salade de riz niçois BIOQUE CRECHE BIO"]
[null,null,"7822","Salade de riz SGTOUS SG"]
[null,null,"7823","Salade de riz SSUSGTOUS SSU SG"]
[null,null,"7824","Salade de riz SSUSGSSETOUS SSU SG SSE"]
[null,null,"4779","Salade de riz tomateQUE CRECHE"]
[null,null,"9414","Salade de riz tomate natureTOUS VRAC NATURE"]
[null,null,"4432","Salade de riz vgteTOUS"]
[null,null,"4433","Salade de riz vgte SSETOUS SSE"]
[null,null,"2347","Salade de riz vinaigretteTOUS"]
[null,null,"2349","Salade de riz vinaigrette SSETOUS SSE"]
[null,null,"4795","Salade de tomate BIO fétaQUE CRECHE BIO"]
[null,null,"9223","Salade de tomate emmentalQUE CRECHE CUBE"]
[null,null,"8893","Salade de tomate fétaTOUS NATURE"]
[null,null,"2828","Salade de tomate fétaQUE CRECHE"]
[null,null,"9631","Salade de tomate maïsQUE CRECHE"]
[null,null,"9476","Salade de tomate mozzarellaTOUS VRAC NATURE PESSAC"]
[null,null,"8831","Salade de tomate mozzarellaTOUS VRAC NATURE SIVOM"]
[null,null,"8705","Salade de tomate mozzarellaTOUS NATURE"]
[null,null,"2829","Salade de tomate mozzarellaQUE CRECHE"]
[null,null,"2842","Salade de tortiQUE CRECHE"]
[null,null,"2843","Salade de torti basilicQUE CRECHE"]
[null,null,"3606","Salade de torti BIOQUE CRECHE BIO"]
[null,null,"3607","Salade de torti BIO basilicQUE CRECHE BIO"]
[null,null,"2925","Salade de torti couleurQUE CRECHE"]
[null,null,"5635","Salade dePdt BIO vinaigretteTOUS BIO"]
[null,null,"5147","Salade des IncasQUE CRECHE"]
[null,null,"2284","Salade des incasTOUS"]
[null,null,"2285","Salade des incas natureTOUS NATURE"]
[null,null,"7825","Salade des incas SGTOUS SG"]
[null,null,"2286","Salade des incas SSETOUS SSE"]
[null,null,"7826","Salade des incas SSUSGTOUS SSU SG"]
[null,null,"7827","Salade des incas SSUSGSSETOUS SSU SG SSE"]
[null,null,"3227","Salade d'haricot plat tomateQUE CRECHE"]
[null,null,"2855","Salade d'haricot vert tom. BIOQUE CRECHE BIO"]
[null,null,"2854","Salade d'haricot vert tomateQUE CRECHE"]
[null,null,"4070","Salade du chefTOUS"]
[null,null,"4072","Salade du chef natureTOUS NATURE"]
[null,null,"9740","Salade du chef natureTOUS VRAC NATURE SIVOM"]
[null,null,"7828","Salade du chef SGTOUS SG"]
[null,null,"4071","Salade du chef SSETOUS SSE"]
[null,null,"7163","Salade du chef SSE.TOUS SANS PORC SSE"]
[null,null,"7829","Salade du chef SSUSGTOUS SSU SG"]
[null,null,"7830","Salade du chef SSUSGSSETOUS SSU SG SSE"]
[null,null,"7162","Salade du chef.TOUS SANS PORC"]
[null,null,"2014","Salade du LéonTOUS"]
[null,null,"4163","Salade du Léon natureTOUS NATURE"]
[null,null,"7831","Salade du Léon SGTOUS SG"]
[null,null,"2537","Salade du Léon SSETOUS SSE"]
[null,null,"7832","Salade du Léon SSUSGTOUS SSU SG"]
[null,null,"7833","Salade du Léon SSUSGSSETOUS SSU SG SSE"]
[null,null,"2174","Salade du sud ouestTOUS"]
[null,null,"6493","Salade endive fromagèreTOUS DOSE"]
[null,null,"6495","Salade endive fromagère natureTOUS NATURE"]
[null,null,"6494","Salade endive fromagère SSETOUS DOSE SSE"]
[null,null,"2557","Salade EsaüTOUS BTE"]
[null,null,"2558","Salade EsaüTOUS A CUIRE"]
[null,null,"4164","Salade Esaü natureTOUS NATURE BTE"]
[null,null,"4165","Salade Esaü natureTOUS NATURE A CUIRE"]
[null,null,"7834","Salade Esaü SGTOUS SG BTE"]
[null,null,"3939","Salade Esaü SSETOUS BTE SSE"]
[null,null,"2559","Salade Esaü SSETOUS A CUIRE SSE"]
[null,null,"7835","Salade Esaü SSUSGTOUS SSU SG BTE"]
[null,null,"7836","Salade Esaü SSUSGSSETOUS SSU SG SSE BTE"]
[null,null,"6392","Salade espagnoleTOUS DOSE"]
[null,null,"6394","Salade espagnole natureTOUS NATURE"]
[null,null,"8147","Salade espagnole SSETOUS DOSE SSE"]
[null,null,"9483","Salade exotiqueTOUS VRAC PESSAC"]
[null,null,"4789","Salade exotiqueTOUS"]
[null,null,"5105","Salade exotiqueQUE CRECHE"]
[null,null,"4788","Salade exotique natureTOUS NATURE"]
[null,null,"7837","Salade exotique SGTOUS SG"]
[null,null,"4787","Salade exotique SSETOUS SSE"]
[null,null,"7838","Salade exotique SSUSGTOUS SSU SG"]
[null,null,"7839","Salade exotique SSUSGSSETOUS SSU SG SSE"]
[null,null,"4784","Salade fantaisie natureTOUS RAPE NATURE"]
[null,null,"7840","Salade fantaisie SGTOUS RAPE SG"]
[null,null,"7945","Salade fantaisie SSUSGTOUS RAPE SSU SG"]
[null,null,"7841","Salade fantaisie SSUSGSSETOUS RAPE SSUSGSSE"]
[null,null,"4782","Salade fantaisie vgte SSETOUS RAPE SSE"]
[null,null,"4783","Salade fantaisie vinaigretteTOUS RAPE"]
[null,null,"7847","Salade far. surimi SSUSGSSETOUS SSU SG SSE"]
[null,null,"5107","Salade farandoleQUE CRECHE"]
[null,null,"2027","Salade farandoleTOUS"]
[null,null,"4166","Salade farandole natureTOUS NATURE"]
[null,null,"9456","Salade farandole natureTOUS VRAC SIVOM"]
[null,null,"7842","Salade farandole SGTOUS SG"]
[null,null,"2028","Salade farandole SSETOUS SSE"]
[null,null,"7843","Salade farandole SSUSGTOUS SSU SG"]
[null,null,"7946","Salade farandole SSUSGSSETOUS SSU SG SSE"]
[null,null,"7947","Salade farandole sur. SSUSGSSETOUS SSU SG SSE"]
[null,null,"5697","Salade farandole surimiTOUS"]
[null,null,"5699","Salade farandole surimi natureTOUS NATURE"]
[null,null,"7845","Salade farandole surimi SGTOUS SG"]
[null,null,"5698","Salade farandole surimi SSETOUS SSE"]
[null,null,"7846","Salade farandole surimi SSUSGTOUS SSU SG"]
[null,null,"2192","Salade fraîcheurTOUS","riz, tomate, maïs, radis"]
[null,null,"8840","Salade fraîcheur BIOTOUS BIO","riz, tomate, maïs, radis"]
[null,null,"2195","Salade fraîcheur natureTOUS NATURE","riz, tomate, maïs, radis"]
[null,null,"9241","Salade fraîcheur nature.TOUS NATURE"]
[null,null,"7848","Salade fraîcheur SGTOUS SG","riz, tomate, maïs, radis"]
[null,null,"2193","Salade fraîcheur SSETOUS SSE","riz, tomate, maïs, radis"]
[null,null,"9242","Salade fraîcheur SSE.TOUS SSE"]
[null,null,"7849","Salade fraîcheur SSUSGTOUS SSU SG","riz, tomate, maïs, radis"]
[null,null,"7948","Salade fraîcheur SSUSGSSETOUS SSU SG SSE","riz, tomate, maïs, radis"]
[null,null,"9238","Salade fraîcheur.TOUS"]
[null,null,"9051","Salade fraîcheur.TOUS VRAC PESSAC","riz, tomate, maïs, radis"]
[null,null,"8907","Salade gauloiseTOUS NATURE A RAPER BARQUETTE","céleri branche, pomme,  salade, emmental, noix"]
[null,null,"8908","Salade gauloiseTOUS NATURE A RAPER VRAC","céleri branche, pomme,  salade, emmental, noix"]
[null,null,"9473","Salade gauloiseTOUS NATURE A RAPER VRAC PESSA","céleri branche, pomme,  salade, emmental, noix"]
[null,null,"9331","Salade grecqueTOUS NATURE"]
[null,null,"9488","Salade haricot vertTOUS VRAC SURG PESSAC"]
[null,null,"9394","Salade haricot vert BIOTOUS SURG BIO"]
[null,null,"9255","Salade haricot vert NATURETOUS VRAC SURG SIVOM"]
[null,null,"9254","Salade haricot vert tomate BIOTOUS VRAC SURG BIO SIVOM"]
[null,null,"9431","Salade haricot vert tomateBIOTOUS VRAC SURG BIO SIVOM"]
[null,null,"9067","Salade haricot vert.QUE CRECHE"]
[null,null,"6640","Salade hawaïenne mixTOUS A RAPER"]
[null,null,"8076","Salade hawaïenne mixTOUS A RAPER TOUT VRAC"]
[null,null,"8077","Salade hawaïenne mix NATURETOUS A RAPER NATURE VRAC"]
[null,null,"6641","Salade hawaïenne mix NATURETOUS A RAPER NATURE"]
[null,null,"6642","Salade hawaïenne mix SSETOUS A RAPER SSE"]
[null,null,"2608","Salade hébéTOUS"]
[null,null,"4167","Salade hébé natureTOUS NATURE"]
[null,null,"2609","Salade hébé SSETOUS SSE"]
[null,null,"8177","Salade icebergTOUS VRAC"]
[null,null,"8367","Salade iceberg mimosaTOUS VRAC"]
[null,null,"8178","Salade iceberg.TOUS VRAC"]
[null,null,"5216","Salade indienneTOUS DOSE"]
[null,null,"5213","Salade indienneTOUS"]
[null,null,"5215","Salade indienne natureTOUS NATURE"]
[null,null,"5214","Salade indienne SSETOUS SSE"]
[null,null,"5217","Salade indienne SSETOUS DOSE SSE"]
[null,null,"4110","Salade italienneQUE CRECHE","pâte, tomate, olive noire, poivron vert, basilic"]
[null,null,"2110","Salade italienneTOUS","pâte, tomate, olive noire, poivron vert, basilic"]
[null,null,"4230","Salade italienne BIOQUE CRECHE BIO","pâte, tomate, olive noire, poivron vert, basilic"]
[null,null,"5387","Salade italienne bioTOUS BIO","pâte, tomate, olive noire, poivron vert, basilic"]
[null,null,"5389","Salade italienne BIO natureTOUS BIO NATURE","pâte, tomate, olive noire, poivron vert, basilic"]
[null,null,"5388","Salade italienne BIO SSETOUS BIO SSE","pâte, tomate, olive noire, poivron vert, basilic"]
[null,null,"4168","Salade italienne natureTOUS NATURE","pâte, tomate, olive noire, poivron vert, basilic"]
[null,null,"9099","Salade italienne nature.TOUS NATURE"]
[null,null,"2108","Salade italienne SSETOUS SSE","pâte, tomate, olive noire, poivron vert, basilic"]
[null,null,"9100","Salade italienne SSE.TOUS SSE"]
[null,null,"8728","Salade italienne SSUSGTOUS SSU SG","pâte, tomate, olive noire, poivron vert, basilic"]
[null,null,"9101","Salade italienne SSUSG.TOUS SSU SG"]
[null,null,"8729","Salade italienne SSUSGSSETOUS SSU SG SSE","pâte, tomate, olive noire, poivron vert, basilic"]
[null,null,"9102","Salade italienne SSUSGSSE.TOUS SSU SG SSE"]
[null,null,"9098","Salade italienne.TOUS"]
[null,null,"3953","Salade japonaiseTOUS"]
[null,null,"4169","Salade japonaise natureTOUS NATURE"]
[null,null,"3954","Salade japonaise SSETOUS SSE"]
[null,null,"5184","Salade loretteTOUS"]
[null,null,"5186","Salade loretteTOUS DOSE"]
[null,null,"5183","Salade lorette natureTOUS NATURE"]
[null,null,"7851","Salade lorette SGTOUS SG"]
[null,null,"5187","Salade lorette SSETOUS DOSE SSE"]
[null,null,"5185","Salade lorette SSETOUS SSE"]
[null,null,"7852","Salade lorette SSUSGTOUS SSU SG"]
[null,null,"7949","Salade lorette SSUSGSSETOUS SSU SGS SSE"]
[null,null,"9546","Salade lorraine bioTOUS VRAC SIVOM CHOU BIO"]
[null,null,"4907","Salade louisetteTOUS"]
[null,null,"6396","Salade louisette SSETOUS SSE"]
[null,null,"7943","Salade mache agrumes SSUSGSSEHORS SCOLAIRE BARQ. SSU SG SSE"]
[null,null,"7814","Salade mache aux agrumes SSUSGHORS SCOLAIRE BARQUETTE SSU SG"]
[null,null,"2115","Salade marco poloTOUS","pâte, poivron rouge, surimi"]
[null,null,"9731","Salade marco poloTOUS VRAC PESSAC","pâte, poivron rouge, surimi"]
[null,null,"8593","Salade marco poloTOUS VRAC SIVOM","pâte, poivron rouge, surimi"]
[null,null,"8594","Salade marco polo SSETOUS VRAC SIVOM SSE","pâte, poivron rouge, surimi"]
[null,null,"2116","Salade marco polo SSETOUS SSE","pâte, poivron rouge, surimi"]
[null,null,"8672","Salade marco polo.TOUS"]
[null,null,"6477","Salade méléeTOUS BARQUETTE","maïs, salade, croûton"]
[null,null,"8581","Salade méléeTOUS VRAC SIVOM","maïs, salade, croûton"]
[null,null,"9734","Salade méléeTOUS VRAC PESSAC","maïs, salade, croûton"]
[null,null,"5961","Salade MêléeHORS SCOLAIRE","maïs, salade, croûton"]
[null,null,"5962","Salade Mêlée SSEHORS SCOLAIRE SSE","maïs, salade, croûton"]
[null,null,"5918","Salade Méli MéloTOUS"]
[null,null,"5919","Salade Méli Mélo natureTOUS NATURE"]
[null,null,"5920","Salade Méli Mélo SSETOUS SSE"]
[null,null,"6811","Salade MexicaineTOUS","riz, poivron vert, maïs, thon, haricot rouge, olive noire"]
[null,null,"2097","Salade MonégasqueTOUS"]
[null,null,"4170","Salade Monégasque natureTOUS NATURE"]
[null,null,"2099","Salade Monégasque SSETOUS SSE"]
[null,null,"4228","Salade nantaiseQUE CRECHE PAST.","tomate, pomme de terre, haricot vert, concombre"]
[null,null,"6487","Salade NantaiseTOUS NATURE","tomate, pomme de terre, haricot vert, concombre"]
[null,null,"4229","Salade nantaise BIOQUE CRECHE PAST. BIO","tomate, pomme de terre, haricot vert, concombre"]
[null,null,"6488","Salade Nantaise vgteTOUS","tomate, pomme de terre, haricot vert, concombre"]
[null,null,"6489","Salade Nantaise vgte SSETOUS SSE","tomate, pomme de terre, haricot vert, concombre"]
[null,null,"9160","Salade nicardeQUE CRECHE"]
[null,null,"7295","Salade nicardeTOUS","pomme de terre, tomate, haricot vert"]
[null,null,"9729","Salade nicardeTOUS VRAC PESSAC","pomme de terre, tomate, haricot vert"]
[null,null,"9027","Salade nicarde BIOTOUS BIO","pomme de terre, tomate, haricot vert"]
[null,null,"7294","Salade nicarde natureTOUS NATURE","pomme de terre, tomate, haricot vert"]
[null,null,"9028","Salade nicarde nature BIOTOUS NATURE BIO","pomme de terre, tomate, haricot vert"]
[null,null,"7296","Salade nicarde SSETOUS SSE","pomme de terre, tomate, haricot vert"]
[null,null,"9029","Salade nicarde SSE BIOTOUS SSE BIO","pomme de terre, tomate, haricot vert"]
[null,null,"8752","Salade nicarde SSUSGTOUS SSU SG","pomme de terre, tomate, haricot vert"]
[null,null,"8753","Salade nicarde SSUSGSSETOUS SSU SG SSE","pomme de terre, tomate, haricot vert"]
[null,null,"9336","Salade nicarde.QUE CRECHE.","pomme de terre, tomate, haricot vert"]
[null,null,"8181","Salade niçoise BIO natureTOUS BIO NATURE","pomme de terre, tomate, haricot vert, thon, œuf dur, poivron vert, olive noire, persil"]
[null,null,"8182","Salade niçoise BIO vgteTOUS BIO","pomme de terre, tomate, haricot vert, thon, œuf dur, poivron vert, olive noire, persil"]
[null,null,"8183","Salade niçoise BIO vgte SSETOUS SSE BIO","pomme de terre, tomate, haricot vert, thon, œuf dur, poivron vert, olive noire, persil"]
[null,null,"7302","Salade niçoise natureTOUS NATURE","pomme de terre, tomate, haricot vert, thon, œuf dur, poivron vert, olive noire, persil"]
[null,null,"7303","Salade niçoise vgteTOUS","pomme de terre, tomate, haricot vert, thon, œuf dur, poivron vert, olive noire, persil"]
[null,null,"7304","Salade niçoise vgte SSETOUS SSE","pomme de terre, tomate, haricot vert, thon, œuf dur, poivron vert, olive noire, persil"]
[null,null,"6135","Salade orientaleTOUS","riz, poivron vert, œuf dur"]
[null,null,"6140","Salade orientale NATURETOUS NATURE","riz, poivron vert, œuf dur"]
[null,null,"7854","Salade orientale SGTOUS SG","riz, poivron vert, œuf dur"]
[null,null,"6139","Salade orientale SSETOUS SSE","riz, poivron vert, œuf dur"]
[null,null,"7855","Salade orientale SSUSGTOUS SSU SG","riz, poivron vert, œuf dur"]
[null,null,"7951","Salade orientale SSUSGSSETOUS SSU SG SSE","riz, poivron vert, œuf dur"]
[null,null,"8810","Salade parisienneTOUS VRAC SIVOM","pomme de terre, asperge, épaule de porc, tomate"]
[null,null,"9561","Salade parisienneTOUS VRAC PESSAC","pomme de terre, asperge, épaule de porc, tomate"]
[null,null,"9327","Salade parisienne.TOUS"]
[null,null,"1897","Salade ParmentièreTOUS"]
[null,null,"1016","Salade Parmentière natureTOUS"]
[null,null,"9382","Salade Parmentière natureTOUS BARQUETTE"]
[null,null,"4171","Salade Parmentière natureTOUS NATURE"]
[null,null,"9487","Salade pastourelleTOUS VRAC PESSAC"]
[null,null,"2112","Salade pastourelleTOUS","pâte, tomate, poivron vert"]
[null,null,"4172","Salade pastourelle natureTOUS NATURE","pâte, tomate, poivron vert"]
[null,null,"9411","Salade pastourelle natureTOUS VRAC NATURE SIVOM","pâte, tomate, poivron vert"]
[null,null,"4840","Salade pastourelle nature.TOUS NATURE"]
[null,null,"7857","Salade pastourelle SGTOUS SG","pâte, tomate, poivron vert"]
[null,null,"2111","Salade pastourelle SSETOUS SSE","pâte, tomate, poivron vert"]
[null,null,"4841","Salade pastourelle SSE.TOUS SSE"]
[null,null,"8609","Salade pastourelle SSUSGTOUS SSUSG"]
[null,null,"7858","Salade pastourelle SSUSGTOUS SSU SG","pâte, tomate, poivron vert"]
[null,null,"8610","Salade pastourelle SSUSGSSETOUS SSUSGSSE"]
[null,null,"7952","Salade pastourelle SSUSGSSETOUS SSU SG SSE","pâte, tomate, poivron vert"]
[null,null,"4839","Salade pastourelle.TOUS"]
[null,null,"2334","Salade pâte tricolore natureTOUS NATURE","pâte, tomate, olive noire, poivron vert"]
[null,null,"8998","Salade pâte tricolore nature.TOUS NATURE"]
[null,null,"7816","Salade pâte tricolore SGTOUS SG","pâte, tomate, olive noire, poivron vert"]
[null,null,"2335","Salade pâte tricolore SSETOUS SSE","pâte, tomate, olive noire, poivron vert"]
[null,null,"8999","Salade pâte tricolore SSE.TOUS SSE"]
[null,null,"7817","Salade pâte tricolore SSUSGTOUS SSU SG","pâte, tomate, olive noire, poivron vert"]
[null,null,"7944","Salade pâte tricolore SSUSGSSETOUS SSU SG SSE","pâte, tomate, olive noire, poivron vert"]
[null,null,"8997","Salade pâte tricolore vgtTOUS"]
[null,null,"9719","Salade pâte tricolore vgt.TOUS VRAC PESSAC","pâte, tomate, olive noire, poivron vert"]
[null,null,"2336","Salade pâte tricolore vgt.TOUS","pâte, tomate, olive noire, poivron vert"]
[null,null,"6501","Salade paysanneTOUS","pomme de terre, carotte, lardon, tomate, croûton"]
[null,null,"6499","Salade paysanneTOUS NATURE","pomme de terre, carotte, lardon, tomate, croûton"]
[null,null,"8716","Salade paysanne BIOTOUS BIO NATURE","pomme de terre, carotte, lardon, tomate, croûton"]
[null,null,"8717","Salade paysanne BIOTOUS BIO","pomme de terre, carotte, lardon, tomate, croûton"]
[null,null,"8718","Salade paysanne BIO SSETOUS BIO SSE","pomme de terre, carotte, lardon, tomate, croûton"]
[null,null,"6500","Salade paysanne SSETOUS SSE","pomme de terre, carotte, lardon, tomate, croûton"]
[null,null,"8714","Salade PDT BIO échal. SSUSGSSETOUS BIO SSU SG SSE"]
[null,null,"8709","Salade PDT BIO échaloteTOUS BIO"]
[null,null,"8710","Salade PDT BIO échalote natureTOUS NATURE BIO"]
[null,null,"8711","Salade PDT BIO échalote SGTOUS BIO SG"]
[null,null,"8712","Salade PDT BIO échalote SSETOUS BIO SSE"]
[null,null,"8713","Salade PDT BIO échalote SSUSGTOUS BIO SSU SG"]
[null,null,"1663","Salade PDT échaloteTOUS"]
[null,null,"4173","Salade PDT échalote natureTOUS NATURE"]
[null,null,"7860","Salade PDT échalote SGTOUS SG"]
[null,null,"1653","Salade PDT échalote SSETOUS SSE"]
[null,null,"7861","Salade PDT échalote SSUSGTOUS SSU SG"]
[null,null,"7862","Salade PDT échalote SSUSGSSETOUS SSU SG SSE"]
[null,null,"9136","Salade pdt haricot vert vgteTOUS"]
[null,null,"8905","Salade PDT persil nat.TOUS NATURE."]
[null,null,"7085","Salade PDT persil NAT.TOUS NATURE"]
[null,null,"7863","Salade PDT persil SGTOUS SG"]
[null,null,"7866","Salade PDT persil SSETOUS SSE"]
[null,null,"8906","Salade PDT persil SSE.TOUS SSE."]
[null,null,"7864","Salade PDT persil SSUSGTOUS SSU SG"]
[null,null,"7865","Salade PDT persil SSUSGSSETOUS SSU SG SSE"]
[null,null,"8904","Salade PDT persil.TOUS."]
[null,null,"8681","Salade PDT thonTOUS"]
[null,null,"8682","Salade PDT thon natureTOUS NATURE"]
[null,null,"4437","Salade PDT tomateTOUS."]
[null,null,"6728","Salade PDT tomateTOUS"]
[null,null,"4439","Salade PDT tomate NATTOUS NATURE."]
[null,null,"6729","Salade PDT tomate natureTOUS NATURE"]
[null,null,"3306","Salade PDT tomate oignonTOUS"]
[null,null,"4175","Salade PDT tomate oignon natTOUS NATURE"]
[null,null,"3307","Salade PDT tomate oignonSSETOUS SSE"]
[null,null,"7867","Salade PDT tomate SGTOUS SG"]
[null,null,"4438","Salade PDT tomate SSETOUS SSE."]
[null,null,"6730","Salade PDT tomate SSETOUS SSE"]
[null,null,"8982","Salade PDT tomate SSUSGTOUS SSUSG"]
[null,null,"7868","Salade PDT tomate SSUSGTOUS SSU SG"]
[null,null,"8983","Salade PDT tomate SSUSGSSETOUS SSUSGSSE"]
[null,null,"7953","Salade PDT tomate SSUSGSSETOUS SSU SG SSE"]
[null,null,"5684","Salade piémontaiseTOUS"]
[null,null,"5685","Salade piémontaiseTOUS SANS PORC"]
[null,null,"8595","Salade piémontaiseTOUS SANS PORC VRAC"]
[null,null,"9150","Salade piémontaise 2 saumonsTOUS"]
[null,null,"8596","Salade piémontaise SSETOUS SANS PORC VRAC SSE"]
[null,null,"5686","Salade piémontaise SSETOUS SSE"]
[null,null,"8820","Salade piémontaise.TOUS"]
[null,null,"9164","Salade piémontaise.TOUS VRAC PESSAC"]
[null,null,"9047","Salade piémontaise.TOUS VRAC"]
[null,null,"5206","Salade pousse de sojaTOUS DOSE"]
[null,null,"5203","Salade pousse de sojaTOUS"]
[null,null,"5205","Salade pousse de soja natureTOUS NATURE"]
[null,null,"7871","Salade pousse de soja SGTOUS SG"]
[null,null,"5204","Salade pousse de soja SSETOUS SSE"]
[null,null,"5207","Salade pousse de soja SSETOUS DOSE SSE"]
[null,null,"7872","Salade pousse de soja SSUSGTOUS SSU SG"]
[null,null,"7873","Salade pousse de soja SSUSGSSETOUS SSUSGSSE"]
[null,null,"9163","Salade provençaleQUE CRECHE"]
[null,null,"3428","Salade ProvençaleTOUS"]
[null,null,"4231","Salade provençaleQUE CRECHE PAST."]
[null,null,"4232","Salade provençale BIOQUE CRECHE PAST. BIO"]
[null,null,"4176","Salade Provençale natureTOUS NATURE"]
[null,null,"3429","Salade Provençale SSETOUS SSE"]
[null,null,"8618","Salade Provençale SSUSGTOUS SSUSG"]
[null,null,"8619","Salade Provençale SSUSGSSETOUS SSUSGSSE"]
[null,null,"8284","Salade riz exotiqueTOUS VRAC SIVOM"]
[null,null,"9623","Salade riz exotiqueTOUS VRAC PESSAC"]
[null,null,"5200","Salade romaineTOUS BTE"]
[null,null,"5201","Salade romaineTOUS BTE DOSE"]
[null,null,"5199","Salade romaine natureTOUS NATURE BTE"]
[null,null,"7874","Salade romaine SGTOUS SG BTE"]
[null,null,"7876","Salade romaine SSETOUS SSE BTE"]
[null,null,"7875","Salade romaine SSUSGTOUS SSU SG BTE"]
[null,null,"7877","Salade romaine SSUSGSSETOUS SSU SG SSE BTE"]
[null,null,"4703","Salade San RémoTOUS NATURE A TRANCHER"]
[null,null,"4704","Salade San RémoTOUS NATURE TRANCHER"]
[null,null,"4727","Salade San RémoTOUS A TRANCHER DOSETTE"]
[null,null,"4728","Salade San RémoTOUS TRANCHER DOSETTE"]
[null,null,"3451","Salade soissonTOUS BTE"]
[null,null,"4177","Salade soisson natureTOUS NATURE BTE"]
[null,null,"7878","Salade soisson SGTOUS SG BTE"]
[null,null,"3452","Salade soisson SSETOUS BTE SSE"]
[null,null,"7879","Salade soisson SSUSGTOUS SSU SG BTE"]
[null,null,"7954","Salade soisson SSUSGSSETOUS SSU SG SSE BTE"]
[null,null,"4734","Salade StrasbourgeoiseTOUS","pomme de terre, Sauc.Strasbourg, cornichon, oignon"]
[null,null,"4735","Salade Strasbourgeoise natureTOUS NATURE","pomme de terre, Sauc.Strasbourg, cornichon, oignon"]
[null,null,"4736","Salade Strasbourgeoise SSETOUS SSE","pomme de terre, Sauc.Strasbourg, cornichon, oignon"]
[null,null,"5964","Salade TonicTOUS"]
[null,null,"4925","Salade tourangelleTOUS","pomme de terre, haricot vert, flageolet, échalote, persil"]
[null,null,"4926","Salade tourangelle NATURETOUS NATURE","pomme de terre, haricot vert, flageolet, échalote, persil"]
[null,null,"7881","Salade tourangelle SGTOUS SG","pomme de terre, haricot vert, flageolet, échalote, persil"]
[null,null,"4924","Salade tourangelle SSETOUS SSE","pomme de terre, haricot vert, flageolet, échalote, persil"]
[null,null,"7882","Salade tourangelle SSU SGTOUS SSU SG","pomme de terre, haricot vert, flageolet, échalote, persil"]
[null,null,"7883","Salade tourangelle SSUSGSSETOUS SSU SG SSE","pomme de terre, haricot vert, flageolet, échalote, persil"]
[null,null,"9696","Salade VaucouleursTOUS BTE"]
[null,null,"7508","Salade vendéenneTOUS EMINCE","chou blanc, raisin sec"]
[null,null,"5197","Salade vendéenneTOUS EMINCE DOSE","chou blanc, raisin sec"]
[null,null,"5195","Salade vendéenneTOUS A RAPER","chou blanc, raisin sec"]
[null,null,"5969","Salade vendéenne BIOTOUS EMINCE DOSE BIO","chou blanc, raisin sec"]
[null,null,"5968","Salade vendéenne BIO SSETOUS EMINCE DOSE BIO SSE","chou blanc, raisin sec"]
[null,null,"5193","Salade vendéenne natureTOUS A RAPER NATURE","chou blanc, raisin sec"]
[null,null,"5194","Salade vendéenne natureTOUS EMINCE NATURE","chou blanc, raisin sec"]
[null,null,"5967","Salade vendéenne nature BIOTOUS EMINCE NATURE BIO","chou blanc, raisin sec"]
[null,null,"7884","Salade vendéenne SGTOUS A RAPER SG","chou blanc, raisin sec"]
[null,null,"7509","Salade vendéenne SSETOUS EMINCE SSE","chou blanc, raisin sec"]
[null,null,"5196","Salade vendéenne SSETOUS A RAPER SSE","chou blanc, raisin sec"]
[null,null,"5198","Salade vendéenne SSETOUS EMINCE DOSE SSE","chou blanc, raisin sec"]
[null,null,"7885","Salade vendéenne SSUSGTOUS A RAPER SSU SG","chou blanc, raisin sec"]
[null,null,"7955","Salade vendéenne SSUSGSSETOUS A RAPER SSU SG SSE","chou blanc, raisin sec"]
[null,null,"5189","Salade vénitienneTOUS","pâte coquillette , tomate, thon, olive noire"]
[null,null,"5191","Salade vénitienneTOUS DOSE","pâte coquillette , tomate, thon, olive noire"]
[null,null,"9733","Salade vénitienneTOUS VRAC PESSAC","pâte coquillette , tomate, thon, olive noire"]
[null,null,"4772","Salade venitienne nature1TOUS NATURE","pâte coquillette , tomate, thon, olive noire"]
[null,null,"5188","Salade vénitienne nature2TOUS NATURE","pâte coquillette , tomate, thon, olive noire"]
[null,null,"7887","Salade venitienne SGTOUS SG","pâte coquillette , tomate, thon, olive noire"]
[null,null,"7889","Salade venitienne SG1TOUS SG1","pâte coquillette , tomate, thon, olive noire"]
[null,null,"7891","Salade vénitienne SG2TOUS SG2","pâte coquillette , tomate, thon, olive noire"]
[null,null,"5192","Salade vénitienne SSETOUS DOSE SSE","pâte coquillette , tomate, thon, olive noire"]
[null,null,"4773","Salade venitienne SSE1TOUS SSE","pâte coquillette , tomate, thon, olive noire"]
[null,null,"5190","Salade vénitienne SSE2TOUS SSE","pâte coquillette , tomate, thon, olive noire"]
[null,null,"7888","Salade venitienne SSUSG1TOUS SSU SG 1","pâte coquillette , tomate, thon, olive noire"]
[null,null,"7892","Salade vénitienne SSUSG2TOUS SSU SG2","pâte coquillette , tomate, thon, olive noire"]
[null,null,"7956","Salade venitienne SSUSGSSE1TOUS SSU SG SSE1","pâte coquillette , tomate, thon, olive noire"]
[null,null,"7894","Salade vénitienne SSUSGSSE2TOUS SSU SG SSE2","pâte coquillette , tomate, thon, olive noire"]
[null,null,"4771","Salade venitienne.TOUS","pâte coquillette , tomate, thon, olive noire"]
[null,null,"6693","Salade verteQUE CRECHE"]
[null,null,"478","Salade verte au bleuHORS SCOLAIRE BARQUETTE"]
[null,null,"3697","Salade verte au bleuTOUS VRAC/BARQUETTE"]
[null,null,"3716","Salade verte au bleu SSETOUS VRAC/BARQUETTE SSE"]
[null,null,"3717","Salade verte au bleu SSEHORS SCOLAIRE BARQUETTE SSE"]
[null,null,"3702","Salade verte aux gésiersHORS SCOLAIRE BARQUETTE"]
[null,null,"933","Salade verte aux gésiersHORS SCOLAIRE VRAC ET BARQ VGT"]
[null,null,"3719","Salade verte aux gésiers SSETOUS VRAC/BARQUETTE SSE"]
[null,null,"2169","Salade verte aux noixHORS SCOLAIRE BARQUETTE"]
[null,null,"2850","Salade verte aux noixTOUS VRAC/BARQUETTE"]
[null,null,"9464","Salade verte aux noix NATURETOUS VRAC/BARQUETTE NATURE"]
[null,null,"2170","Salade verte aux noix SSETOUS VRAC/BARQUETTE SSE"]
[null,null,"3720","Salade verte aux noix SSEHORS SCOLAIRE BARQUETTE SSE"]
[null,null,"9406","Salade verte BIOTOUS VRAC BIO"]
[null,null,"3698","Salade verte BIO aux noixHORS SCOLAIRE BARQUETTE BIO"]
[null,null,"2172","Salade verte BIO aux noixTOUS VRAC/BARQUETTE BIO"]
[null,null,"2173","Salade verte BIO aux noix SSETOUS VRAC/BARQU BIO SSE"]
[null,null,"3708","Salade verte BIO aux noix SSEHORS SCOLAIRE BARQUETTEBIO SSE"]
[null,null,"9494","Salade verte BIO et croutonTOUS VRAC BIO PESSAC"]
[null,null,"9529","Salade verte BIO et croutonTOUS VRAC/BARQUETTE BIO"]
[null,null,"3699","Salade verte BIO et emmentalHORS SCOLAIRE BARQUETTE BIO"]
[null,null,"1606","Salade verte BIO et emmentalTOUS VRAC/BARQUETTE BIO"]
[null,null,"2232","Salade verte BIO fromagèreTOUS VRAC/BARQUETTE BIO"]
[null,null,"3700","Salade verte BIO fromagèreHORS SCOLAIRE BARQUETTE BIO"]
[null,null,"3709","Salade verte BIO fromagère SSEHORS SCOLAIRE BARQUETTEBIO SSE"]
[null,null,"2233","Salade verte BIO fromagère SSETOUS VRAC/BARQ DOSETTE BIO SSE"]
[null,null,"5971","Salade verte BIO vgt.HORS SCOLAIRE VRAC BIO"]
[null,null,"8078","Salade verte BIO.TOUS VRAC BIO"]
[null,null,"2230","Salade verte fromagèreTOUS TOUT VRAC"]
[null,null,"3245","Salade verte fromagèreTOUS"]
[null,null,"6616","Salade verte fromagèreHORS SCO VRAC & FROMAGE BARQUE"]
[null,null,"8442","Salade verte fromagèreTOUS TOUT VRAC MAISON"]
[null,null,"8458","Salade verte fromagère NATURETOUS TOUT NATURE"]
[null,null,"6814","Salade verte fromagère SSEHORS SCO VRAC FROM BARQUE SSE"]
[null,null,"2231","Salade verte fromagère SSETOUS SSE"]
[null,null,"4882","Salade verte INDTOUS IND 50G"]
[null,null,"8592","Salade verte mimolette natureTOUS TOUT VRAC NATURE"]
[null,null,"3336","Salade verte SSE.TOUS SSE"]
[null,null,"6130","Salade verte SSE.TOUS VGT MAISON VRAC SSE"]
[null,null,"3714","Salade verte.TOUS"]
[null,null,"3335","Salade verte.TOUS VRAC/BARQUETTE"]
[null,null,"6131","Salade verte.TOUS VGTE MAISON VRAC"]
[null,null,"2207","Salade westernTOUS","haricot rouge, maïs, poivron rouge, persil"]
[null,null,"2211","Salade western natureTOUS NATURE","haricot rouge, maïs, poivron rouge, persil"]
[null,null,"2212","Salade western SSETOUS SSE","haricot rouge, maïs, poivron rouge, persil"]